{"text_format":"1","workbook":"xlsx","n_sheets":12,"sheets":["Registro de cambios","configuracion","DIGITADOR","DATOS","REFERENTES","OTRAS REFERENTES","Resumen","AGD_MUESTREOS","AGD_PARAMETRO","AGD_MUESTRAS","AGD_MUESTRAS_VARIABLES","AGD_AUTORIAS"],"not_rendered":{"charts":0,"images":0,"macros":1,"external_links":1,"defined_names":30,"comments":1,"pivot_tables":1},"unopened":[],"bounds":{"document_bytes":16777216,"sheet_cells":100000,"rows_first":2000,"rows_last":500,"rows_between":2000,"halvings":0,"cell_chars":16384,"cell_head_chars":4096},"cells_cut":0,"cells_raw":0,"read":"whole","date_system":"1900"}

{"sheet":"Registro de cambios","index":0,"n_rows":7,"n_cols":7,"rows_kept":7,"cut":false,"hidden":true,"merged":[[1,3,1,6]]}
[]
[null,null,null,"REGISTRO DE CAMBIOS"]
[null,null,null,"VERSIÓN No.","CAMBIO REALIZADO","AUTOR","VIGENTE DESDE"]
[null,null,null,"20240917i","Actualización del código de la macro.\n\nSe eliminó la URL de la antigua API de portete:\n       http://portete.invemar.org.co:7003/ArgosWebServices-RESTWebService-context-root/rest/1.0\n\nFue reemplazada por la URL de la API de ARGOS:\n       https://argos.invemar.org.co/api/\n\nLa API contiene End Points que permiten tener mayor control, facilitan la descarga de referentes (listas de usuarios, estaciones, especies, etc.) que corresponden a criterios específicos como el proyecto usado en la plantilla para evitar descargar data innecesaria.\n\nDel mismo modo, también permite la carga de información a la BDD del INVEMAR.\n\nLa macro toma los Endpoints desde la hoja configuracion de una tabla llamada \"Configuración referentes\", a la que se le puede modificar las rutas de la API o agregar nuevas. cabe resaltar que se puede \"quemar\" directamente en la macro los Endpoints que lo requieran.\n\nRevisión de la hoja configuracion para el correcto mapeo de columnas que se estaban descartando al momento de cargar la información al sistema. En la hoja \"DATOS\" se modifican las formulas de las columnas CODMUESTREO, \"ID_MUESTRA\", \"ID_MUESTREO\". En la hoja \"DIGITADOR\", se agrega la tabla \"ATRIBUTOS ADICIONALES\". En la hoja \"OTRAS REFERENCIAS\", se agrega la tabla \"CODIGOS LOV\".\n\n \n","Cristian Charris","2024-09-23"]
[null,null,null,"20200130i","Para trazabilididad la hoja se incluye el nombre del archivo fuente y la posibilidad de anotar el DOI principal del metadato\nPor usabilidad las pestañas que son de interes para el usuario son las verdes\nSi se define mas de un proyecto los referentes de estaciones e investigadores se descargan consecutivo en las mismas columnas\nSe controla la versión para la plantilla mediante comparación dato en AGLOV de la BD.",null,"2020-01-30"]
[null,null,null,"20190313m","Se coloca un listado en el campo \"Proyecto\" en la hoja \"DIGITADOR\". Por lo anterior se modifica la hoja de \"configuracion\".",null,"2019-03-13"]
[null,null,null,"20190413i","Se modifica la generación de los ID de muestreo y se agrega macro que genera número aleatorio en la hoja \"DIGITADOR\".",null,"2018-04-13"]

{"sheet":"configuracion","index":1,"n_rows":71,"n_cols":9,"rows_kept":71,"cut":false,"hidden":true,"merged":[[61,0,61,2],[28,0,35,0],[37,0,42,0],[45,0,45,1],[0,0,2,0],[3,0,5,0],[7,0,8,0],[9,0,15,0],[17,0,21,0],[23,0,26,0]]}
["general","urlServicio","https://argos.invemar.org.co/api/"]
[null,"fila de inicio",5]
[null,"fila de fin",150]
["metodologias","Metodologias",23]
[null,"Referentes",150]
[null,"Cantidad maxima de referentes ",150]
["estaciones/investigadores","proyectos",{"$f":"DIGITADOR!B9","v":1480}]
["Lista especies","metodologias",23]
[null,"proyectos",{"$f":"DIGITADOR!B9","v":1480}]
["MUESTREOS","ID_MUESTREO","DATOS,D"]
[null,"ID_ESTACION","DATOS,P"]
[null,"ID_PROYECTO","DIGITADOR,B,9"]
[null,"ID_METODOLOGIA",23]
[null,"ID_TEMATICAS",210]
[null,"FECHA","DATOS,G,5"]
[null,"NOTAS","DIGITADOR,B,17"]
[null,"cantidad",150]
["parametro muestreo","ID_MUESTREO","DATOS,D","DATOS,D","DATOS,D"]
[null,"ID_PARAMETRO",1055,1169,1170]
[null,"ID_METODOLOGIA",23,23,23]
[null,"ID_UNIDAD_MEDIDA",100,100,100]
[null,"VALOR","DIGITADOR,B,5","DIGITADOR,B,12","DIGITADOR,B,11"]
[null,"cantidad",150,150,150]
["muestra","ID_MUESTRA","DATOS,R"]
[null,"ID_MUESTREO","DATOS,S"]
[null,"NOTAS","DATOS,N"]
[null,"ES_REPLICA",1]
[null,"cantidad",150]
["muestra variable","ID_PARAMETRO",827,585,823,828]
[null,"ID_METODOLOGIA",23,23,23,23]
[null,"ID_UNIDAD_MEDIDA",100,100,19,100]
[null,"ID_MUESTRA","DATOS,R","DATOS,R","DATOS,R","DATOS,R"]
[null,"ID_METODO",732,732,732]
[null,"VALOR","DATOS,Y","DATOS,AB","DATOS,AD","DATOS,M"]
[null,"QUALITY_FLAG"]
[null,"PRECISION"]
[null,"cantidad",150,150,150,150]
["autoria","ID_FUNCIONARIO","DIGITADOR,B,2","DATOS,K"]
[null,"ID_TAREA",5,4]
[null,"ORDEN",1,2]
[null,"FECHA","DIGITADOR,B,7","DATOS,G"]
[null,"ID_MUESTREO","DATOS,D","DATOS,D"]
[null,"ENTIDAD","DIGITADOR,B,4","DATOS,M"]
[null,"cantidad",150,150]
[]
["REGISTROS GENERADOS",null,"REGISTROS CARGADOS",null,null,null,"ID_PARAMETRO","ID_UNIDAD_MEDIDA","NOMBRE_COLUMNA"]
["MUESTREOS",null,null,null,null,null,585,100,"ESPECIE"]
["parametro muestreo",null,null,null,null,null,823,19,"VALOR"]
["muestra",null,null,null,null,null,827,100,"UBICACION_ESPECIFICA"]
["muestra variable",null,null,null,null,null,828,100,"ENTIDAD"]
["autoria",null,null,null,null,null,1055,100,"VERSION_PLANTILLA"]
["registros correctos",null,null,null,null,null,1169,100,"URL_METADATO"]
["Fecha de carga",null,null,null,null,null,1170,100,"ARCHIVO_FUENTE"]
["json error"]
["error"]
[]
[]
[" ","Descripción","Código"]
["Tipo Nodo","Estaciones",{"$f":"VLOOKUP(B59,'OTRAS REFERENTES'!A29:C39,2,FALSE)","v":40}]
[]
[]
["CONFIGURACION REFERENTES"]
["Ruta de la API","Endpoint","Descripción"]
["URL - AGM Campo",{"$f":"CONCATENATE(\"parametros/agmcampo/\",$C$4,\"\")","v":"parametros/agmcampo/23"},"Listado de referentes AGM_CAMPO."]
["URL - Especies",{"$f":"IF($C$8=\"\",\"\",CONCATENATE(\"especies/filt/\",$C$9,\",\",$C$8,\"/\"))","v":"especies/filt/1480,23/"},"Especies por proyecto\n(No todos los proyectos tienen asociados una lista de especies)"]
["URL - Estaciones",{"$f":"CONCATENATE(\"estaciones/\", $C$59, \"/\",$C$9,\"\")","v":"estaciones/40/1480"},"Estaciones/parcelas por proyecto, cambia dependiendo del Tipo de Nodo, cuyo estado sea VIGENTE."]
["URL - Usuarios",{"$f":"CONCATENATE(\"parametros/usersByProject/\",$C$7,\"\")","v":"parametros/usersByProject/1480"},"Usuarios por proyecto."]
["URL - Entidades","estaciones/get-entidades","Listado de entidades."]
["Atributos de la API","codigo_in","nombre_in"]
["Rango de atributos de la API","B70:C71","nombre_in"]
["URL - Plantillas","plantillas/","Endpoint para la carga de datos al sistema."]

{"sheet":"DIGITADOR","index":2,"n_rows":28,"n_cols":13,"rows_kept":28,"cut":false,"hidden":false,"merged":[[19,0,19,1],[15,0,15,1],[11,3,13,9],[5,0,6,0],[0,0,0,1],[0,3,5,9],[6,3,8,9],[9,3,10,9]]}
["Recolección de Datos Abundancia Peces Corales",null,null,"Recomendaciones generales: \n¡Precaución! No inserte Filas o Columnas.\nEn los casos en que falte un valor a ingresar que provenga de la hoja de referencias, informe para que el administrador del sistema haga las adiciones necesarias.\nEsta es una plantilla programada. Las columnas de color oscuro se llenan automaticamente, principalmente a partir de los contenidos de la hoja de referencias. \nNO UTILICE PUNTO Y COMA (;) en ningun campo, por ser el separador de variables (columnas). Tampoco escriba las unidades de medida, no son necesarias.\nPara el correcto funcionamiento de la hoja debe estar activa la opcion de Excel de ejecutar macros (al abrir la hoja acepte la opcion habilitar macros, mensaje de Excel que aparece en la parte superior de la hoja en un recuadro amarillo). La extensión del archivo debe ser .xlsm\nSe recomienda renombrar el archivo de la siguiente manera: SIMAC_Abundancia_NombreEstacion_FechaMonitoreo.xlsm",null,null,null,null,null,null,null,null,7051]
["Código del responsable",{"$f":"IF(B3=\"\",\"\",INDEX(REFERENTES!V:W,MATCH(B3,REFERENTES!W:W,0),1))","v":""}]
["Nombre del responsible"]
["Entidad"]
["Versión de la plantilla",{"$f":"'Registro de cambios'!$D$4","v":"20240917i"}]
["Fecha en la que ingresa los datos en esta hoja","DD/MM/AAAA"]
[null,"2024-09-13",null,"Previamente a iniciar el llenado de la plantilla, debe presionar el botón \"Descargar referentes\" para que los referentes de ésta plantilla sean actualizados. \nLuego de llenar completamente la plantilla, haga clic sobre el botón \"Generar tablas\" para que los datos sean organizados antes de cargarlos al Sistema de Información.\nAntes de presionar el botón \"Generar tablas\" verifique que:\na. No haya celdas con valores como \"#N/A\" o \"#¡REF!\"\nb. No se esten aplicando filtros en la hoja de datos \nPara finalizar, presione el botón \"Cargar datos\"."]
["Proyecto convenio"]
["Código del proyecto",{"$f":"IF(B10=\"\",\"\",INDEX('OTRAS REFERENTES'!F7:G15,MATCH(DIGITADOR!B10,'OTRAS REFERENTES'!F7:F16,0),2))","v":1480}]
["Nombre Proyecto","Sistema de Monitoreo de los Arrecifes Coralinos en Colombia",null,"Si requiere ayuda contacte a:\nJulio Bohorquez (julio.bohorquez@invemar.org.co)  - Apoyo técnico software"]
["Nombre del archivo",{"$f":"MID(CELL(\"FILENAME\",N50),FIND(\"[\",CELL(\"FILENAME\",N50))+1,   FIND(\"]\",CELL(\"FILENAME\",N50))-FIND(\"[\",CELL(\"FILENAME\",N50))-1)","v":"SIMAC_Abundancia_20240917i.xlsm"}]
["DOI Metadato",null,null,"El custodio de los datos es el único autorizado para distribuir este conjunto de datos. El observador y el digitador se comprometen a tomar las medidas necesarias para salvaguardar este conjunto de datos de modo que copia de los mismos no sean obtenidas y/o usadas por terceros no relacionados con el propósito para la cual se recolectó."]
["Fuente Plantilla ","http://cinto.invemar.org.co/download/Plantillas_ARGOS_Plus/"]
[]
[]
["ATRIBUTOS ADICIONALES"]
["Observaciones generales"]
[]
[]
["REGISTROS GENERADOS",null,"CARGADOS"]
["Muestreos",{"$f":"IF(configuracion!B47=\"\",\"\",configuracion!B47)","v":""},{"$f":"IF(configuracion!C47=\"\",\"\",configuracion!C47)","v":""}]
["Parámetros del muestreo",{"$f":"IF(configuracion!B48=\"\",\"\",configuracion!B48)","v":""},{"$f":"IF(configuracion!C48=\"\",\"\",configuracion!C48)","v":""}]
["Muestras",{"$f":"IF(configuracion!B49=\"\",\"\",configuracion!B49)","v":""},{"$f":"IF(configuracion!C49=\"\",\"\",configuracion!C49)","v":""}]
["Variables",{"$f":"IF(configuracion!B50=\"\",\"\",configuracion!B50)","v":""},{"$f":"IF(configuracion!C50=\"\",\"\",configuracion!C50)","v":""}]
["Autores",{"$f":"IF(configuracion!B51=\"\",\"\",configuracion!B51)","v":""},{"$f":"IF(configuracion!C51=\"\",\"\",configuracion!C51)","v":""}]
["Fecha de carga",{"$f":"IF(configuracion!B52=\"\",\"\",configuracion!B52)","v":""},{"$f":"IF(configuracion!C52=\"\",\"\",configuracion!C52)","v":""}]
["json error",{"$f":"IF(configuracion!B53=\"\",\"\",configuracion!B53)","v":""},{"$f":"IF(configuracion!C53=\"\",\"\",configuracion!C53)","v":""}]
["error",{"$f":"IF(configuracion!B54=\"\",\"\",configuracion!B54)","v":""},{"$f":"IF(configuracion!C54=\"\",\"\",configuracion!C54)","v":""}]

{"sheet":"DATOS","index":3,"n_rows":104,"n_cols":30,"rows_kept":104,"cut":false,"hidden":false,"merged":[[1,26,1,28],[3,19,3,20],[1,2,3,2],[0,3,1,6],[1,9,1,10],[1,14,1,24],[2,7,3,7]]}
[{"$f":"DIGITADOR!B7+F5","v":"2024-09-13"},null,null,"Fecha"]
[{"$f":"TEXT(A1,\"yyyymmdd\")","v":"20240913"},null,"CODIGO",null,null,null,null,null,null,"Investigador",null,null,null,null,"Datos generales de la muestra",null,null,null,null,null,null,null,null,null,null,null,null,null,null,"ABUNDANCIA"]
[null,null,null,null,null,null,"DATE","MES","TEMPO",null,null,"UNIKE_KEY",null,null,null,null,null,null,null,null,null,null,null,null,null,null,null,null,null,"N"]
[null,null,null,"AGD\nMUESTREO","FECHA","HORA","FECHA + HORA",null,"Temporada","DATOS TOMADOS POR","COD",null,"ENTIDAD","OBS.","ESTACION","ID\nESTACION","CONSECUTIVO","ID_MUESTRA","COD\nMUESTREO","SUSTRATO",null,"PROFUNDIDAD","COD\nPROFUNDIDAD","CENSO","UBICACION","CUADRANTE","ESPECIE","DESCRIPCION\nESPECIE","COD\nSIBM","VALOR"]
[null,{"$f":"DIGITADOR!$B$2","v":""},1,{"$f":"IF(S5=\"\",\"\",IF(COUNTIF($S$5:S5, S5)>1, \"\", S5))","v":""},null,null,{"$f":"IF(E5=\"\",\"\",E5+F5)","v":""},{"$f":"IF(G5<>\"\",MONTH(G5),\"\")","v":""},{"$f":"IF(D5=\"\",\"\",1)","v":""},null,{"$f":"IF(J5=\"\",\"\",INDEX(REFERENTES!$V:$W,MATCH(J5,REFERENTES!$W:$W,0),1))","v":""},{"$f":"IF(G5=\"\",\"\",CONCATENATE(G5,P5,K5,1))","v":""},null,null,null,{"$f":"IF(O5=\"\",\"\",VLOOKUP(O5,'OTRAS REFERENTES'!$L$5:$M$148,2,FALSE))","v":""},1,{"$f":"IF(S5=\"\",\"\",CONCATENATE(S5,ROW()-2))","v":""},{"$f":"IF(O5=\"\",\"\",IF(O5=\"\",\"\",CONCATENATE(DIGITADOR!$M$1,E5,P5)))","v":""},{"$f":"IF(R5=\"\",\"\",\"OA\")","v":""},{"$f":"IF(T5=\"\",\"\",\"SO\")","v":""},null,{"$f":"IF(V5=\"\",\"\",VLOOKUP(V5,'OTRAS REFERENTES'!$A$7:$B$9,2,FALSE))","v":""},null,{"$f":"CONCATENATE(W5,X5)","v":""},null,null,{"$f":"IF(AA5=\"\",\"\",INDEX(REFERENTES!$G:$H,MATCH(AA5,REFERENTES!$G:$G,0),2))","v":""},{"$f":"IF(AA5=\"\",\"\",INDEX(REFERENTES!$G:$I,MATCH(AA5,REFERENTES!$G:$G,0),3))","v":""}]
[null,{"$f":"DIGITADOR!$B$2","v":""},2,{"$f":"IF(S6=\"\",\"\",IF(COUNTIF($S$5:S6, S6)>1, \"\", S6))","v":""},null,null,{"$f":"IF(E6=\"\",\"\",E6+F6)","v":""},"",{"$f":"IF(D6=\"\",\"\",1)","v":""},null,{"$f":"IF(J6=\"\",\"\",INDEX(REFERENTES!$V:$W,MATCH(J6,REFERENTES!$W:$W,0),1))","v":""},{"$f":"IF(G6=\"\",\"\",CONCATENATE(G6,P6,K6,1))","v":""},null,null,null,{"$f":"IF(O6=\"\",\"\",VLOOKUP(O6,'OTRAS REFERENTES'!$L$5:$M$148,2,FALSE))","v":""},2,{"$f":"IF(S6=\"\",\"\",CONCATENATE(S6,ROW()-2))","v":""},{"$f":"IF(O6=\"\",\"\",IF(O6=\"\",\"\",CONCATENATE(DIGITADOR!$M$1,E6,P6)))","v":""},{"$f":"IF(R6=\"\",\"\",\"OA\")","v":""},{"$f":"IF(T6=\"\",\"\",\"SO\")","v":""},null,{"$f":"IF(V6=\"\",\"\",VLOOKUP(V6,'OTRAS REFERENTES'!$A$7:$B$9,2,FALSE))","v":""},null,{"$f":"CONCATENATE(W6,X6)","v":""},null,null,{"$f":"IF(AA6=\"\",\"\",INDEX(REFERENTES!$G:$H,MATCH(AA6,REFERENTES!$G:$G,0),2))","v":""},{"$f":"IF(AA6=\"\",\"\",INDEX(REFERENTES!$G:$I,MATCH(AA6,REFERENTES!$G:$G,0),3))","v":""}]
[null,{"$f":"DIGITADOR!$B$2","v":""},3,{"$f":"IF(S7=\"\",\"\",IF(COUNTIF($S$5:S7, S7)>1, \"\", S7))","v":""},null,null,"","","",null,{"$f":"IF(J7=\"\",\"\",INDEX(REFERENTES!$V:$W,MATCH(J7,REFERENTES!$W:$W,0),1))","v":""},"",null,null,null,{"$f":"IF(O7=\"\",\"\",VLOOKUP(O7,'OTRAS REFERENTES'!$L$5:$M$148,2,FALSE))","v":""},3,"",{"$f":"IF(O7=\"\",\"\",IF(O7=\"\",\"\",CONCATENATE(DIGITADOR!$M$1,E7,P7)))","v":""},"","",null,{"$f":"IF(V7=\"\",\"\",VLOOKUP(V7,'OTRAS REFERENTES'!$A$7:$B$9,2,FALSE))","v":""},null,"",null,null,{"$f":"IF(AA7=\"\",\"\",INDEX(REFERENTES!$G:$H,MATCH(AA7,REFERENTES!$G:$G,0),2))","v":""},{"$f":"IF(AA7=\"\",\"\",INDEX(REFERENTES!$G:$I,MATCH(AA7,REFERENTES!$G:$G,0),3))","v":""}]
[null,{"$f":"DIGITADOR!$B$2","v":""},4,{"$f":"IF(S8=\"\",\"\",IF(COUNTIF($S$5:S8, S8)>1, \"\", S8))","v":""},null,null,"","","",null,{"$f":"IF(J8=\"\",\"\",INDEX(REFERENTES!$V:$W,MATCH(J8,REFERENTES!$W:$W,0),1))","v":""},"",null,null,null,{"$f":"IF(O8=\"\",\"\",VLOOKUP(O8,'OTRAS REFERENTES'!$L$5:$M$148,2,FALSE))","v":""},4,"",{"$f":"IF(O8=\"\",\"\",IF(O8=\"\",\"\",CONCATENATE(DIGITADOR!$M$1,E8,P8)))","v":""},"","",null,{"$f":"IF(V8=\"\",\"\",VLOOKUP(V8,'OTRAS REFERENTES'!$A$7:$B$9,2,FALSE))","v":""},null,"",null,null,{"$f":"IF(AA8=\"\",\"\",INDEX(REFERENTES!$G:$H,MATCH(AA8,REFERENTES!$G:$G,0),2))","v":""},{"$f":"IF(AA8=\"\",\"\",INDEX(REFERENTES!$G:$I,MATCH(AA8,REFERENTES!$G:$G,0),3))","v":""}]
[null,{"$f":"DIGITADOR!$B$2","v":""},5,{"$f":"IF(S9=\"\",\"\",IF(COUNTIF($S$5:S9, S9)>1, \"\", S9))","v":""},null,null,"","","",null,{"$f":"IF(J9=\"\",\"\",INDEX(REFERENTES!$V:$W,MATCH(J9,REFERENTES!$W:$W,0),1))","v":""},"",null,null,null,{"$f":"IF(O9=\"\",\"\",VLOOKUP(O9,'OTRAS REFERENTES'!$L$5:$M$148,2,FALSE))","v":""},5,"",{"$f":"IF(O9=\"\",\"\",IF(O9=\"\",\"\",CONCATENATE(DIGITADOR!$M$1,E9,P9)))","v":""},"","",null,{"$f":"IF(V9=\"\",\"\",VLOOKUP(V9,'OTRAS REFERENTES'!$A$7:$B$9,2,FALSE))","v":""},null,"",null,null,{"$f":"IF(AA9=\"\",\"\",INDEX(REFERENTES!$G:$H,MATCH(AA9,REFERENTES!$G:$G,0),2))","v":""},{"$f":"IF(AA9=\"\",\"\",INDEX(REFERENTES!$G:$I,MATCH(AA9,REFERENTES!$G:$G,0),3))","v":""}]
[null,{"$f":"DIGITADOR!$B$2","v":""},6,{"$f":"IF(S10=\"\",\"\",IF(COUNTIF($S$5:S10, S10)>1, \"\", S10))","v":""},null,null,"","","",null,{"$f":"IF(J10=\"\",\"\",INDEX(REFERENTES!$V:$W,MATCH(J10,REFERENTES!$W:$W,0),1))","v":""},"",null,null,null,{"$f":"IF(O10=\"\",\"\",VLOOKUP(O10,'OTRAS REFERENTES'!$L$5:$M$148,2,FALSE))","v":""},6,"",{"$f":"IF(O10=\"\",\"\",IF(O10=\"\",\"\",CONCATENATE(DIGITADOR!$M$1,E10,P10)))","v":""},"","",null,{"$f":"IF(V10=\"\",\"\",VLOOKUP(V10,'OTRAS REFERENTES'!$A$7:$B$9,2,FALSE))","v":""},null,"",null,null,{"$f":"IF(AA10=\"\",\"\",INDEX(REFERENTES!$G:$H,MATCH(AA10,REFERENTES!$G:$G,0),2))","v":""},{"$f":"IF(AA10=\"\",\"\",INDEX(REFERENTES!$G:$I,MATCH(AA10,REFERENTES!$G:$G,0),3))","v":""}]
[null,{"$f":"DIGITADOR!$B$2","v":""},7,{"$f":"IF(S11=\"\",\"\",IF(COUNTIF($S$5:S11, S11)>1, \"\", S11))","v":""},null,null,"","","",null,{"$f":"IF(J11=\"\",\"\",INDEX(REFERENTES!$V:$W,MATCH(J11,REFERENTES!$W:$W,0),1))","v":""},"",null,null,null,{"$f":"IF(O11=\"\",\"\",VLOOKUP(O11,'OTRAS REFERENTES'!$L$5:$M$148,2,FALSE))","v":""},7,"",{"$f":"IF(O11=\"\",\"\",IF(O11=\"\",\"\",CONCATENATE(DIGITADOR!$M$1,E11,P11)))","v":""},"","",null,{"$f":"IF(V11=\"\",\"\",VLOOKUP(V11,'OTRAS REFERENTES'!$A$7:$B$9,2,FALSE))","v":""},null,"",null,null,{"$f":"IF(AA11=\"\",\"\",INDEX(REFERENTES!$G:$H,MATCH(AA11,REFERENTES!$G:$G,0),2))","v":""},{"$f":"IF(AA11=\"\",\"\",INDEX(REFERENTES!$G:$I,MATCH(AA11,REFERENTES!$G:$G,0),3))","v":""}]
[null,{"$f":"DIGITADOR!$B$2","v":""},8,{"$f":"IF(S12=\"\",\"\",IF(COUNTIF($S$5:S12, S12)>1, \"\", S12))","v":""},null,null,"","","",null,{"$f":"IF(J12=\"\",\"\",INDEX(REFERENTES!$V:$W,MATCH(J12,REFERENTES!$W:$W,0),1))","v":""},"",null,null,null,{"$f":"IF(O12=\"\",\"\",VLOOKUP(O12,'OTRAS REFERENTES'!$L$5:$M$148,2,FALSE))","v":""},8,"",{"$f":"IF(O12=\"\",\"\",IF(O12=\"\",\"\",CONCATENATE(DIGITADOR!$M$1,E12,P12)))","v":""},"","",null,{"$f":"IF(V12=\"\",\"\",VLOOKUP(V12,'OTRAS REFERENTES'!$A$7:$B$9,2,FALSE))","v":""},null,"",null,null,{"$f":"IF(AA12=\"\",\"\",INDEX(REFERENTES!$G:$H,MATCH(AA12,REFERENTES!$G:$G,0),2))","v":""},{"$f":"IF(AA12=\"\",\"\",INDEX(REFERENTES!$G:$I,MATCH(AA12,REFERENTES!$G:$G,0),3))","v":""}]
[null,{"$f":"DIGITADOR!$B$2","v":""},9,{"$f":"IF(S13=\"\",\"\",IF(COUNTIF($S$5:S13, S13)>1, \"\", S13))","v":""},null,null,"","","",null,{"$f":"IF(J13=\"\",\"\",INDEX(REFERENTES!$V:$W,MATCH(J13,REFERENTES!$W:$W,0),1))","v":""},"",null,null,null,{"$f":"IF(O13=\"\",\"\",VLOOKUP(O13,'OTRAS REFERENTES'!$L$5:$M$148,2,FALSE))","v":""},9,"",{"$f":"IF(O13=\"\",\"\",IF(O13=\"\",\"\",CONCATENATE(DIGITADOR!$M$1,E13,P13)))","v":""},"","",null,{"$f":"IF(V13=\"\",\"\",VLOOKUP(V13,'OTRAS REFERENTES'!$A$7:$B$9,2,FALSE))","v":""},null,"",null,null,{"$f":"IF(AA13=\"\",\"\",INDEX(REFERENTES!$G:$H,MATCH(AA13,REFERENTES!$G:$G,0),2))","v":""},{"$f":"IF(AA13=\"\",\"\",INDEX(REFERENTES!$G:$I,MATCH(AA13,REFERENTES!$G:$G,0),3))","v":""}]
[null,{"$f":"DIGITADOR!$B$2","v":""},10,{"$f":"IF(S14=\"\",\"\",IF(COUNTIF($S$5:S14, S14)>1, \"\", S14))","v":""},null,null,"","","",null,{"$f":"IF(J14=\"\",\"\",INDEX(REFERENTES!$V:$W,MATCH(J14,REFERENTES!$W:$W,0),1))","v":""},"",null,null,null,{"$f":"IF(O14=\"\",\"\",VLOOKUP(O14,'OTRAS REFERENTES'!$L$5:$M$148,2,FALSE))","v":""},10,"",{"$f":"IF(O14=\"\",\"\",IF(O14=\"\",\"\",CONCATENATE(DIGITADOR!$M$1,E14,P14)))","v":""},"","",null,{"$f":"IF(V14=\"\",\"\",VLOOKUP(V14,'OTRAS REFERENTES'!$A$7:$B$9,2,FALSE))","v":""},null,"",null,null,{"$f":"IF(AA14=\"\",\"\",INDEX(REFERENTES!$G:$H,MATCH(AA14,REFERENTES!$G:$G,0),2))","v":""},{"$f":"IF(AA14=\"\",\"\",INDEX(REFERENTES!$G:$I,MATCH(AA14,REFERENTES!$G:$G,0),3))","v":""}]
[null,{"$f":"DIGITADOR!$B$2","v":""},11,{"$f":"IF(S15=\"\",\"\",IF(COUNTIF($S$5:S15, S15)>1, \"\", S15))","v":""},null,null,"","","",null,{"$f":"IF(J15=\"\",\"\",INDEX(REFERENTES!$V:$W,MATCH(J15,REFERENTES!$W:$W,0),1))","v":""},"",null,null,null,{"$f":"IF(O15=\"\",\"\",VLOOKUP(O15,'OTRAS REFERENTES'!$L$5:$M$148,2,FALSE))","v":""},11,"",{"$f":"IF(O15=\"\",\"\",IF(O15=\"\",\"\",CONCATENATE(DIGITADOR!$M$1,E15,P15)))","v":""},"","",null,{"$f":"IF(V15=\"\",\"\",VLOOKUP(V15,'OTRAS REFERENTES'!$A$7:$B$9,2,FALSE))","v":""},null,"",null,null,{"$f":"IF(AA15=\"\",\"\",INDEX(REFERENTES!$G:$H,MATCH(AA15,REFERENTES!$G:$G,0),2))","v":""},{"$f":"IF(AA15=\"\",\"\",INDEX(REFERENTES!$G:$I,MATCH(AA15,REFERENTES!$G:$G,0),3))","v":""}]
[null,{"$f":"DIGITADOR!$B$2","v":""},12,{"$f":"IF(S16=\"\",\"\",IF(COUNTIF($S$5:S16, S16)>1, \"\", S16))","v":""},null,null,"","","",null,{"$f":"IF(J16=\"\",\"\",INDEX(REFERENTES!$V:$W,MATCH(J16,REFERENTES!$W:$W,0),1))","v":""},"",null,null,null,{"$f":"IF(O16=\"\",\"\",VLOOKUP(O16,'OTRAS REFERENTES'!$L$5:$M$148,2,FALSE))","v":""},12,"",{"$f":"IF(O16=\"\",\"\",IF(O16=\"\",\"\",CONCATENATE(DIGITADOR!$M$1,E16,P16)))","v":""},"","",null,{"$f":"IF(V16=\"\",\"\",VLOOKUP(V16,'OTRAS REFERENTES'!$A$7:$B$9,2,FALSE))","v":""},null,"",null,null,{"$f":"IF(AA16=\"\",\"\",INDEX(REFERENTES!$G:$H,MATCH(AA16,REFERENTES!$G:$G,0),2))","v":""},{"$f":"IF(AA16=\"\",\"\",INDEX(REFERENTES!$G:$I,MATCH(AA16,REFERENTES!$G:$G,0),3))","v":""}]
[null,{"$f":"DIGITADOR!$B$2","v":""},13,{"$f":"IF(S17=\"\",\"\",IF(COUNTIF($S$5:S17, S17)>1, \"\", S17))","v":""},null,null,"","","",null,{"$f":"IF(J17=\"\",\"\",INDEX(REFERENTES!$V:$W,MATCH(J17,REFERENTES!$W:$W,0),1))","v":""},"",null,null,null,{"$f":"IF(O17=\"\",\"\",VLOOKUP(O17,'OTRAS REFERENTES'!$L$5:$M$148,2,FALSE))","v":""},13,"",{"$f":"IF(O17=\"\",\"\",IF(O17=\"\",\"\",CONCATENATE(DIGITADOR!$M$1,E17,P17)))","v":""},"","",null,{"$f":"IF(V17=\"\",\"\",VLOOKUP(V17,'OTRAS REFERENTES'!$A$7:$B$9,2,FALSE))","v":""},null,"",null,null,{"$f":"IF(AA17=\"\",\"\",INDEX(REFERENTES!$G:$H,MATCH(AA17,REFERENTES!$G:$G,0),2))","v":""},{"$f":"IF(AA17=\"\",\"\",INDEX(REFERENTES!$G:$I,MATCH(AA17,REFERENTES!$G:$G,0),3))","v":""}]
[null,{"$f":"DIGITADOR!$B$2","v":""},14,{"$f":"IF(S18=\"\",\"\",IF(COUNTIF($S$5:S18, S18)>1, \"\", S18))","v":""},null,null,"","","",null,{"$f":"IF(J18=\"\",\"\",INDEX(REFERENTES!$V:$W,MATCH(J18,REFERENTES!$W:$W,0),1))","v":""},"",null,null,null,{"$f":"IF(O18=\"\",\"\",VLOOKUP(O18,'OTRAS REFERENTES'!$L$5:$M$148,2,FALSE))","v":""},14,"",{"$f":"IF(O18=\"\",\"\",IF(O18=\"\",\"\",CONCATENATE(DIGITADOR!$M$1,E18,P18)))","v":""},"","",null,{"$f":"IF(V18=\"\",\"\",VLOOKUP(V18,'OTRAS REFERENTES'!$A$7:$B$9,2,FALSE))","v":""},null,"",null,null,{"$f":"IF(AA18=\"\",\"\",INDEX(REFERENTES!$G:$H,MATCH(AA18,REFERENTES!$G:$G,0),2))","v":""},{"$f":"IF(AA18=\"\",\"\",INDEX(REFERENTES!$G:$I,MATCH(AA18,REFERENTES!$G:$G,0),3))","v":""}]
[null,{"$f":"DIGITADOR!$B$2","v":""},15,{"$f":"IF(S19=\"\",\"\",IF(COUNTIF($S$5:S19, S19)>1, \"\", S19))","v":""},null,null,"","","",null,{"$f":"IF(J19=\"\",\"\",INDEX(REFERENTES!$V:$W,MATCH(J19,REFERENTES!$W:$W,0),1))","v":""},"",null,null,null,{"$f":"IF(O19=\"\",\"\",VLOOKUP(O19,'OTRAS REFERENTES'!$L$5:$M$148,2,FALSE))","v":""},15,"",{"$f":"IF(O19=\"\",\"\",IF(O19=\"\",\"\",CONCATENATE(DIGITADOR!$M$1,E19,P19)))","v":""},"","",null,{"$f":"IF(V19=\"\",\"\",VLOOKUP(V19,'OTRAS REFERENTES'!$A$7:$B$9,2,FALSE))","v":""},null,"",null,null,{"$f":"IF(AA19=\"\",\"\",INDEX(REFERENTES!$G:$H,MATCH(AA19,REFERENTES!$G:$G,0),2))","v":""},{"$f":"IF(AA19=\"\",\"\",INDEX(REFERENTES!$G:$I,MATCH(AA19,REFERENTES!$G:$G,0),3))","v":""}]
[null,{"$f":"DIGITADOR!$B$2","v":""},16,{"$f":"IF(S20=\"\",\"\",IF(COUNTIF($S$5:S20, S20)>1, \"\", S20))","v":""},null,null,"","","",null,{"$f":"IF(J20=\"\",\"\",INDEX(REFERENTES!$V:$W,MATCH(J20,REFERENTES!$W:$W,0),1))","v":""},"",null,null,null,{"$f":"IF(O20=\"\",\"\",VLOOKUP(O20,'OTRAS REFERENTES'!$L$5:$M$148,2,FALSE))","v":""},16,"",{"$f":"IF(O20=\"\",\"\",IF(O20=\"\",\"\",CONCATENATE(DIGITADOR!$M$1,E20,P20)))","v":""},"","",null,{"$f":"IF(V20=\"\",\"\",VLOOKUP(V20,'OTRAS REFERENTES'!$A$7:$B$9,2,FALSE))","v":""},null,"",null,null,{"$f":"IF(AA20=\"\",\"\",INDEX(REFERENTES!$G:$H,MATCH(AA20,REFERENTES!$G:$G,0),2))","v":""},{"$f":"IF(AA20=\"\",\"\",INDEX(REFERENTES!$G:$I,MATCH(AA20,REFERENTES!$G:$G,0),3))","v":""}]
[null,{"$f":"DIGITADOR!$B$2","v":""},17,{"$f":"IF(S21=\"\",\"\",IF(COUNTIF($S$5:S21, S21)>1, \"\", S21))","v":""},null,null,"","","",null,{"$f":"IF(J21=\"\",\"\",INDEX(REFERENTES!$V:$W,MATCH(J21,REFERENTES!$W:$W,0),1))","v":""},"",null,null,null,{"$f":"IF(O21=\"\",\"\",VLOOKUP(O21,'OTRAS REFERENTES'!$L$5:$M$148,2,FALSE))","v":""},17,"",{"$f":"IF(O21=\"\",\"\",IF(O21=\"\",\"\",CONCATENATE(DIGITADOR!$M$1,E21,P21)))","v":""},"","",null,{"$f":"IF(V21=\"\",\"\",VLOOKUP(V21,'OTRAS REFERENTES'!$A$7:$B$9,2,FALSE))","v":""},null,"",null,null,{"$f":"IF(AA21=\"\",\"\",INDEX(REFERENTES!$G:$H,MATCH(AA21,REFERENTES!$G:$G,0),2))","v":""},{"$f":"IF(AA21=\"\",\"\",INDEX(REFERENTES!$G:$I,MATCH(AA21,REFERENTES!$G:$G,0),3))","v":""}]
[null,{"$f":"DIGITADOR!$B$2","v":""},18,{"$f":"IF(S22=\"\",\"\",IF(COUNTIF($S$5:S22, S22)>1, \"\", S22))","v":""},null,null,"","","",null,{"$f":"IF(J22=\"\",\"\",INDEX(REFERENTES!$V:$W,MATCH(J22,REFERENTES!$W:$W,0),1))","v":""},"",null,null,null,{"$f":"IF(O22=\"\",\"\",VLOOKUP(O22,'OTRAS REFERENTES'!$L$5:$M$148,2,FALSE))","v":""},18,"",{"$f":"IF(O22=\"\",\"\",IF(O22=\"\",\"\",CONCATENATE(DIGITADOR!$M$1,E22,P22)))","v":""},"","",null,{"$f":"IF(V22=\"\",\"\",VLOOKUP(V22,'OTRAS REFERENTES'!$A$7:$B$9,2,FALSE))","v":""},null,"",null,null,{"$f":"IF(AA22=\"\",\"\",INDEX(REFERENTES!$G:$H,MATCH(AA22,REFERENTES!$G:$G,0),2))","v":""},{"$f":"IF(AA22=\"\",\"\",INDEX(REFERENTES!$G:$I,MATCH(AA22,REFERENTES!$G:$G,0),3))","v":""}]
[null,{"$f":"DIGITADOR!$B$2","v":""},19,{"$f":"IF(S23=\"\",\"\",IF(COUNTIF($S$5:S23, S23)>1, \"\", S23))","v":""},null,null,"","","",null,{"$f":"IF(J23=\"\",\"\",INDEX(REFERENTES!$V:$W,MATCH(J23,REFERENTES!$W:$W,0),1))","v":""},"",null,null,null,{"$f":"IF(O23=\"\",\"\",VLOOKUP(O23,'OTRAS REFERENTES'!$L$5:$M$148,2,FALSE))","v":""},19,"",{"$f":"IF(O23=\"\",\"\",IF(O23=\"\",\"\",CONCATENATE(DIGITADOR!$M$1,E23,P23)))","v":""},"","",null,{"$f":"IF(V23=\"\",\"\",VLOOKUP(V23,'OTRAS REFERENTES'!$A$7:$B$9,2,FALSE))","v":""},null,"",null,null,{"$f":"IF(AA23=\"\",\"\",INDEX(REFERENTES!$G:$H,MATCH(AA23,REFERENTES!$G:$G,0),2))","v":""},{"$f":"IF(AA23=\"\",\"\",INDEX(REFERENTES!$G:$I,MATCH(AA23,REFERENTES!$G:$G,0),3))","v":""}]
[null,{"$f":"DIGITADOR!$B$2","v":""},20,{"$f":"IF(S24=\"\",\"\",IF(COUNTIF($S$5:S24, S24)>1, \"\", S24))","v":""},null,null,"","","",null,{"$f":"IF(J24=\"\",\"\",INDEX(REFERENTES!$V:$W,MATCH(J24,REFERENTES!$W:$W,0),1))","v":""},"",null,null,null,{"$f":"IF(O24=\"\",\"\",VLOOKUP(O24,'OTRAS REFERENTES'!$L$5:$M$148,2,FALSE))","v":""},20,"",{"$f":"IF(O24=\"\",\"\",IF(O24=\"\",\"\",CONCATENATE(DIGITADOR!$M$1,E24,P24)))","v":""},"","",null,{"$f":"IF(V24=\"\",\"\",VLOOKUP(V24,'OTRAS REFERENTES'!$A$7:$B$9,2,FALSE))","v":""},null,"",null,null,{"$f":"IF(AA24=\"\",\"\",INDEX(REFERENTES!$G:$H,MATCH(AA24,REFERENTES!$G:$G,0),2))","v":""},{"$f":"IF(AA24=\"\",\"\",INDEX(REFERENTES!$G:$I,MATCH(AA24,REFERENTES!$G:$G,0),3))","v":""}]
[null,{"$f":"DIGITADOR!$B$2","v":""},21,{"$f":"IF(S25=\"\",\"\",IF(COUNTIF($S$5:S25, S25)>1, \"\", S25))","v":""},null,null,"","","",null,{"$f":"IF(J25=\"\",\"\",INDEX(REFERENTES!$V:$W,MATCH(J25,REFERENTES!$W:$W,0),1))","v":""},"",null,null,null,{"$f":"IF(O25=\"\",\"\",VLOOKUP(O25,'OTRAS REFERENTES'!$L$5:$M$148,2,FALSE))","v":""},21,"",{"$f":"IF(O25=\"\",\"\",IF(O25=\"\",\"\",CONCATENATE(DIGITADOR!$M$1,E25,P25)))","v":""},"","",null,{"$f":"IF(V25=\"\",\"\",VLOOKUP(V25,'OTRAS REFERENTES'!$A$7:$B$9,2,FALSE))","v":""},null,"",null,null,{"$f":"IF(AA25=\"\",\"\",INDEX(REFERENTES!$G:$H,MATCH(AA25,REFERENTES!$G:$G,0),2))","v":""},{"$f":"IF(AA25=\"\",\"\",INDEX(REFERENTES!$G:$I,MATCH(AA25,REFERENTES!$G:$G,0),3))","v":""}]
[null,{"$f":"DIGITADOR!$B$2","v":""},22,{"$f":"IF(S26=\"\",\"\",IF(COUNTIF($S$5:S26, S26)>1, \"\", S26))","v":""},null,null,"","","",null,{"$f":"IF(J26=\"\",\"\",INDEX(REFERENTES!$V:$W,MATCH(J26,REFERENTES!$W:$W,0),1))","v":""},"",null,null,null,{"$f":"IF(O26=\"\",\"\",VLOOKUP(O26,'OTRAS REFERENTES'!$L$5:$M$148,2,FALSE))","v":""},22,"",{"$f":"IF(O26=\"\",\"\",IF(O26=\"\",\"\",CONCATENATE(DIGITADOR!$M$1,E26,P26)))","v":""},"","",null,{"$f":"IF(V26=\"\",\"\",VLOOKUP(V26,'OTRAS REFERENTES'!$A$7:$B$9,2,FALSE))","v":""},null,"",null,null,{"$f":"IF(AA26=\"\",\"\",INDEX(REFERENTES!$G:$H,MATCH(AA26,REFERENTES!$G:$G,0),2))","v":""},{"$f":"IF(AA26=\"\",\"\",INDEX(REFERENTES!$G:$I,MATCH(AA26,REFERENTES!$G:$G,0),3))","v":""}]
[null,{"$f":"DIGITADOR!$B$2","v":""},23,{"$f":"IF(S27=\"\",\"\",IF(COUNTIF($S$5:S27, S27)>1, \"\", S27))","v":""},null,null,"","","",null,{"$f":"IF(J27=\"\",\"\",INDEX(REFERENTES!$V:$W,MATCH(J27,REFERENTES!$W:$W,0),1))","v":""},"",null,null,null,{"$f":"IF(O27=\"\",\"\",VLOOKUP(O27,'OTRAS REFERENTES'!$L$5:$M$148,2,FALSE))","v":""},23,"",{"$f":"IF(O27=\"\",\"\",IF(O27=\"\",\"\",CONCATENATE(DIGITADOR!$M$1,E27,P27)))","v":""},"","",null,{"$f":"IF(V27=\"\",\"\",VLOOKUP(V27,'OTRAS REFERENTES'!$A$7:$B$9,2,FALSE))","v":""},null,"",null,null,{"$f":"IF(AA27=\"\",\"\",INDEX(REFERENTES!$G:$H,MATCH(AA27,REFERENTES!$G:$G,0),2))","v":""},{"$f":"IF(AA27=\"\",\"\",INDEX(REFERENTES!$G:$I,MATCH(AA27,REFERENTES!$G:$G,0),3))","v":""}]
[null,{"$f":"DIGITADOR!$B$2","v":""},24,{"$f":"IF(S28=\"\",\"\",IF(COUNTIF($S$5:S28, S28)>1, \"\", S28))","v":""},null,null,"","","",null,{"$f":"IF(J28=\"\",\"\",INDEX(REFERENTES!$V:$W,MATCH(J28,REFERENTES!$W:$W,0),1))","v":""},"",null,null,null,{"$f":"IF(O28=\"\",\"\",VLOOKUP(O28,'OTRAS REFERENTES'!$L$5:$M$148,2,FALSE))","v":""},24,"",{"$f":"IF(O28=\"\",\"\",IF(O28=\"\",\"\",CONCATENATE(DIGITADOR!$M$1,E28,P28)))","v":""},"","",null,{"$f":"IF(V28=\"\",\"\",VLOOKUP(V28,'OTRAS REFERENTES'!$A$7:$B$9,2,FALSE))","v":""},null,"",null,null,{"$f":"IF(AA28=\"\",\"\",INDEX(REFERENTES!$G:$H,MATCH(AA28,REFERENTES!$G:$G,0),2))","v":""},{"$f":"IF(AA28=\"\",\"\",INDEX(REFERENTES!$G:$I,MATCH(AA28,REFERENTES!$G:$G,0),3))","v":""}]
[null,{"$f":"DIGITADOR!$B$2","v":""},25,{"$f":"IF(S29=\"\",\"\",IF(COUNTIF($S$5:S29, S29)>1, \"\", S29))","v":""},null,null,"","","",null,{"$f":"IF(J29=\"\",\"\",INDEX(REFERENTES!$V:$W,MATCH(J29,REFERENTES!$W:$W,0),1))","v":""},"",null,null,null,{"$f":"IF(O29=\"\",\"\",VLOOKUP(O29,'OTRAS REFERENTES'!$L$5:$M$148,2,FALSE))","v":""},25,"",{"$f":"IF(O29=\"\",\"\",IF(O29=\"\",\"\",CONCATENATE(DIGITADOR!$M$1,E29,P29)))","v":""},"","",null,{"$f":"IF(V29=\"\",\"\",VLOOKUP(V29,'OTRAS REFERENTES'!$A$7:$B$9,2,FALSE))","v":""},null,"",null,null,{"$f":"IF(AA29=\"\",\"\",INDEX(REFERENTES!$G:$H,MATCH(AA29,REFERENTES!$G:$G,0),2))","v":""},{"$f":"IF(AA29=\"\",\"\",INDEX(REFERENTES!$G:$I,MATCH(AA29,REFERENTES!$G:$G,0),3))","v":""}]
[null,{"$f":"DIGITADOR!$B$2","v":""},26,{"$f":"IF(S30=\"\",\"\",IF(COUNTIF($S$5:S30, S30)>1, \"\", S30))","v":""},null,null,"","","",null,{"$f":"IF(J30=\"\",\"\",INDEX(REFERENTES!$V:$W,MATCH(J30,REFERENTES!$W:$W,0),1))","v":""},"",null,null,null,{"$f":"IF(O30=\"\",\"\",VLOOKUP(O30,'OTRAS REFERENTES'!$L$5:$M$148,2,FALSE))","v":""},26,"",{"$f":"IF(O30=\"\",\"\",IF(O30=\"\",\"\",CONCATENATE(DIGITADOR!$M$1,E30,P30)))","v":""},"","",null,{"$f":"IF(V30=\"\",\"\",VLOOKUP(V30,'OTRAS REFERENTES'!$A$7:$B$9,2,FALSE))","v":""},null,"",null,null,{"$f":"IF(AA30=\"\",\"\",INDEX(REFERENTES!$G:$H,MATCH(AA30,REFERENTES!$G:$G,0),2))","v":""},{"$f":"IF(AA30=\"\",\"\",INDEX(REFERENTES!$G:$I,MATCH(AA30,REFERENTES!$G:$G,0),3))","v":""}]
[null,{"$f":"DIGITADOR!$B$2","v":""},27,{"$f":"IF(S31=\"\",\"\",IF(COUNTIF($S$5:S31, S31)>1, \"\", S31))","v":""},null,null,"","","",null,{"$f":"IF(J31=\"\",\"\",INDEX(REFERENTES!$V:$W,MATCH(J31,REFERENTES!$W:$W,0),1))","v":""},"",null,null,null,{"$f":"IF(O31=\"\",\"\",VLOOKUP(O31,'OTRAS REFERENTES'!$L$5:$M$148,2,FALSE))","v":""},27,"",{"$f":"IF(O31=\"\",\"\",IF(O31=\"\",\"\",CONCATENATE(DIGITADOR!$M$1,E31,P31)))","v":""},"","",null,{"$f":"IF(V31=\"\",\"\",VLOOKUP(V31,'OTRAS REFERENTES'!$A$7:$B$9,2,FALSE))","v":""},null,"",null,null,{"$f":"IF(AA31=\"\",\"\",INDEX(REFERENTES!$G:$H,MATCH(AA31,REFERENTES!$G:$G,0),2))","v":""},{"$f":"IF(AA31=\"\",\"\",INDEX(REFERENTES!$G:$I,MATCH(AA31,REFERENTES!$G:$G,0),3))","v":""}]
[null,{"$f":"DIGITADOR!$B$2","v":""},28,{"$f":"IF(S32=\"\",\"\",IF(COUNTIF($S$5:S32, S32)>1, \"\", S32))","v":""},null,null,"","","",null,{"$f":"IF(J32=\"\",\"\",INDEX(REFERENTES!$V:$W,MATCH(J32,REFERENTES!$W:$W,0),1))","v":""},"",null,null,null,{"$f":"IF(O32=\"\",\"\",VLOOKUP(O32,'OTRAS REFERENTES'!$L$5:$M$148,2,FALSE))","v":""},28,"",{"$f":"IF(O32=\"\",\"\",IF(O32=\"\",\"\",CONCATENATE(DIGITADOR!$M$1,E32,P32)))","v":""},"","",null,{"$f":"IF(V32=\"\",\"\",VLOOKUP(V32,'OTRAS REFERENTES'!$A$7:$B$9,2,FALSE))","v":""},null,"",null,null,{"$f":"IF(AA32=\"\",\"\",INDEX(REFERENTES!$G:$H,MATCH(AA32,REFERENTES!$G:$G,0),2))","v":""},{"$f":"IF(AA32=\"\",\"\",INDEX(REFERENTES!$G:$I,MATCH(AA32,REFERENTES!$G:$G,0),3))","v":""}]
[null,{"$f":"DIGITADOR!$B$2","v":""},29,{"$f":"IF(S33=\"\",\"\",IF(COUNTIF($S$5:S33, S33)>1, \"\", S33))","v":""},null,null,"","","",null,{"$f":"IF(J33=\"\",\"\",INDEX(REFERENTES!$V:$W,MATCH(J33,REFERENTES!$W:$W,0),1))","v":""},"",null,null,null,{"$f":"IF(O33=\"\",\"\",VLOOKUP(O33,'OTRAS REFERENTES'!$L$5:$M$148,2,FALSE))","v":""},29,"",{"$f":"IF(O33=\"\",\"\",IF(O33=\"\",\"\",CONCATENATE(DIGITADOR!$M$1,E33,P33)))","v":""},"","",null,{"$f":"IF(V33=\"\",\"\",VLOOKUP(V33,'OTRAS REFERENTES'!$A$7:$B$9,2,FALSE))","v":""},null,"",null,null,{"$f":"IF(AA33=\"\",\"\",INDEX(REFERENTES!$G:$H,MATCH(AA33,REFERENTES!$G:$G,0),2))","v":""},{"$f":"IF(AA33=\"\",\"\",INDEX(REFERENTES!$G:$I,MATCH(AA33,REFERENTES!$G:$G,0),3))","v":""}]
[null,{"$f":"DIGITADOR!$B$2","v":""},30,{"$f":"IF(S34=\"\",\"\",IF(COUNTIF($S$5:S34, S34)>1, \"\", S34))","v":""},null,null,"","","",null,{"$f":"IF(J34=\"\",\"\",INDEX(REFERENTES!$V:$W,MATCH(J34,REFERENTES!$W:$W,0),1))","v":""},"",null,null,null,{"$f":"IF(O34=\"\",\"\",VLOOKUP(O34,'OTRAS REFERENTES'!$L$5:$M$148,2,FALSE))","v":""},30,"",{"$f":"IF(O34=\"\",\"\",IF(O34=\"\",\"\",CONCATENATE(DIGITADOR!$M$1,E34,P34)))","v":""},"","",null,{"$f":"IF(V34=\"\",\"\",VLOOKUP(V34,'OTRAS REFERENTES'!$A$7:$B$9,2,FALSE))","v":""},null,"",null,null,{"$f":"IF(AA34=\"\",\"\",INDEX(REFERENTES!$G:$H,MATCH(AA34,REFERENTES!$G:$G,0),2))","v":""},{"$f":"IF(AA34=\"\",\"\",INDEX(REFERENTES!$G:$I,MATCH(AA34,REFERENTES!$G:$G,0),3))","v":""}]
[null,{"$f":"DIGITADOR!$B$2","v":""},31,{"$f":"IF(S35=\"\",\"\",IF(COUNTIF($S$5:S35, S35)>1, \"\", S35))","v":""},null,null,"","","",null,{"$f":"IF(J35=\"\",\"\",INDEX(REFERENTES!$V:$W,MATCH(J35,REFERENTES!$W:$W,0),1))","v":""},"",null,null,null,{"$f":"IF(O35=\"\",\"\",VLOOKUP(O35,'OTRAS REFERENTES'!$L$5:$M$148,2,FALSE))","v":""},31,"",{"$f":"IF(O35=\"\",\"\",IF(O35=\"\",\"\",CONCATENATE(DIGITADOR!$M$1,E35,P35)))","v":""},"","",null,{"$f":"IF(V35=\"\",\"\",VLOOKUP(V35,'OTRAS REFERENTES'!$A$7:$B$9,2,FALSE))","v":""},null,"",null,null,{"$f":"IF(AA35=\"\",\"\",INDEX(REFERENTES!$G:$H,MATCH(AA35,REFERENTES!$G:$G,0),2))","v":""},{"$f":"IF(AA35=\"\",\"\",INDEX(REFERENTES!$G:$I,MATCH(AA35,REFERENTES!$G:$G,0),3))","v":""}]
[null,{"$f":"DIGITADOR!$B$2","v":""},32,{"$f":"IF(S36=\"\",\"\",IF(COUNTIF($S$5:S36, S36)>1, \"\", S36))","v":""},null,null,"","","",null,{"$f":"IF(J36=\"\",\"\",INDEX(REFERENTES!$V:$W,MATCH(J36,REFERENTES!$W:$W,0),1))","v":""},"",null,null,null,{"$f":"IF(O36=\"\",\"\",VLOOKUP(O36,'OTRAS REFERENTES'!$L$5:$M$148,2,FALSE))","v":""},32,"",{"$f":"IF(O36=\"\",\"\",IF(O36=\"\",\"\",CONCATENATE(DIGITADOR!$M$1,E36,P36)))","v":""},"","",null,{"$f":"IF(V36=\"\",\"\",VLOOKUP(V36,'OTRAS REFERENTES'!$A$7:$B$9,2,FALSE))","v":""},null,"",null,null,{"$f":"IF(AA36=\"\",\"\",INDEX(REFERENTES!$G:$H,MATCH(AA36,REFERENTES!$G:$G,0),2))","v":""},{"$f":"IF(AA36=\"\",\"\",INDEX(REFERENTES!$G:$I,MATCH(AA36,REFERENTES!$G:$G,0),3))","v":""}]
[null,{"$f":"DIGITADOR!$B$2","v":""},33,{"$f":"IF(S37=\"\",\"\",IF(COUNTIF($S$5:S37, S37)>1, \"\", S37))","v":""},null,null,"","","",null,{"$f":"IF(J37=\"\",\"\",INDEX(REFERENTES!$V:$W,MATCH(J37,REFERENTES!$W:$W,0),1))","v":""},"",null,null,null,{"$f":"IF(O37=\"\",\"\",VLOOKUP(O37,'OTRAS REFERENTES'!$L$5:$M$148,2,FALSE))","v":""},33,"",{"$f":"IF(O37=\"\",\"\",IF(O37=\"\",\"\",CONCATENATE(DIGITADOR!$M$1,E37,P37)))","v":""},"","",null,{"$f":"IF(V37=\"\",\"\",VLOOKUP(V37,'OTRAS REFERENTES'!$A$7:$B$9,2,FALSE))","v":""},null,"",null,null,{"$f":"IF(AA37=\"\",\"\",INDEX(REFERENTES!$G:$H,MATCH(AA37,REFERENTES!$G:$G,0),2))","v":""},{"$f":"IF(AA37=\"\",\"\",INDEX(REFERENTES!$G:$I,MATCH(AA37,REFERENTES!$G:$G,0),3))","v":""}]
[null,{"$f":"DIGITADOR!$B$2","v":""},34,{"$f":"IF(S38=\"\",\"\",IF(COUNTIF($S$5:S38, S38)>1, \"\", S38))","v":""},null,null,"","","",null,{"$f":"IF(J38=\"\",\"\",INDEX(REFERENTES!$V:$W,MATCH(J38,REFERENTES!$W:$W,0),1))","v":""},"",null,null,null,{"$f":"IF(O38=\"\",\"\",VLOOKUP(O38,'OTRAS REFERENTES'!$L$5:$M$148,2,FALSE))","v":""},34,"",{"$f":"IF(O38=\"\",\"\",IF(O38=\"\",\"\",CONCATENATE(DIGITADOR!$M$1,E38,P38)))","v":""},"","",null,{"$f":"IF(V38=\"\",\"\",VLOOKUP(V38,'OTRAS REFERENTES'!$A$7:$B$9,2,FALSE))","v":""},null,"",null,null,{"$f":"IF(AA38=\"\",\"\",INDEX(REFERENTES!$G:$H,MATCH(AA38,REFERENTES!$G:$G,0),2))","v":""},{"$f":"IF(AA38=\"\",\"\",INDEX(REFERENTES!$G:$I,MATCH(AA38,REFERENTES!$G:$G,0),3))","v":""}]
[null,{"$f":"DIGITADOR!$B$2","v":""},35,{"$f":"IF(S39=\"\",\"\",IF(COUNTIF($S$5:S39, S39)>1, \"\", S39))","v":""},null,null,"","","",null,{"$f":"IF(J39=\"\",\"\",INDEX(REFERENTES!$V:$W,MATCH(J39,REFERENTES!$W:$W,0),1))","v":""},"",null,null,null,{"$f":"IF(O39=\"\",\"\",VLOOKUP(O39,'OTRAS REFERENTES'!$L$5:$M$148,2,FALSE))","v":""},35,"",{"$f":"IF(O39=\"\",\"\",IF(O39=\"\",\"\",CONCATENATE(DIGITADOR!$M$1,E39,P39)))","v":""},"","",null,{"$f":"IF(V39=\"\",\"\",VLOOKUP(V39,'OTRAS REFERENTES'!$A$7:$B$9,2,FALSE))","v":""},null,"",null,null,{"$f":"IF(AA39=\"\",\"\",INDEX(REFERENTES!$G:$H,MATCH(AA39,REFERENTES!$G:$G,0),2))","v":""},{"$f":"IF(AA39=\"\",\"\",INDEX(REFERENTES!$G:$I,MATCH(AA39,REFERENTES!$G:$G,0),3))","v":""}]
[null,{"$f":"DIGITADOR!$B$2","v":""},36,{"$f":"IF(S40=\"\",\"\",IF(COUNTIF($S$5:S40, S40)>1, \"\", S40))","v":""},null,null,"","","",null,{"$f":"IF(J40=\"\",\"\",INDEX(REFERENTES!$V:$W,MATCH(J40,REFERENTES!$W:$W,0),1))","v":""},"",null,null,null,{"$f":"IF(O40=\"\",\"\",VLOOKUP(O40,'OTRAS REFERENTES'!$L$5:$M$148,2,FALSE))","v":""},36,"",{"$f":"IF(O40=\"\",\"\",IF(O40=\"\",\"\",CONCATENATE(DIGITADOR!$M$1,E40,P40)))","v":""},"","",null,{"$f":"IF(V40=\"\",\"\",VLOOKUP(V40,'OTRAS REFERENTES'!$A$7:$B$9,2,FALSE))","v":""},null,"",null,null,{"$f":"IF(AA40=\"\",\"\",INDEX(REFERENTES!$G:$H,MATCH(AA40,REFERENTES!$G:$G,0),2))","v":""},{"$f":"IF(AA40=\"\",\"\",INDEX(REFERENTES!$G:$I,MATCH(AA40,REFERENTES!$G:$G,0),3))","v":""}]
[null,{"$f":"DIGITADOR!$B$2","v":""},37,{"$f":"IF(S41=\"\",\"\",IF(COUNTIF($S$5:S41, S41)>1, \"\", S41))","v":""},null,null,"","","",null,{"$f":"IF(J41=\"\",\"\",INDEX(REFERENTES!$V:$W,MATCH(J41,REFERENTES!$W:$W,0),1))","v":""},"",null,null,null,{"$f":"IF(O41=\"\",\"\",VLOOKUP(O41,'OTRAS REFERENTES'!$L$5:$M$148,2,FALSE))","v":""},37,"",{"$f":"IF(O41=\"\",\"\",IF(O41=\"\",\"\",CONCATENATE(DIGITADOR!$M$1,E41,P41)))","v":""},"","",null,{"$f":"IF(V41=\"\",\"\",VLOOKUP(V41,'OTRAS REFERENTES'!$A$7:$B$9,2,FALSE))","v":""},null,"",null,null,{"$f":"IF(AA41=\"\",\"\",INDEX(REFERENTES!$G:$H,MATCH(AA41,REFERENTES!$G:$G,0),2))","v":""},{"$f":"IF(AA41=\"\",\"\",INDEX(REFERENTES!$G:$I,MATCH(AA41,REFERENTES!$G:$G,0),3))","v":""}]
[null,{"$f":"DIGITADOR!$B$2","v":""},38,{"$f":"IF(S42=\"\",\"\",IF(COUNTIF($S$5:S42, S42)>1, \"\", S42))","v":""},null,null,"","","",null,{"$f":"IF(J42=\"\",\"\",INDEX(REFERENTES!$V:$W,MATCH(J42,REFERENTES!$W:$W,0),1))","v":""},"",null,null,null,{"$f":"IF(O42=\"\",\"\",VLOOKUP(O42,'OTRAS REFERENTES'!$L$5:$M$148,2,FALSE))","v":""},38,"",{"$f":"IF(O42=\"\",\"\",IF(O42=\"\",\"\",CONCATENATE(DIGITADOR!$M$1,E42,P42)))","v":""},"","",null,{"$f":"IF(V42=\"\",\"\",VLOOKUP(V42,'OTRAS REFERENTES'!$A$7:$B$9,2,FALSE))","v":""},null,"",null,null,{"$f":"IF(AA42=\"\",\"\",INDEX(REFERENTES!$G:$H,MATCH(AA42,REFERENTES!$G:$G,0),2))","v":""},{"$f":"IF(AA42=\"\",\"\",INDEX(REFERENTES!$G:$I,MATCH(AA42,REFERENTES!$G:$G,0),3))","v":""}]
[null,{"$f":"DIGITADOR!$B$2","v":""},39,{"$f":"IF(S43=\"\",\"\",IF(COUNTIF($S$5:S43, S43)>1, \"\", S43))","v":""},null,null,"","","",null,{"$f":"IF(J43=\"\",\"\",INDEX(REFERENTES!$V:$W,MATCH(J43,REFERENTES!$W:$W,0),1))","v":""},"",null,null,null,{"$f":"IF(O43=\"\",\"\",VLOOKUP(O43,'OTRAS REFERENTES'!$L$5:$M$148,2,FALSE))","v":""},39,"",{"$f":"IF(O43=\"\",\"\",IF(O43=\"\",\"\",CONCATENATE(DIGITADOR!$M$1,E43,P43)))","v":""},"","",null,{"$f":"IF(V43=\"\",\"\",VLOOKUP(V43,'OTRAS REFERENTES'!$A$7:$B$9,2,FALSE))","v":""},null,"",null,null,{"$f":"IF(AA43=\"\",\"\",INDEX(REFERENTES!$G:$H,MATCH(AA43,REFERENTES!$G:$G,0),2))","v":""},{"$f":"IF(AA43=\"\",\"\",INDEX(REFERENTES!$G:$I,MATCH(AA43,REFERENTES!$G:$G,0),3))","v":""}]
[null,{"$f":"DIGITADOR!$B$2","v":""},40,{"$f":"IF(S44=\"\",\"\",IF(COUNTIF($S$5:S44, S44)>1, \"\", S44))","v":""},null,null,"","","",null,{"$f":"IF(J44=\"\",\"\",INDEX(REFERENTES!$V:$W,MATCH(J44,REFERENTES!$W:$W,0),1))","v":""},"",null,null,null,{"$f":"IF(O44=\"\",\"\",VLOOKUP(O44,'OTRAS REFERENTES'!$L$5:$M$148,2,FALSE))","v":""},40,"",{"$f":"IF(O44=\"\",\"\",IF(O44=\"\",\"\",CONCATENATE(DIGITADOR!$M$1,E44,P44)))","v":""},"","",null,{"$f":"IF(V44=\"\",\"\",VLOOKUP(V44,'OTRAS REFERENTES'!$A$7:$B$9,2,FALSE))","v":""},null,"",null,null,{"$f":"IF(AA44=\"\",\"\",INDEX(REFERENTES!$G:$H,MATCH(AA44,REFERENTES!$G:$G,0),2))","v":""},{"$f":"IF(AA44=\"\",\"\",INDEX(REFERENTES!$G:$I,MATCH(AA44,REFERENTES!$G:$G,0),3))","v":""}]
[null,{"$f":"DIGITADOR!$B$2","v":""},41,{"$f":"IF(S45=\"\",\"\",IF(COUNTIF($S$5:S45, S45)>1, \"\", S45))","v":""},null,null,"","","",null,{"$f":"IF(J45=\"\",\"\",INDEX(REFERENTES!$V:$W,MATCH(J45,REFERENTES!$W:$W,0),1))","v":""},"",null,null,null,{"$f":"IF(O45=\"\",\"\",VLOOKUP(O45,'OTRAS REFERENTES'!$L$5:$M$148,2,FALSE))","v":""},41,"",{"$f":"IF(O45=\"\",\"\",IF(O45=\"\",\"\",CONCATENATE(DIGITADOR!$M$1,E45,P45)))","v":""},"","",null,{"$f":"IF(V45=\"\",\"\",VLOOKUP(V45,'OTRAS REFERENTES'!$A$7:$B$9,2,FALSE))","v":""},null,"",null,null,{"$f":"IF(AA45=\"\",\"\",INDEX(REFERENTES!$G:$H,MATCH(AA45,REFERENTES!$G:$G,0),2))","v":""},{"$f":"IF(AA45=\"\",\"\",INDEX(REFERENTES!$G:$I,MATCH(AA45,REFERENTES!$G:$G,0),3))","v":""}]
[null,{"$f":"DIGITADOR!$B$2","v":""},42,{"$f":"IF(S46=\"\",\"\",IF(COUNTIF($S$5:S46, S46)>1, \"\", S46))","v":""},null,null,"","","",null,{"$f":"IF(J46=\"\",\"\",INDEX(REFERENTES!$V:$W,MATCH(J46,REFERENTES!$W:$W,0),1))","v":""},"",null,null,null,{"$f":"IF(O46=\"\",\"\",VLOOKUP(O46,'OTRAS REFERENTES'!$L$5:$M$148,2,FALSE))","v":""},42,"",{"$f":"IF(O46=\"\",\"\",IF(O46=\"\",\"\",CONCATENATE(DIGITADOR!$M$1,E46,P46)))","v":""},"","",null,{"$f":"IF(V46=\"\",\"\",VLOOKUP(V46,'OTRAS REFERENTES'!$A$7:$B$9,2,FALSE))","v":""},null,"",null,null,{"$f":"IF(AA46=\"\",\"\",INDEX(REFERENTES!$G:$H,MATCH(AA46,REFERENTES!$G:$G,0),2))","v":""},{"$f":"IF(AA46=\"\",\"\",INDEX(REFERENTES!$G:$I,MATCH(AA46,REFERENTES!$G:$G,0),3))","v":""}]
[null,{"$f":"DIGITADOR!$B$2","v":""},43,{"$f":"IF(S47=\"\",\"\",IF(COUNTIF($S$5:S47, S47)>1, \"\", S47))","v":""},null,null,"","","",null,{"$f":"IF(J47=\"\",\"\",INDEX(REFERENTES!$V:$W,MATCH(J47,REFERENTES!$W:$W,0),1))","v":""},"",null,null,null,{"$f":"IF(O47=\"\",\"\",VLOOKUP(O47,'OTRAS REFERENTES'!$L$5:$M$148,2,FALSE))","v":""},43,"",{"$f":"IF(O47=\"\",\"\",IF(O47=\"\",\"\",CONCATENATE(DIGITADOR!$M$1,E47,P47)))","v":""},"","",null,{"$f":"IF(V47=\"\",\"\",VLOOKUP(V47,'OTRAS REFERENTES'!$A$7:$B$9,2,FALSE))","v":""},null,"",null,null,{"$f":"IF(AA47=\"\",\"\",INDEX(REFERENTES!$G:$H,MATCH(AA47,REFERENTES!$G:$G,0),2))","v":""},{"$f":"IF(AA47=\"\",\"\",INDEX(REFERENTES!$G:$I,MATCH(AA47,REFERENTES!$G:$G,0),3))","v":""}]
[null,{"$f":"DIGITADOR!$B$2","v":""},44,{"$f":"IF(S48=\"\",\"\",IF(COUNTIF($S$5:S48, S48)>1, \"\", S48))","v":""},null,null,"","","",null,{"$f":"IF(J48=\"\",\"\",INDEX(REFERENTES!$V:$W,MATCH(J48,REFERENTES!$W:$W,0),1))","v":""},"",null,null,null,{"$f":"IF(O48=\"\",\"\",VLOOKUP(O48,'OTRAS REFERENTES'!$L$5:$M$148,2,FALSE))","v":""},44,"",{"$f":"IF(O48=\"\",\"\",IF(O48=\"\",\"\",CONCATENATE(DIGITADOR!$M$1,E48,P48)))","v":""},"","",null,{"$f":"IF(V48=\"\",\"\",VLOOKUP(V48,'OTRAS REFERENTES'!$A$7:$B$9,2,FALSE))","v":""},null,"",null,null,{"$f":"IF(AA48=\"\",\"\",INDEX(REFERENTES!$G:$H,MATCH(AA48,REFERENTES!$G:$G,0),2))","v":""},{"$f":"IF(AA48=\"\",\"\",INDEX(REFERENTES!$G:$I,MATCH(AA48,REFERENTES!$G:$G,0),3))","v":""}]
[null,{"$f":"DIGITADOR!$B$2","v":""},45,{"$f":"IF(S49=\"\",\"\",IF(COUNTIF($S$5:S49, S49)>1, \"\", S49))","v":""},null,null,"","","",null,{"$f":"IF(J49=\"\",\"\",INDEX(REFERENTES!$V:$W,MATCH(J49,REFERENTES!$W:$W,0),1))","v":""},"",null,null,null,{"$f":"IF(O49=\"\",\"\",VLOOKUP(O49,'OTRAS REFERENTES'!$L$5:$M$148,2,FALSE))","v":""},45,"",{"$f":"IF(O49=\"\",\"\",IF(O49=\"\",\"\",CONCATENATE(DIGITADOR!$M$1,E49,P49)))","v":""},"","",null,{"$f":"IF(V49=\"\",\"\",VLOOKUP(V49,'OTRAS REFERENTES'!$A$7:$B$9,2,FALSE))","v":""},null,"",null,null,{"$f":"IF(AA49=\"\",\"\",INDEX(REFERENTES!$G:$H,MATCH(AA49,REFERENTES!$G:$G,0),2))","v":""},{"$f":"IF(AA49=\"\",\"\",INDEX(REFERENTES!$G:$I,MATCH(AA49,REFERENTES!$G:$G,0),3))","v":""}]
[null,{"$f":"DIGITADOR!$B$2","v":""},46,{"$f":"IF(S50=\"\",\"\",IF(COUNTIF($S$5:S50, S50)>1, \"\", S50))","v":""},null,null,"","","",null,{"$f":"IF(J50=\"\",\"\",INDEX(REFERENTES!$V:$W,MATCH(J50,REFERENTES!$W:$W,0),1))","v":""},"",null,null,null,{"$f":"IF(O50=\"\",\"\",VLOOKUP(O50,'OTRAS REFERENTES'!$L$5:$M$148,2,FALSE))","v":""},46,"",{"$f":"IF(O50=\"\",\"\",IF(O50=\"\",\"\",CONCATENATE(DIGITADOR!$M$1,E50,P50)))","v":""},"","",null,{"$f":"IF(V50=\"\",\"\",VLOOKUP(V50,'OTRAS REFERENTES'!$A$7:$B$9,2,FALSE))","v":""},null,"",null,null,{"$f":"IF(AA50=\"\",\"\",INDEX(REFERENTES!$G:$H,MATCH(AA50,REFERENTES!$G:$G,0),2))","v":""},{"$f":"IF(AA50=\"\",\"\",INDEX(REFERENTES!$G:$I,MATCH(AA50,REFERENTES!$G:$G,0),3))","v":""}]
[null,{"$f":"DIGITADOR!$B$2","v":""},47,{"$f":"IF(S51=\"\",\"\",IF(COUNTIF($S$5:S51, S51)>1, \"\", S51))","v":""},null,null,"","","",null,{"$f":"IF(J51=\"\",\"\",INDEX(REFERENTES!$V:$W,MATCH(J51,REFERENTES!$W:$W,0),1))","v":""},"",null,null,null,{"$f":"IF(O51=\"\",\"\",VLOOKUP(O51,'OTRAS REFERENTES'!$L$5:$M$148,2,FALSE))","v":""},47,"",{"$f":"IF(O51=\"\",\"\",IF(O51=\"\",\"\",CONCATENATE(DIGITADOR!$M$1,E51,P51)))","v":""},"","",null,{"$f":"IF(V51=\"\",\"\",VLOOKUP(V51,'OTRAS REFERENTES'!$A$7:$B$9,2,FALSE))","v":""},null,"",null,null,{"$f":"IF(AA51=\"\",\"\",INDEX(REFERENTES!$G:$H,MATCH(AA51,REFERENTES!$G:$G,0),2))","v":""},{"$f":"IF(AA51=\"\",\"\",INDEX(REFERENTES!$G:$I,MATCH(AA51,REFERENTES!$G:$G,0),3))","v":""}]
[null,{"$f":"DIGITADOR!$B$2","v":""},48,{"$f":"IF(S52=\"\",\"\",IF(COUNTIF($S$5:S52, S52)>1, \"\", S52))","v":""},null,null,"","","",null,{"$f":"IF(J52=\"\",\"\",INDEX(REFERENTES!$V:$W,MATCH(J52,REFERENTES!$W:$W,0),1))","v":""},"",null,null,null,{"$f":"IF(O52=\"\",\"\",VLOOKUP(O52,'OTRAS REFERENTES'!$L$5:$M$148,2,FALSE))","v":""},48,"",{"$f":"IF(O52=\"\",\"\",IF(O52=\"\",\"\",CONCATENATE(DIGITADOR!$M$1,E52,P52)))","v":""},"","",null,{"$f":"IF(V52=\"\",\"\",VLOOKUP(V52,'OTRAS REFERENTES'!$A$7:$B$9,2,FALSE))","v":""},null,"",null,null,{"$f":"IF(AA52=\"\",\"\",INDEX(REFERENTES!$G:$H,MATCH(AA52,REFERENTES!$G:$G,0),2))","v":""},{"$f":"IF(AA52=\"\",\"\",INDEX(REFERENTES!$G:$I,MATCH(AA52,REFERENTES!$G:$G,0),3))","v":""}]
[null,{"$f":"DIGITADOR!$B$2","v":""},49,{"$f":"IF(S53=\"\",\"\",IF(COUNTIF($S$5:S53, S53)>1, \"\", S53))","v":""},null,null,"","","",null,{"$f":"IF(J53=\"\",\"\",INDEX(REFERENTES!$V:$W,MATCH(J53,REFERENTES!$W:$W,0),1))","v":""},"",null,null,null,{"$f":"IF(O53=\"\",\"\",VLOOKUP(O53,'OTRAS REFERENTES'!$L$5:$M$148,2,FALSE))","v":""},49,"",{"$f":"IF(O53=\"\",\"\",IF(O53=\"\",\"\",CONCATENATE(DIGITADOR!$M$1,E53,P53)))","v":""},"","",null,{"$f":"IF(V53=\"\",\"\",VLOOKUP(V53,'OTRAS REFERENTES'!$A$7:$B$9,2,FALSE))","v":""},null,"",null,null,{"$f":"IF(AA53=\"\",\"\",INDEX(REFERENTES!$G:$H,MATCH(AA53,REFERENTES!$G:$G,0),2))","v":""},{"$f":"IF(AA53=\"\",\"\",INDEX(REFERENTES!$G:$I,MATCH(AA53,REFERENTES!$G:$G,0),3))","v":""}]
[null,{"$f":"DIGITADOR!$B$2","v":""},50,{"$f":"IF(S54=\"\",\"\",IF(COUNTIF($S$5:S54, S54)>1, \"\", S54))","v":""},null,null,"","","",null,{"$f":"IF(J54=\"\",\"\",INDEX(REFERENTES!$V:$W,MATCH(J54,REFERENTES!$W:$W,0),1))","v":""},"",null,null,null,{"$f":"IF(O54=\"\",\"\",VLOOKUP(O54,'OTRAS REFERENTES'!$L$5:$M$148,2,FALSE))","v":""},50,"",{"$f":"IF(O54=\"\",\"\",IF(O54=\"\",\"\",CONCATENATE(DIGITADOR!$M$1,E54,P54)))","v":""},"","",null,{"$f":"IF(V54=\"\",\"\",VLOOKUP(V54,'OTRAS REFERENTES'!$A$7:$B$9,2,FALSE))","v":""},null,"",null,null,{"$f":"IF(AA54=\"\",\"\",INDEX(REFERENTES!$G:$H,MATCH(AA54,REFERENTES!$G:$G,0),2))","v":""},{"$f":"IF(AA54=\"\",\"\",INDEX(REFERENTES!$G:$I,MATCH(AA54,REFERENTES!$G:$G,0),3))","v":""}]
[null,{"$f":"DIGITADOR!$B$2","v":""},51,{"$f":"IF(S55=\"\",\"\",IF(COUNTIF($S$5:S55, S55)>1, \"\", S55))","v":""},null,null,"","","",null,{"$f":"IF(J55=\"\",\"\",INDEX(REFERENTES!$V:$W,MATCH(J55,REFERENTES!$W:$W,0),1))","v":""},"",null,null,null,{"$f":"IF(O55=\"\",\"\",VLOOKUP(O55,'OTRAS REFERENTES'!$L$5:$M$148,2,FALSE))","v":""},51,"",{"$f":"IF(O55=\"\",\"\",IF(O55=\"\",\"\",CONCATENATE(DIGITADOR!$M$1,E55,P55)))","v":""},"","",null,{"$f":"IF(V55=\"\",\"\",VLOOKUP(V55,'OTRAS REFERENTES'!$A$7:$B$9,2,FALSE))","v":""},null,"",null,null,{"$f":"IF(AA55=\"\",\"\",INDEX(REFERENTES!$G:$H,MATCH(AA55,REFERENTES!$G:$G,0),2))","v":""},{"$f":"IF(AA55=\"\",\"\",INDEX(REFERENTES!$G:$I,MATCH(AA55,REFERENTES!$G:$G,0),3))","v":""}]
[null,{"$f":"DIGITADOR!$B$2","v":""},52,{"$f":"IF(S56=\"\",\"\",IF(COUNTIF($S$5:S56, S56)>1, \"\", S56))","v":""},null,null,"","","",null,{"$f":"IF(J56=\"\",\"\",INDEX(REFERENTES!$V:$W,MATCH(J56,REFERENTES!$W:$W,0),1))","v":""},"",null,null,null,{"$f":"IF(O56=\"\",\"\",VLOOKUP(O56,'OTRAS REFERENTES'!$L$5:$M$148,2,FALSE))","v":""},52,"",{"$f":"IF(O56=\"\",\"\",IF(O56=\"\",\"\",CONCATENATE(DIGITADOR!$M$1,E56,P56)))","v":""},"","",null,{"$f":"IF(V56=\"\",\"\",VLOOKUP(V56,'OTRAS REFERENTES'!$A$7:$B$9,2,FALSE))","v":""},null,"",null,null,{"$f":"IF(AA56=\"\",\"\",INDEX(REFERENTES!$G:$H,MATCH(AA56,REFERENTES!$G:$G,0),2))","v":""},{"$f":"IF(AA56=\"\",\"\",INDEX(REFERENTES!$G:$I,MATCH(AA56,REFERENTES!$G:$G,0),3))","v":""}]
[null,{"$f":"DIGITADOR!$B$2","v":""},53,{"$f":"IF(S57=\"\",\"\",IF(COUNTIF($S$5:S57, S57)>1, \"\", S57))","v":""},null,null,"","","",null,{"$f":"IF(J57=\"\",\"\",INDEX(REFERENTES!$V:$W,MATCH(J57,REFERENTES!$W:$W,0),1))","v":""},"",null,null,null,{"$f":"IF(O57=\"\",\"\",VLOOKUP(O57,'OTRAS REFERENTES'!$L$5:$M$148,2,FALSE))","v":""},53,"",{"$f":"IF(O57=\"\",\"\",IF(O57=\"\",\"\",CONCATENATE(DIGITADOR!$M$1,E57,P57)))","v":""},"","",null,{"$f":"IF(V57=\"\",\"\",VLOOKUP(V57,'OTRAS REFERENTES'!$A$7:$B$9,2,FALSE))","v":""},null,"",null,null,{"$f":"IF(AA57=\"\",\"\",INDEX(REFERENTES!$G:$H,MATCH(AA57,REFERENTES!$G:$G,0),2))","v":""},{"$f":"IF(AA57=\"\",\"\",INDEX(REFERENTES!$G:$I,MATCH(AA57,REFERENTES!$G:$G,0),3))","v":""}]
[null,{"$f":"DIGITADOR!$B$2","v":""},54,{"$f":"IF(S58=\"\",\"\",IF(COUNTIF($S$5:S58, S58)>1, \"\", S58))","v":""},null,null,"","","",null,{"$f":"IF(J58=\"\",\"\",INDEX(REFERENTES!$V:$W,MATCH(J58,REFERENTES!$W:$W,0),1))","v":""},"",null,null,null,{"$f":"IF(O58=\"\",\"\",VLOOKUP(O58,'OTRAS REFERENTES'!$L$5:$M$148,2,FALSE))","v":""},54,"",{"$f":"IF(O58=\"\",\"\",IF(O58=\"\",\"\",CONCATENATE(DIGITADOR!$M$1,E58,P58)))","v":""},"","",null,{"$f":"IF(V58=\"\",\"\",VLOOKUP(V58,'OTRAS REFERENTES'!$A$7:$B$9,2,FALSE))","v":""},null,"",null,null,{"$f":"IF(AA58=\"\",\"\",INDEX(REFERENTES!$G:$H,MATCH(AA58,REFERENTES!$G:$G,0),2))","v":""},{"$f":"IF(AA58=\"\",\"\",INDEX(REFERENTES!$G:$I,MATCH(AA58,REFERENTES!$G:$G,0),3))","v":""}]
[null,{"$f":"DIGITADOR!$B$2","v":""},55,{"$f":"IF(S59=\"\",\"\",IF(COUNTIF($S$5:S59, S59)>1, \"\", S59))","v":""},null,null,"","","",null,{"$f":"IF(J59=\"\",\"\",INDEX(REFERENTES!$V:$W,MATCH(J59,REFERENTES!$W:$W,0),1))","v":""},"",null,null,null,{"$f":"IF(O59=\"\",\"\",VLOOKUP(O59,'OTRAS REFERENTES'!$L$5:$M$148,2,FALSE))","v":""},55,"",{"$f":"IF(O59=\"\",\"\",IF(O59=\"\",\"\",CONCATENATE(DIGITADOR!$M$1,E59,P59)))","v":""},"","",null,{"$f":"IF(V59=\"\",\"\",VLOOKUP(V59,'OTRAS REFERENTES'!$A$7:$B$9,2,FALSE))","v":""},null,"",null,null,{"$f":"IF(AA59=\"\",\"\",INDEX(REFERENTES!$G:$H,MATCH(AA59,REFERENTES!$G:$G,0),2))","v":""},{"$f":"IF(AA59=\"\",\"\",INDEX(REFERENTES!$G:$I,MATCH(AA59,REFERENTES!$G:$G,0),3))","v":""}]
[null,{"$f":"DIGITADOR!$B$2","v":""},56,{"$f":"IF(S60=\"\",\"\",IF(COUNTIF($S$5:S60, S60)>1, \"\", S60))","v":""},null,null,"","","",null,{"$f":"IF(J60=\"\",\"\",INDEX(REFERENTES!$V:$W,MATCH(J60,REFERENTES!$W:$W,0),1))","v":""},"",null,null,null,{"$f":"IF(O60=\"\",\"\",VLOOKUP(O60,'OTRAS REFERENTES'!$L$5:$M$148,2,FALSE))","v":""},56,"",{"$f":"IF(O60=\"\",\"\",IF(O60=\"\",\"\",CONCATENATE(DIGITADOR!$M$1,E60,P60)))","v":""},"","",null,{"$f":"IF(V60=\"\",\"\",VLOOKUP(V60,'OTRAS REFERENTES'!$A$7:$B$9,2,FALSE))","v":""},null,"",null,null,{"$f":"IF(AA60=\"\",\"\",INDEX(REFERENTES!$G:$H,MATCH(AA60,REFERENTES!$G:$G,0),2))","v":""},{"$f":"IF(AA60=\"\",\"\",INDEX(REFERENTES!$G:$I,MATCH(AA60,REFERENTES!$G:$G,0),3))","v":""}]
[null,{"$f":"DIGITADOR!$B$2","v":""},57,{"$f":"IF(S61=\"\",\"\",IF(COUNTIF($S$5:S61, S61)>1, \"\", S61))","v":""},null,null,"","","",null,{"$f":"IF(J61=\"\",\"\",INDEX(REFERENTES!$V:$W,MATCH(J61,REFERENTES!$W:$W,0),1))","v":""},"",null,null,null,{"$f":"IF(O61=\"\",\"\",VLOOKUP(O61,'OTRAS REFERENTES'!$L$5:$M$148,2,FALSE))","v":""},57,"",{"$f":"IF(O61=\"\",\"\",IF(O61=\"\",\"\",CONCATENATE(DIGITADOR!$M$1,E61,P61)))","v":""},"","",null,{"$f":"IF(V61=\"\",\"\",VLOOKUP(V61,'OTRAS REFERENTES'!$A$7:$B$9,2,FALSE))","v":""},null,"",null,null,{"$f":"IF(AA61=\"\",\"\",INDEX(REFERENTES!$G:$H,MATCH(AA61,REFERENTES!$G:$G,0),2))","v":""},{"$f":"IF(AA61=\"\",\"\",INDEX(REFERENTES!$G:$I,MATCH(AA61,REFERENTES!$G:$G,0),3))","v":""}]
[null,{"$f":"DIGITADOR!$B$2","v":""},58,{"$f":"IF(S62=\"\",\"\",IF(COUNTIF($S$5:S62, S62)>1, \"\", S62))","v":""},null,null,"","","",null,{"$f":"IF(J62=\"\",\"\",INDEX(REFERENTES!$V:$W,MATCH(J62,REFERENTES!$W:$W,0),1))","v":""},"",null,null,null,{"$f":"IF(O62=\"\",\"\",VLOOKUP(O62,'OTRAS REFERENTES'!$L$5:$M$148,2,FALSE))","v":""},58,"",{"$f":"IF(O62=\"\",\"\",IF(O62=\"\",\"\",CONCATENATE(DIGITADOR!$M$1,E62,P62)))","v":""},"","",null,{"$f":"IF(V62=\"\",\"\",VLOOKUP(V62,'OTRAS REFERENTES'!$A$7:$B$9,2,FALSE))","v":""},null,"",null,null,{"$f":"IF(AA62=\"\",\"\",INDEX(REFERENTES!$G:$H,MATCH(AA62,REFERENTES!$G:$G,0),2))","v":""},{"$f":"IF(AA62=\"\",\"\",INDEX(REFERENTES!$G:$I,MATCH(AA62,REFERENTES!$G:$G,0),3))","v":""}]
[null,{"$f":"DIGITADOR!$B$2","v":""},59,{"$f":"IF(S63=\"\",\"\",IF(COUNTIF($S$5:S63, S63)>1, \"\", S63))","v":""},null,null,"","","",null,{"$f":"IF(J63=\"\",\"\",INDEX(REFERENTES!$V:$W,MATCH(J63,REFERENTES!$W:$W,0),1))","v":""},"",null,null,null,{"$f":"IF(O63=\"\",\"\",VLOOKUP(O63,'OTRAS REFERENTES'!$L$5:$M$148,2,FALSE))","v":""},59,"",{"$f":"IF(O63=\"\",\"\",IF(O63=\"\",\"\",CONCATENATE(DIGITADOR!$M$1,E63,P63)))","v":""},"","",null,{"$f":"IF(V63=\"\",\"\",VLOOKUP(V63,'OTRAS REFERENTES'!$A$7:$B$9,2,FALSE))","v":""},null,"",null,null,{"$f":"IF(AA63=\"\",\"\",INDEX(REFERENTES!$G:$H,MATCH(AA63,REFERENTES!$G:$G,0),2))","v":""},{"$f":"IF(AA63=\"\",\"\",INDEX(REFERENTES!$G:$I,MATCH(AA63,REFERENTES!$G:$G,0),3))","v":""}]
[null,{"$f":"DIGITADOR!$B$2","v":""},60,{"$f":"IF(S64=\"\",\"\",IF(COUNTIF($S$5:S64, S64)>1, \"\", S64))","v":""},null,null,"","","",null,{"$f":"IF(J64=\"\",\"\",INDEX(REFERENTES!$V:$W,MATCH(J64,REFERENTES!$W:$W,0),1))","v":""},"",null,null,null,{"$f":"IF(O64=\"\",\"\",VLOOKUP(O64,'OTRAS REFERENTES'!$L$5:$M$148,2,FALSE))","v":""},60,"",{"$f":"IF(O64=\"\",\"\",IF(O64=\"\",\"\",CONCATENATE(DIGITADOR!$M$1,E64,P64)))","v":""},"","",null,{"$f":"IF(V64=\"\",\"\",VLOOKUP(V64,'OTRAS REFERENTES'!$A$7:$B$9,2,FALSE))","v":""},null,"",null,null,{"$f":"IF(AA64=\"\",\"\",INDEX(REFERENTES!$G:$H,MATCH(AA64,REFERENTES!$G:$G,0),2))","v":""},{"$f":"IF(AA64=\"\",\"\",INDEX(REFERENTES!$G:$I,MATCH(AA64,REFERENTES!$G:$G,0),3))","v":""}]
[null,{"$f":"DIGITADOR!$B$2","v":""},61,{"$f":"IF(S65=\"\",\"\",IF(COUNTIF($S$5:S65, S65)>1, \"\", S65))","v":""},null,null,"","","",null,{"$f":"IF(J65=\"\",\"\",INDEX(REFERENTES!$V:$W,MATCH(J65,REFERENTES!$W:$W,0),1))","v":""},"",null,null,null,{"$f":"IF(O65=\"\",\"\",VLOOKUP(O65,'OTRAS REFERENTES'!$L$5:$M$148,2,FALSE))","v":""},61,"",{"$f":"IF(O65=\"\",\"\",IF(O65=\"\",\"\",CONCATENATE(DIGITADOR!$M$1,E65,P65)))","v":""},"","",null,{"$f":"IF(V65=\"\",\"\",VLOOKUP(V65,'OTRAS REFERENTES'!$A$7:$B$9,2,FALSE))","v":""},null,"",null,null,{"$f":"IF(AA65=\"\",\"\",INDEX(REFERENTES!$G:$H,MATCH(AA65,REFERENTES!$G:$G,0),2))","v":""},{"$f":"IF(AA65=\"\",\"\",INDEX(REFERENTES!$G:$I,MATCH(AA65,REFERENTES!$G:$G,0),3))","v":""}]
[null,{"$f":"DIGITADOR!$B$2","v":""},62,{"$f":"IF(S66=\"\",\"\",IF(COUNTIF($S$5:S66, S66)>1, \"\", S66))","v":""},null,null,"","","",null,{"$f":"IF(J66=\"\",\"\",INDEX(REFERENTES!$V:$W,MATCH(J66,REFERENTES!$W:$W,0),1))","v":""},"",null,null,null,{"$f":"IF(O66=\"\",\"\",VLOOKUP(O66,'OTRAS REFERENTES'!$L$5:$M$148,2,FALSE))","v":""},62,"",{"$f":"IF(O66=\"\",\"\",IF(O66=\"\",\"\",CONCATENATE(DIGITADOR!$M$1,E66,P66)))","v":""},"","",null,{"$f":"IF(V66=\"\",\"\",VLOOKUP(V66,'OTRAS REFERENTES'!$A$7:$B$9,2,FALSE))","v":""},null,"",null,null,{"$f":"IF(AA66=\"\",\"\",INDEX(REFERENTES!$G:$H,MATCH(AA66,REFERENTES!$G:$G,0),2))","v":""},{"$f":"IF(AA66=\"\",\"\",INDEX(REFERENTES!$G:$I,MATCH(AA66,REFERENTES!$G:$G,0),3))","v":""}]
[null,{"$f":"DIGITADOR!$B$2","v":""},63,{"$f":"IF(S67=\"\",\"\",IF(COUNTIF($S$5:S67, S67)>1, \"\", S67))","v":""},null,null,"","","",null,{"$f":"IF(J67=\"\",\"\",INDEX(REFERENTES!$V:$W,MATCH(J67,REFERENTES!$W:$W,0),1))","v":""},"",null,null,null,{"$f":"IF(O67=\"\",\"\",VLOOKUP(O67,'OTRAS REFERENTES'!$L$5:$M$148,2,FALSE))","v":""},63,"",{"$f":"IF(O67=\"\",\"\",IF(O67=\"\",\"\",CONCATENATE(DIGITADOR!$M$1,E67,P67)))","v":""},"","",null,{"$f":"IF(V67=\"\",\"\",VLOOKUP(V67,'OTRAS REFERENTES'!$A$7:$B$9,2,FALSE))","v":""},null,"",null,null,{"$f":"IF(AA67=\"\",\"\",INDEX(REFERENTES!$G:$H,MATCH(AA67,REFERENTES!$G:$G,0),2))","v":""},{"$f":"IF(AA67=\"\",\"\",INDEX(REFERENTES!$G:$I,MATCH(AA67,REFERENTES!$G:$G,0),3))","v":""}]
[null,{"$f":"DIGITADOR!$B$2","v":""},64,{"$f":"IF(S68=\"\",\"\",IF(COUNTIF($S$5:S68, S68)>1, \"\", S68))","v":""},null,null,"","","",null,{"$f":"IF(J68=\"\",\"\",INDEX(REFERENTES!$V:$W,MATCH(J68,REFERENTES!$W:$W,0),1))","v":""},"",null,null,null,{"$f":"IF(O68=\"\",\"\",VLOOKUP(O68,'OTRAS REFERENTES'!$L$5:$M$148,2,FALSE))","v":""},64,"",{"$f":"IF(O68=\"\",\"\",IF(O68=\"\",\"\",CONCATENATE(DIGITADOR!$M$1,E68,P68)))","v":""},"","",null,{"$f":"IF(V68=\"\",\"\",VLOOKUP(V68,'OTRAS REFERENTES'!$A$7:$B$9,2,FALSE))","v":""},null,"",null,null,{"$f":"IF(AA68=\"\",\"\",INDEX(REFERENTES!$G:$H,MATCH(AA68,REFERENTES!$G:$G,0),2))","v":""},{"$f":"IF(AA68=\"\",\"\",INDEX(REFERENTES!$G:$I,MATCH(AA68,REFERENTES!$G:$G,0),3))","v":""}]
[null,{"$f":"DIGITADOR!$B$2","v":""},65,{"$f":"IF(S69=\"\",\"\",IF(COUNTIF($S$5:S69, S69)>1, \"\", S69))","v":""},null,null,"",{"$f":"IF(G69<>\"\",MONTH(G69),\"\")","v":""},"",null,{"$f":"IF(J69=\"\",\"\",INDEX(REFERENTES!$V:$W,MATCH(J69,REFERENTES!$W:$W,0),1))","v":""},"",null,null,null,{"$f":"IF(O69=\"\",\"\",VLOOKUP(O69,'OTRAS REFERENTES'!$L$5:$M$148,2,FALSE))","v":""},65,"",{"$f":"IF(O69=\"\",\"\",IF(O69=\"\",\"\",CONCATENATE(DIGITADOR!$M$1,E69,P69)))","v":""},"","",null,{"$f":"IF(V69=\"\",\"\",VLOOKUP(V69,'OTRAS REFERENTES'!$A$7:$B$9,2,FALSE))","v":""},null,"",null,null,{"$f":"IF(AA69=\"\",\"\",INDEX(REFERENTES!$G:$H,MATCH(AA69,REFERENTES!$G:$G,0),2))","v":""},{"$f":"IF(AA69=\"\",\"\",INDEX(REFERENTES!$G:$I,MATCH(AA69,REFERENTES!$G:$G,0),3))","v":""}]
[null,{"$f":"DIGITADOR!$B$2","v":""},66,{"$f":"IF(S70=\"\",\"\",IF(COUNTIF($S$5:S70, S70)>1, \"\", S70))","v":""},null,null,{"$f":"IF(E70=\"\",\"\",E70+F70)","v":""},"",{"$f":"IF(D70=\"\",\"\",1)","v":""},null,{"$f":"IF(J70=\"\",\"\",INDEX(REFERENTES!$V:$W,MATCH(J70,REFERENTES!$W:$W,0),1))","v":""},{"$f":"IF(G70=\"\",\"\",CONCATENATE(G70,P70,K70,1))","v":""},null,null,null,{"$f":"IF(O70=\"\",\"\",VLOOKUP(O70,'OTRAS REFERENTES'!$L$5:$M$148,2,FALSE))","v":""},66,{"$f":"IF(S70=\"\",\"\",CONCATENATE(S70,ROW()-2))","v":""},{"$f":"IF(O70=\"\",\"\",IF(O70=\"\",\"\",CONCATENATE(DIGITADOR!$M$1,E70,P70)))","v":""},{"$f":"IF(R70=\"\",\"\",\"OA\")","v":""},{"$f":"IF(T70=\"\",\"\",\"SO\")","v":""},null,{"$f":"IF(V70=\"\",\"\",VLOOKUP(V70,'OTRAS REFERENTES'!$A$7:$B$9,2,FALSE))","v":""},null,{"$f":"CONCATENATE(W70,X70)","v":""},null,null,{"$f":"IF(AA70=\"\",\"\",INDEX(REFERENTES!$G:$H,MATCH(AA70,REFERENTES!$G:$G,0),2))","v":""},{"$f":"IF(AA70=\"\",\"\",INDEX(REFERENTES!$G:$I,MATCH(AA70,REFERENTES!$G:$G,0),3))","v":""}]
[null,{"$f":"DIGITADOR!$B$2","v":""},67,{"$f":"IF(S71=\"\",\"\",IF(COUNTIF($S$5:S71, S71)>1, \"\", S71))","v":""},null,null,"","","",null,{"$f":"IF(J71=\"\",\"\",INDEX(REFERENTES!$V:$W,MATCH(J71,REFERENTES!$W:$W,0),1))","v":""},"",null,null,null,{"$f":"IF(O71=\"\",\"\",VLOOKUP(O71,'OTRAS REFERENTES'!$L$5:$M$148,2,FALSE))","v":""},67,"",{"$f":"IF(O71=\"\",\"\",IF(O71=\"\",\"\",CONCATENATE(DIGITADOR!$M$1,E71,P71)))","v":""},"","",null,{"$f":"IF(V71=\"\",\"\",VLOOKUP(V71,'OTRAS REFERENTES'!$A$7:$B$9,2,FALSE))","v":""},null,"",null,null,{"$f":"IF(AA71=\"\",\"\",INDEX(REFERENTES!$G:$H,MATCH(AA71,REFERENTES!$G:$G,0),2))","v":""},{"$f":"IF(AA71=\"\",\"\",INDEX(REFERENTES!$G:$I,MATCH(AA71,REFERENTES!$G:$G,0),3))","v":""}]
[null,{"$f":"DIGITADOR!$B$2","v":""},68,{"$f":"IF(S72=\"\",\"\",IF(COUNTIF($S$5:S72, S72)>1, \"\", S72))","v":""},null,null,"","","",null,{"$f":"IF(J72=\"\",\"\",INDEX(REFERENTES!$V:$W,MATCH(J72,REFERENTES!$W:$W,0),1))","v":""},"",null,null,null,{"$f":"IF(O72=\"\",\"\",VLOOKUP(O72,'OTRAS REFERENTES'!$L$5:$M$148,2,FALSE))","v":""},68,"",{"$f":"IF(O72=\"\",\"\",IF(O72=\"\",\"\",CONCATENATE(DIGITADOR!$M$1,E72,P72)))","v":""},"","",null,{"$f":"IF(V72=\"\",\"\",VLOOKUP(V72,'OTRAS REFERENTES'!$A$7:$B$9,2,FALSE))","v":""},null,"",null,null,{"$f":"IF(AA72=\"\",\"\",INDEX(REFERENTES!$G:$H,MATCH(AA72,REFERENTES!$G:$G,0),2))","v":""},{"$f":"IF(AA72=\"\",\"\",INDEX(REFERENTES!$G:$I,MATCH(AA72,REFERENTES!$G:$G,0),3))","v":""}]
[null,{"$f":"DIGITADOR!$B$2","v":""},69,{"$f":"IF(S73=\"\",\"\",IF(COUNTIF($S$5:S73, S73)>1, \"\", S73))","v":""},null,null,"","","",null,{"$f":"IF(J73=\"\",\"\",INDEX(REFERENTES!$V:$W,MATCH(J73,REFERENTES!$W:$W,0),1))","v":""},"",null,null,null,{"$f":"IF(O73=\"\",\"\",VLOOKUP(O73,'OTRAS REFERENTES'!$L$5:$M$148,2,FALSE))","v":""},69,"",{"$f":"IF(O73=\"\",\"\",IF(O73=\"\",\"\",CONCATENATE(DIGITADOR!$M$1,E73,P73)))","v":""},"","",null,{"$f":"IF(V73=\"\",\"\",VLOOKUP(V73,'OTRAS REFERENTES'!$A$7:$B$9,2,FALSE))","v":""},null,"",null,null,{"$f":"IF(AA73=\"\",\"\",INDEX(REFERENTES!$G:$H,MATCH(AA73,REFERENTES!$G:$G,0),2))","v":""},{"$f":"IF(AA73=\"\",\"\",INDEX(REFERENTES!$G:$I,MATCH(AA73,REFERENTES!$G:$G,0),3))","v":""}]
[null,{"$f":"DIGITADOR!$B$2","v":""},70,{"$f":"IF(S74=\"\",\"\",IF(COUNTIF($S$5:S74, S74)>1, \"\", S74))","v":""},null,null,"","","",null,{"$f":"IF(J74=\"\",\"\",INDEX(REFERENTES!$V:$W,MATCH(J74,REFERENTES!$W:$W,0),1))","v":""},"",null,null,null,{"$f":"IF(O74=\"\",\"\",VLOOKUP(O74,'OTRAS REFERENTES'!$L$5:$M$148,2,FALSE))","v":""},70,"",{"$f":"IF(O74=\"\",\"\",IF(O74=\"\",\"\",CONCATENATE(DIGITADOR!$M$1,E74,P74)))","v":""},"","",null,{"$f":"IF(V74=\"\",\"\",VLOOKUP(V74,'OTRAS REFERENTES'!$A$7:$B$9,2,FALSE))","v":""},null,"",null,null,{"$f":"IF(AA74=\"\",\"\",INDEX(REFERENTES!$G:$H,MATCH(AA74,REFERENTES!$G:$G,0),2))","v":""},{"$f":"IF(AA74=\"\",\"\",INDEX(REFERENTES!$G:$I,MATCH(AA74,REFERENTES!$G:$G,0),3))","v":""}]
[null,{"$f":"DIGITADOR!$B$2","v":""},71,{"$f":"IF(S75=\"\",\"\",IF(COUNTIF($S$5:S75, S75)>1, \"\", S75))","v":""},null,null,"","","",null,{"$f":"IF(J75=\"\",\"\",INDEX(REFERENTES!$V:$W,MATCH(J75,REFERENTES!$W:$W,0),1))","v":""},"",null,null,null,{"$f":"IF(O75=\"\",\"\",VLOOKUP(O75,'OTRAS REFERENTES'!$L$5:$M$148,2,FALSE))","v":""},71,"",{"$f":"IF(O75=\"\",\"\",IF(O75=\"\",\"\",CONCATENATE(DIGITADOR!$M$1,E75,P75)))","v":""},"","",null,{"$f":"IF(V75=\"\",\"\",VLOOKUP(V75,'OTRAS REFERENTES'!$A$7:$B$9,2,FALSE))","v":""},null,"",null,null,{"$f":"IF(AA75=\"\",\"\",INDEX(REFERENTES!$G:$H,MATCH(AA75,REFERENTES!$G:$G,0),2))","v":""},{"$f":"IF(AA75=\"\",\"\",INDEX(REFERENTES!$G:$I,MATCH(AA75,REFERENTES!$G:$G,0),3))","v":""}]
[null,{"$f":"DIGITADOR!$B$2","v":""},72,{"$f":"IF(S76=\"\",\"\",IF(COUNTIF($S$5:S76, S76)>1, \"\", S76))","v":""},null,null,"","","",null,{"$f":"IF(J76=\"\",\"\",INDEX(REFERENTES!$V:$W,MATCH(J76,REFERENTES!$W:$W,0),1))","v":""},"",null,null,null,{"$f":"IF(O76=\"\",\"\",VLOOKUP(O76,'OTRAS REFERENTES'!$L$5:$M$148,2,FALSE))","v":""},72,"",{"$f":"IF(O76=\"\",\"\",IF(O76=\"\",\"\",CONCATENATE(DIGITADOR!$M$1,E76,P76)))","v":""},"","",null,{"$f":"IF(V76=\"\",\"\",VLOOKUP(V76,'OTRAS REFERENTES'!$A$7:$B$9,2,FALSE))","v":""},null,"",null,null,{"$f":"IF(AA76=\"\",\"\",INDEX(REFERENTES!$G:$H,MATCH(AA76,REFERENTES!$G:$G,0),2))","v":""},{"$f":"IF(AA76=\"\",\"\",INDEX(REFERENTES!$G:$I,MATCH(AA76,REFERENTES!$G:$G,0),3))","v":""}]
[null,{"$f":"DIGITADOR!$B$2","v":""},73,{"$f":"IF(S77=\"\",\"\",IF(COUNTIF($S$5:S77, S77)>1, \"\", S77))","v":""},null,null,"","","",null,{"$f":"IF(J77=\"\",\"\",INDEX(REFERENTES!$V:$W,MATCH(J77,REFERENTES!$W:$W,0),1))","v":""},"",null,null,null,{"$f":"IF(O77=\"\",\"\",VLOOKUP(O77,'OTRAS REFERENTES'!$L$5:$M$148,2,FALSE))","v":""},73,"",{"$f":"IF(O77=\"\",\"\",IF(O77=\"\",\"\",CONCATENATE(DIGITADOR!$M$1,E77,P77)))","v":""},"","",null,{"$f":"IF(V77=\"\",\"\",VLOOKUP(V77,'OTRAS REFERENTES'!$A$7:$B$9,2,FALSE))","v":""},null,"",null,null,{"$f":"IF(AA77=\"\",\"\",INDEX(REFERENTES!$G:$H,MATCH(AA77,REFERENTES!$G:$G,0),2))","v":""},{"$f":"IF(AA77=\"\",\"\",INDEX(REFERENTES!$G:$I,MATCH(AA77,REFERENTES!$G:$G,0),3))","v":""}]
[null,{"$f":"DIGITADOR!$B$2","v":""},74,{"$f":"IF(S78=\"\",\"\",IF(COUNTIF($S$5:S78, S78)>1, \"\", S78))","v":""},null,null,"","","",null,{"$f":"IF(J78=\"\",\"\",INDEX(REFERENTES!$V:$W,MATCH(J78,REFERENTES!$W:$W,0),1))","v":""},"",null,null,null,{"$f":"IF(O78=\"\",\"\",VLOOKUP(O78,'OTRAS REFERENTES'!$L$5:$M$148,2,FALSE))","v":""},74,"",{"$f":"IF(O78=\"\",\"\",IF(O78=\"\",\"\",CONCATENATE(DIGITADOR!$M$1,E78,P78)))","v":""},"","",null,{"$f":"IF(V78=\"\",\"\",VLOOKUP(V78,'OTRAS REFERENTES'!$A$7:$B$9,2,FALSE))","v":""},null,"",null,null,{"$f":"IF(AA78=\"\",\"\",INDEX(REFERENTES!$G:$H,MATCH(AA78,REFERENTES!$G:$G,0),2))","v":""},{"$f":"IF(AA78=\"\",\"\",INDEX(REFERENTES!$G:$I,MATCH(AA78,REFERENTES!$G:$G,0),3))","v":""}]
[null,{"$f":"DIGITADOR!$B$2","v":""},75,{"$f":"IF(S79=\"\",\"\",IF(COUNTIF($S$5:S79, S79)>1, \"\", S79))","v":""},null,null,"","","",null,{"$f":"IF(J79=\"\",\"\",INDEX(REFERENTES!$V:$W,MATCH(J79,REFERENTES!$W:$W,0),1))","v":""},"",null,null,null,{"$f":"IF(O79=\"\",\"\",VLOOKUP(O79,'OTRAS REFERENTES'!$L$5:$M$148,2,FALSE))","v":""},75,"",{"$f":"IF(O79=\"\",\"\",IF(O79=\"\",\"\",CONCATENATE(DIGITADOR!$M$1,E79,P79)))","v":""},"","",null,{"$f":"IF(V79=\"\",\"\",VLOOKUP(V79,'OTRAS REFERENTES'!$A$7:$B$9,2,FALSE))","v":""},null,"",null,null,{"$f":"IF(AA79=\"\",\"\",INDEX(REFERENTES!$G:$H,MATCH(AA79,REFERENTES!$G:$G,0),2))","v":""},{"$f":"IF(AA79=\"\",\"\",INDEX(REFERENTES!$G:$I,MATCH(AA79,REFERENTES!$G:$G,0),3))","v":""}]
[null,{"$f":"DIGITADOR!$B$2","v":""},76,{"$f":"IF(S80=\"\",\"\",IF(COUNTIF($S$5:S80, S80)>1, \"\", S80))","v":""},null,null,"","","",null,{"$f":"IF(J80=\"\",\"\",INDEX(REFERENTES!$V:$W,MATCH(J80,REFERENTES!$W:$W,0),1))","v":""},"",null,null,null,{"$f":"IF(O80=\"\",\"\",VLOOKUP(O80,'OTRAS REFERENTES'!$L$5:$M$148,2,FALSE))","v":""},76,"",{"$f":"IF(O80=\"\",\"\",IF(O80=\"\",\"\",CONCATENATE(DIGITADOR!$M$1,E80,P80)))","v":""},"","",null,{"$f":"IF(V80=\"\",\"\",VLOOKUP(V80,'OTRAS REFERENTES'!$A$7:$B$9,2,FALSE))","v":""},null,"",null,null,{"$f":"IF(AA80=\"\",\"\",INDEX(REFERENTES!$G:$H,MATCH(AA80,REFERENTES!$G:$G,0),2))","v":""},{"$f":"IF(AA80=\"\",\"\",INDEX(REFERENTES!$G:$I,MATCH(AA80,REFERENTES!$G:$G,0),3))","v":""}]
[null,{"$f":"DIGITADOR!$B$2","v":""},77,{"$f":"IF(S81=\"\",\"\",IF(COUNTIF($S$5:S81, S81)>1, \"\", S81))","v":""},null,null,"","","",null,{"$f":"IF(J81=\"\",\"\",INDEX(REFERENTES!$V:$W,MATCH(J81,REFERENTES!$W:$W,0),1))","v":""},"",null,null,null,{"$f":"IF(O81=\"\",\"\",VLOOKUP(O81,'OTRAS REFERENTES'!$L$5:$M$148,2,FALSE))","v":""},77,"",{"$f":"IF(O81=\"\",\"\",IF(O81=\"\",\"\",CONCATENATE(DIGITADOR!$M$1,E81,P81)))","v":""},"","",null,{"$f":"IF(V81=\"\",\"\",VLOOKUP(V81,'OTRAS REFERENTES'!$A$7:$B$9,2,FALSE))","v":""},null,"",null,null,{"$f":"IF(AA81=\"\",\"\",INDEX(REFERENTES!$G:$H,MATCH(AA81,REFERENTES!$G:$G,0),2))","v":""},{"$f":"IF(AA81=\"\",\"\",INDEX(REFERENTES!$G:$I,MATCH(AA81,REFERENTES!$G:$G,0),3))","v":""}]
[null,{"$f":"DIGITADOR!$B$2","v":""},78,{"$f":"IF(S82=\"\",\"\",IF(COUNTIF($S$5:S82, S82)>1, \"\", S82))","v":""},null,null,"","","",null,{"$f":"IF(J82=\"\",\"\",INDEX(REFERENTES!$V:$W,MATCH(J82,REFERENTES!$W:$W,0),1))","v":""},"",null,null,null,{"$f":"IF(O82=\"\",\"\",VLOOKUP(O82,'OTRAS REFERENTES'!$L$5:$M$148,2,FALSE))","v":""},78,"",{"$f":"IF(O82=\"\",\"\",IF(O82=\"\",\"\",CONCATENATE(DIGITADOR!$M$1,E82,P82)))","v":""},"","",null,{"$f":"IF(V82=\"\",\"\",VLOOKUP(V82,'OTRAS REFERENTES'!$A$7:$B$9,2,FALSE))","v":""},null,"",null,null,{"$f":"IF(AA82=\"\",\"\",INDEX(REFERENTES!$G:$H,MATCH(AA82,REFERENTES!$G:$G,0),2))","v":""},{"$f":"IF(AA82=\"\",\"\",INDEX(REFERENTES!$G:$I,MATCH(AA82,REFERENTES!$G:$G,0),3))","v":""}]
[null,{"$f":"DIGITADOR!$B$2","v":""},79,{"$f":"IF(S83=\"\",\"\",IF(COUNTIF($S$5:S83, S83)>1, \"\", S83))","v":""},null,null,"","","",null,{"$f":"IF(J83=\"\",\"\",INDEX(REFERENTES!$V:$W,MATCH(J83,REFERENTES!$W:$W,0),1))","v":""},"",null,null,null,{"$f":"IF(O83=\"\",\"\",VLOOKUP(O83,'OTRAS REFERENTES'!$L$5:$M$148,2,FALSE))","v":""},79,"",{"$f":"IF(O83=\"\",\"\",IF(O83=\"\",\"\",CONCATENATE(DIGITADOR!$M$1,E83,P83)))","v":""},"","",null,{"$f":"IF(V83=\"\",\"\",VLOOKUP(V83,'OTRAS REFERENTES'!$A$7:$B$9,2,FALSE))","v":""},null,"",null,null,{"$f":"IF(AA83=\"\",\"\",INDEX(REFERENTES!$G:$H,MATCH(AA83,REFERENTES!$G:$G,0),2))","v":""},{"$f":"IF(AA83=\"\",\"\",INDEX(REFERENTES!$G:$I,MATCH(AA83,REFERENTES!$G:$G,0),3))","v":""}]
[null,{"$f":"DIGITADOR!$B$2","v":""},80,{"$f":"IF(S84=\"\",\"\",IF(COUNTIF($S$5:S84, S84)>1, \"\", S84))","v":""},null,null,"","","",null,{"$f":"IF(J84=\"\",\"\",INDEX(REFERENTES!$V:$W,MATCH(J84,REFERENTES!$W:$W,0),1))","v":""},"",null,null,null,{"$f":"IF(O84=\"\",\"\",VLOOKUP(O84,'OTRAS REFERENTES'!$L$5:$M$148,2,FALSE))","v":""},80,"",{"$f":"IF(O84=\"\",\"\",IF(O84=\"\",\"\",CONCATENATE(DIGITADOR!$M$1,E84,P84)))","v":""},"","",null,{"$f":"IF(V84=\"\",\"\",VLOOKUP(V84,'OTRAS REFERENTES'!$A$7:$B$9,2,FALSE))","v":""},null,"",null,null,{"$f":"IF(AA84=\"\",\"\",INDEX(REFERENTES!$G:$H,MATCH(AA84,REFERENTES!$G:$G,0),2))","v":""},{"$f":"IF(AA84=\"\",\"\",INDEX(REFERENTES!$G:$I,MATCH(AA84,REFERENTES!$G:$G,0),3))","v":""}]
[null,{"$f":"DIGITADOR!$B$2","v":""},81,{"$f":"IF(S85=\"\",\"\",IF(COUNTIF($S$5:S85, S85)>1, \"\", S85))","v":""},null,null,"","","",null,{"$f":"IF(J85=\"\",\"\",INDEX(REFERENTES!$V:$W,MATCH(J85,REFERENTES!$W:$W,0),1))","v":""},"",null,null,null,{"$f":"IF(O85=\"\",\"\",VLOOKUP(O85,'OTRAS REFERENTES'!$L$5:$M$148,2,FALSE))","v":""},81,"",{"$f":"IF(O85=\"\",\"\",IF(O85=\"\",\"\",CONCATENATE(DIGITADOR!$M$1,E85,P85)))","v":""},"","",null,{"$f":"IF(V85=\"\",\"\",VLOOKUP(V85,'OTRAS REFERENTES'!$A$7:$B$9,2,FALSE))","v":""},null,"",null,null,{"$f":"IF(AA85=\"\",\"\",INDEX(REFERENTES!$G:$H,MATCH(AA85,REFERENTES!$G:$G,0),2))","v":""},{"$f":"IF(AA85=\"\",\"\",INDEX(REFERENTES!$G:$I,MATCH(AA85,REFERENTES!$G:$G,0),3))","v":""}]
[null,{"$f":"DIGITADOR!$B$2","v":""},82,{"$f":"IF(S86=\"\",\"\",IF(COUNTIF($S$5:S86, S86)>1, \"\", S86))","v":""},null,null,"","","",null,{"$f":"IF(J86=\"\",\"\",INDEX(REFERENTES!$V:$W,MATCH(J86,REFERENTES!$W:$W,0),1))","v":""},"",null,null,null,{"$f":"IF(O86=\"\",\"\",VLOOKUP(O86,'OTRAS REFERENTES'!$L$5:$M$148,2,FALSE))","v":""},82,"",{"$f":"IF(O86=\"\",\"\",IF(O86=\"\",\"\",CONCATENATE(DIGITADOR!$M$1,E86,P86)))","v":""},"","",null,{"$f":"IF(V86=\"\",\"\",VLOOKUP(V86,'OTRAS REFERENTES'!$A$7:$B$9,2,FALSE))","v":""},null,"",null,null,{"$f":"IF(AA86=\"\",\"\",INDEX(REFERENTES!$G:$H,MATCH(AA86,REFERENTES!$G:$G,0),2))","v":""},{"$f":"IF(AA86=\"\",\"\",INDEX(REFERENTES!$G:$I,MATCH(AA86,REFERENTES!$G:$G,0),3))","v":""}]
[null,{"$f":"DIGITADOR!$B$2","v":""},83,{"$f":"IF(S87=\"\",\"\",IF(COUNTIF($S$5:S87, S87)>1, \"\", S87))","v":""},null,null,"","","",null,{"$f":"IF(J87=\"\",\"\",INDEX(REFERENTES!$V:$W,MATCH(J87,REFERENTES!$W:$W,0),1))","v":""},"",null,null,null,{"$f":"IF(O87=\"\",\"\",VLOOKUP(O87,'OTRAS REFERENTES'!$L$5:$M$148,2,FALSE))","v":""},83,"",{"$f":"IF(O87=\"\",\"\",IF(O87=\"\",\"\",CONCATENATE(DIGITADOR!$M$1,E87,P87)))","v":""},"","",null,{"$f":"IF(V87=\"\",\"\",VLOOKUP(V87,'OTRAS REFERENTES'!$A$7:$B$9,2,FALSE))","v":""},null,"",null,null,{"$f":"IF(AA87=\"\",\"\",INDEX(REFERENTES!$G:$H,MATCH(AA87,REFERENTES!$G:$G,0),2))","v":""},{"$f":"IF(AA87=\"\",\"\",INDEX(REFERENTES!$G:$I,MATCH(AA87,REFERENTES!$G:$G,0),3))","v":""}]
[null,{"$f":"DIGITADOR!$B$2","v":""},84,{"$f":"IF(S88=\"\",\"\",IF(COUNTIF($S$5:S88, S88)>1, \"\", S88))","v":""},null,null,"","","",null,{"$f":"IF(J88=\"\",\"\",INDEX(REFERENTES!$V:$W,MATCH(J88,REFERENTES!$W:$W,0),1))","v":""},"",null,null,null,{"$f":"IF(O88=\"\",\"\",VLOOKUP(O88,'OTRAS REFERENTES'!$L$5:$M$148,2,FALSE))","v":""},84,"",{"$f":"IF(O88=\"\",\"\",IF(O88=\"\",\"\",CONCATENATE(DIGITADOR!$M$1,E88,P88)))","v":""},"","",null,{"$f":"IF(V88=\"\",\"\",VLOOKUP(V88,'OTRAS REFERENTES'!$A$7:$B$9,2,FALSE))","v":""},null,"",null,null,{"$f":"IF(AA88=\"\",\"\",INDEX(REFERENTES!$G:$H,MATCH(AA88,REFERENTES!$G:$G,0),2))","v":""},{"$f":"IF(AA88=\"\",\"\",INDEX(REFERENTES!$G:$I,MATCH(AA88,REFERENTES!$G:$G,0),3))","v":""}]
[null,{"$f":"DIGITADOR!$B$2","v":""},85,{"$f":"IF(S89=\"\",\"\",IF(COUNTIF($S$5:S89, S89)>1, \"\", S89))","v":""},null,null,"","","",null,{"$f":"IF(J89=\"\",\"\",INDEX(REFERENTES!$V:$W,MATCH(J89,REFERENTES!$W:$W,0),1))","v":""},"",null,null,null,{"$f":"IF(O89=\"\",\"\",VLOOKUP(O89,'OTRAS REFERENTES'!$L$5:$M$148,2,FALSE))","v":""},85,"",{"$f":"IF(O89=\"\",\"\",IF(O89=\"\",\"\",CONCATENATE(DIGITADOR!$M$1,E89,P89)))","v":""},"","",null,{"$f":"IF(V89=\"\",\"\",VLOOKUP(V89,'OTRAS REFERENTES'!$A$7:$B$9,2,FALSE))","v":""},null,"",null,null,{"$f":"IF(AA89=\"\",\"\",INDEX(REFERENTES!$G:$H,MATCH(AA89,REFERENTES!$G:$G,0),2))","v":""},{"$f":"IF(AA89=\"\",\"\",INDEX(REFERENTES!$G:$I,MATCH(AA89,REFERENTES!$G:$G,0),3))","v":""}]
[null,{"$f":"DIGITADOR!$B$2","v":""},86,{"$f":"IF(S90=\"\",\"\",IF(COUNTIF($S$5:S90, S90)>1, \"\", S90))","v":""},null,null,"","","",null,{"$f":"IF(J90=\"\",\"\",INDEX(REFERENTES!$V:$W,MATCH(J90,REFERENTES!$W:$W,0),1))","v":""},"",null,null,null,{"$f":"IF(O90=\"\",\"\",VLOOKUP(O90,'OTRAS REFERENTES'!$L$5:$M$148,2,FALSE))","v":""},86,"",{"$f":"IF(O90=\"\",\"\",IF(O90=\"\",\"\",CONCATENATE(DIGITADOR!$M$1,E90,P90)))","v":""},"","",null,{"$f":"IF(V90=\"\",\"\",VLOOKUP(V90,'OTRAS REFERENTES'!$A$7:$B$9,2,FALSE))","v":""},null,"",null,null,{"$f":"IF(AA90=\"\",\"\",INDEX(REFERENTES!$G:$H,MATCH(AA90,REFERENTES!$G:$G,0),2))","v":""},{"$f":"IF(AA90=\"\",\"\",INDEX(REFERENTES!$G:$I,MATCH(AA90,REFERENTES!$G:$G,0),3))","v":""}]
[null,{"$f":"DIGITADOR!$B$2","v":""},87,{"$f":"IF(S91=\"\",\"\",IF(COUNTIF($S$5:S91, S91)>1, \"\", S91))","v":""},null,null,"","","",null,{"$f":"IF(J91=\"\",\"\",INDEX(REFERENTES!$V:$W,MATCH(J91,REFERENTES!$W:$W,0),1))","v":""},"",null,null,null,{"$f":"IF(O91=\"\",\"\",VLOOKUP(O91,'OTRAS REFERENTES'!$L$5:$M$148,2,FALSE))","v":""},87,"",{"$f":"IF(O91=\"\",\"\",IF(O91=\"\",\"\",CONCATENATE(DIGITADOR!$M$1,E91,P91)))","v":""},"","",null,{"$f":"IF(V91=\"\",\"\",VLOOKUP(V91,'OTRAS REFERENTES'!$A$7:$B$9,2,FALSE))","v":""},null,"",null,null,{"$f":"IF(AA91=\"\",\"\",INDEX(REFERENTES!$G:$H,MATCH(AA91,REFERENTES!$G:$G,0),2))","v":""},{"$f":"IF(AA91=\"\",\"\",INDEX(REFERENTES!$G:$I,MATCH(AA91,REFERENTES!$G:$G,0),3))","v":""}]
[null,{"$f":"DIGITADOR!$B$2","v":""},88,{"$f":"IF(S92=\"\",\"\",IF(COUNTIF($S$5:S92, S92)>1, \"\", S92))","v":""},null,null,"","","",null,{"$f":"IF(J92=\"\",\"\",INDEX(REFERENTES!$V:$W,MATCH(J92,REFERENTES!$W:$W,0),1))","v":""},"",null,null,null,{"$f":"IF(O92=\"\",\"\",VLOOKUP(O92,'OTRAS REFERENTES'!$L$5:$M$148,2,FALSE))","v":""},88,"",{"$f":"IF(O92=\"\",\"\",IF(O92=\"\",\"\",CONCATENATE(DIGITADOR!$M$1,E92,P92)))","v":""},"","",null,{"$f":"IF(V92=\"\",\"\",VLOOKUP(V92,'OTRAS REFERENTES'!$A$7:$B$9,2,FALSE))","v":""},null,"",null,null,{"$f":"IF(AA92=\"\",\"\",INDEX(REFERENTES!$G:$H,MATCH(AA92,REFERENTES!$G:$G,0),2))","v":""},{"$f":"IF(AA92=\"\",\"\",INDEX(REFERENTES!$G:$I,MATCH(AA92,REFERENTES!$G:$G,0),3))","v":""}]
[null,{"$f":"DIGITADOR!$B$2","v":""},89,{"$f":"IF(S93=\"\",\"\",IF(COUNTIF($S$5:S93, S93)>1, \"\", S93))","v":""},null,null,"","","",null,{"$f":"IF(J93=\"\",\"\",INDEX(REFERENTES!$V:$W,MATCH(J93,REFERENTES!$W:$W,0),1))","v":""},"",null,null,null,{"$f":"IF(O93=\"\",\"\",VLOOKUP(O93,'OTRAS REFERENTES'!$L$5:$M$148,2,FALSE))","v":""},89,"",{"$f":"IF(O93=\"\",\"\",IF(O93=\"\",\"\",CONCATENATE(DIGITADOR!$M$1,E93,P93)))","v":""},"","",null,{"$f":"IF(V93=\"\",\"\",VLOOKUP(V93,'OTRAS REFERENTES'!$A$7:$B$9,2,FALSE))","v":""},null,"",null,null,{"$f":"IF(AA93=\"\",\"\",INDEX(REFERENTES!$G:$H,MATCH(AA93,REFERENTES!$G:$G,0),2))","v":""},{"$f":"IF(AA93=\"\",\"\",INDEX(REFERENTES!$G:$I,MATCH(AA93,REFERENTES!$G:$G,0),3))","v":""}]
[null,{"$f":"DIGITADOR!$B$2","v":""},90,{"$f":"IF(S94=\"\",\"\",IF(COUNTIF($S$5:S94, S94)>1, \"\", S94))","v":""},null,null,"","","",null,{"$f":"IF(J94=\"\",\"\",INDEX(REFERENTES!$V:$W,MATCH(J94,REFERENTES!$W:$W,0),1))","v":""},"",null,null,null,{"$f":"IF(O94=\"\",\"\",VLOOKUP(O94,'OTRAS REFERENTES'!$L$5:$M$148,2,FALSE))","v":""},90,"",{"$f":"IF(O94=\"\",\"\",IF(O94=\"\",\"\",CONCATENATE(DIGITADOR!$M$1,E94,P94)))","v":""},"","",null,{"$f":"IF(V94=\"\",\"\",VLOOKUP(V94,'OTRAS REFERENTES'!$A$7:$B$9,2,FALSE))","v":""},null,"",null,null,{"$f":"IF(AA94=\"\",\"\",INDEX(REFERENTES!$G:$H,MATCH(AA94,REFERENTES!$G:$G,0),2))","v":""},{"$f":"IF(AA94=\"\",\"\",INDEX(REFERENTES!$G:$I,MATCH(AA94,REFERENTES!$G:$G,0),3))","v":""}]
[null,{"$f":"DIGITADOR!$B$2","v":""},91,{"$f":"IF(S95=\"\",\"\",IF(COUNTIF($S$5:S95, S95)>1, \"\", S95))","v":""},null,null,"","","",null,{"$f":"IF(J95=\"\",\"\",INDEX(REFERENTES!$V:$W,MATCH(J95,REFERENTES!$W:$W,0),1))","v":""},"",null,null,null,{"$f":"IF(O95=\"\",\"\",VLOOKUP(O95,'OTRAS REFERENTES'!$L$5:$M$148,2,FALSE))","v":""},91,"",{"$f":"IF(O95=\"\",\"\",IF(O95=\"\",\"\",CONCATENATE(DIGITADOR!$M$1,E95,P95)))","v":""},"","",null,{"$f":"IF(V95=\"\",\"\",VLOOKUP(V95,'OTRAS REFERENTES'!$A$7:$B$9,2,FALSE))","v":""},null,"",null,null,{"$f":"IF(AA95=\"\",\"\",INDEX(REFERENTES!$G:$H,MATCH(AA95,REFERENTES!$G:$G,0),2))","v":""},{"$f":"IF(AA95=\"\",\"\",INDEX(REFERENTES!$G:$I,MATCH(AA95,REFERENTES!$G:$G,0),3))","v":""}]
[null,{"$f":"DIGITADOR!$B$2","v":""},92,{"$f":"IF(S96=\"\",\"\",IF(COUNTIF($S$5:S96, S96)>1, \"\", S96))","v":""},null,null,"","","",null,{"$f":"IF(J96=\"\",\"\",INDEX(REFERENTES!$V:$W,MATCH(J96,REFERENTES!$W:$W,0),1))","v":""},"",null,null,null,{"$f":"IF(O96=\"\",\"\",VLOOKUP(O96,'OTRAS REFERENTES'!$L$5:$M$148,2,FALSE))","v":""},92,"",{"$f":"IF(O96=\"\",\"\",IF(O96=\"\",\"\",CONCATENATE(DIGITADOR!$M$1,E96,P96)))","v":""},"","",null,{"$f":"IF(V96=\"\",\"\",VLOOKUP(V96,'OTRAS REFERENTES'!$A$7:$B$9,2,FALSE))","v":""},null,"",null,null,{"$f":"IF(AA96=\"\",\"\",INDEX(REFERENTES!$G:$H,MATCH(AA96,REFERENTES!$G:$G,0),2))","v":""},{"$f":"IF(AA96=\"\",\"\",INDEX(REFERENTES!$G:$I,MATCH(AA96,REFERENTES!$G:$G,0),3))","v":""}]
[null,{"$f":"DIGITADOR!$B$2","v":""},93,{"$f":"IF(S97=\"\",\"\",IF(COUNTIF($S$5:S97, S97)>1, \"\", S97))","v":""},null,null,"","","",null,{"$f":"IF(J97=\"\",\"\",INDEX(REFERENTES!$V:$W,MATCH(J97,REFERENTES!$W:$W,0),1))","v":""},"",null,null,null,{"$f":"IF(O97=\"\",\"\",VLOOKUP(O97,'OTRAS REFERENTES'!$L$5:$M$148,2,FALSE))","v":""},93,"",{"$f":"IF(O97=\"\",\"\",IF(O97=\"\",\"\",CONCATENATE(DIGITADOR!$M$1,E97,P97)))","v":""},"","",null,{"$f":"IF(V97=\"\",\"\",VLOOKUP(V97,'OTRAS REFERENTES'!$A$7:$B$9,2,FALSE))","v":""},null,"",null,null,{"$f":"IF(AA97=\"\",\"\",INDEX(REFERENTES!$G:$H,MATCH(AA97,REFERENTES!$G:$G,0),2))","v":""},{"$f":"IF(AA97=\"\",\"\",INDEX(REFERENTES!$G:$I,MATCH(AA97,REFERENTES!$G:$G,0),3))","v":""}]
[null,{"$f":"DIGITADOR!$B$2","v":""},94,{"$f":"IF(S98=\"\",\"\",IF(COUNTIF($S$5:S98, S98)>1, \"\", S98))","v":""},null,null,"","","",null,{"$f":"IF(J98=\"\",\"\",INDEX(REFERENTES!$V:$W,MATCH(J98,REFERENTES!$W:$W,0),1))","v":""},"",null,null,null,{"$f":"IF(O98=\"\",\"\",VLOOKUP(O98,'OTRAS REFERENTES'!$L$5:$M$148,2,FALSE))","v":""},94,"",{"$f":"IF(O98=\"\",\"\",IF(O98=\"\",\"\",CONCATENATE(DIGITADOR!$M$1,E98,P98)))","v":""},"","",null,{"$f":"IF(V98=\"\",\"\",VLOOKUP(V98,'OTRAS REFERENTES'!$A$7:$B$9,2,FALSE))","v":""},null,"",null,null,{"$f":"IF(AA98=\"\",\"\",INDEX(REFERENTES!$G:$H,MATCH(AA98,REFERENTES!$G:$G,0),2))","v":""},{"$f":"IF(AA98=\"\",\"\",INDEX(REFERENTES!$G:$I,MATCH(AA98,REFERENTES!$G:$G,0),3))","v":""}]
[null,{"$f":"DIGITADOR!$B$2","v":""},95,{"$f":"IF(S99=\"\",\"\",IF(COUNTIF($S$5:S99, S99)>1, \"\", S99))","v":""},null,null,"","","",null,{"$f":"IF(J99=\"\",\"\",INDEX(REFERENTES!$V:$W,MATCH(J99,REFERENTES!$W:$W,0),1))","v":""},"",null,null,null,{"$f":"IF(O99=\"\",\"\",VLOOKUP(O99,'OTRAS REFERENTES'!$L$5:$M$148,2,FALSE))","v":""},95,"",{"$f":"IF(O99=\"\",\"\",IF(O99=\"\",\"\",CONCATENATE(DIGITADOR!$M$1,E99,P99)))","v":""},"","",null,{"$f":"IF(V99=\"\",\"\",VLOOKUP(V99,'OTRAS REFERENTES'!$A$7:$B$9,2,FALSE))","v":""},null,"",null,null,{"$f":"IF(AA99=\"\",\"\",INDEX(REFERENTES!$G:$H,MATCH(AA99,REFERENTES!$G:$G,0),2))","v":""},{"$f":"IF(AA99=\"\",\"\",INDEX(REFERENTES!$G:$I,MATCH(AA99,REFERENTES!$G:$G,0),3))","v":""}]
[null,{"$f":"DIGITADOR!$B$2","v":""},96,{"$f":"IF(S100=\"\",\"\",IF(COUNTIF($S$5:S100, S100)>1, \"\", S100))","v":""},null,null,"","","",null,{"$f":"IF(J100=\"\",\"\",INDEX(REFERENTES!$V:$W,MATCH(J100,REFERENTES!$W:$W,0),1))","v":""},"",null,null,null,{"$f":"IF(O100=\"\",\"\",VLOOKUP(O100,'OTRAS REFERENTES'!$L$5:$M$148,2,FALSE))","v":""},96,"",{"$f":"IF(O100=\"\",\"\",IF(O100=\"\",\"\",CONCATENATE(DIGITADOR!$M$1,E100,P100)))","v":""},"","",null,{"$f":"IF(V100=\"\",\"\",VLOOKUP(V100,'OTRAS REFERENTES'!$A$7:$B$9,2,FALSE))","v":""},null,"",null,null,{"$f":"IF(AA100=\"\",\"\",INDEX(REFERENTES!$G:$H,MATCH(AA100,REFERENTES!$G:$G,0),2))","v":""},{"$f":"IF(AA100=\"\",\"\",INDEX(REFERENTES!$G:$I,MATCH(AA100,REFERENTES!$G:$G,0),3))","v":""}]
[null,{"$f":"DIGITADOR!$B$2","v":""},97,{"$f":"IF(S101=\"\",\"\",IF(COUNTIF($S$5:S101, S101)>1, \"\", S101))","v":""},null,null,"","","",null,{"$f":"IF(J101=\"\",\"\",INDEX(REFERENTES!$V:$W,MATCH(J101,REFERENTES!$W:$W,0),1))","v":""},"",null,null,null,{"$f":"IF(O101=\"\",\"\",VLOOKUP(O101,'OTRAS REFERENTES'!$L$5:$M$148,2,FALSE))","v":""},97,"",{"$f":"IF(O101=\"\",\"\",IF(O101=\"\",\"\",CONCATENATE(DIGITADOR!$M$1,E101,P101)))","v":""},"","",null,{"$f":"IF(V101=\"\",\"\",VLOOKUP(V101,'OTRAS REFERENTES'!$A$7:$B$9,2,FALSE))","v":""},null,"",null,null,{"$f":"IF(AA101=\"\",\"\",INDEX(REFERENTES!$G:$H,MATCH(AA101,REFERENTES!$G:$G,0),2))","v":""},{"$f":"IF(AA101=\"\",\"\",INDEX(REFERENTES!$G:$I,MATCH(AA101,REFERENTES!$G:$G,0),3))","v":""}]
[null,{"$f":"DIGITADOR!$B$2","v":""},98,{"$f":"IF(S102=\"\",\"\",IF(COUNTIF($S$5:S102, S102)>1, \"\", S102))","v":""},null,null,"","","",null,{"$f":"IF(J102=\"\",\"\",INDEX(REFERENTES!$V:$W,MATCH(J102,REFERENTES!$W:$W,0),1))","v":""},"",null,null,null,{"$f":"IF(O102=\"\",\"\",VLOOKUP(O102,'OTRAS REFERENTES'!$L$5:$M$148,2,FALSE))","v":""},98,"",{"$f":"IF(O102=\"\",\"\",IF(O102=\"\",\"\",CONCATENATE(DIGITADOR!$M$1,E102,P102)))","v":""},"","",null,{"$f":"IF(V102=\"\",\"\",VLOOKUP(V102,'OTRAS REFERENTES'!$A$7:$B$9,2,FALSE))","v":""},null,"",null,null,{"$f":"IF(AA102=\"\",\"\",INDEX(REFERENTES!$G:$H,MATCH(AA102,REFERENTES!$G:$G,0),2))","v":""},{"$f":"IF(AA102=\"\",\"\",INDEX(REFERENTES!$G:$I,MATCH(AA102,REFERENTES!$G:$G,0),3))","v":""}]
[null,{"$f":"DIGITADOR!$B$2","v":""},99,{"$f":"IF(S103=\"\",\"\",IF(COUNTIF($S$5:S103, S103)>1, \"\", S103))","v":""},null,null,"","","",null,{"$f":"IF(J103=\"\",\"\",INDEX(REFERENTES!$V:$W,MATCH(J103,REFERENTES!$W:$W,0),1))","v":""},"",null,null,null,{"$f":"IF(O103=\"\",\"\",VLOOKUP(O103,'OTRAS REFERENTES'!$L$5:$M$148,2,FALSE))","v":""},99,"",{"$f":"IF(O103=\"\",\"\",IF(O103=\"\",\"\",CONCATENATE(DIGITADOR!$M$1,E103,P103)))","v":""},"","",null,{"$f":"IF(V103=\"\",\"\",VLOOKUP(V103,'OTRAS REFERENTES'!$A$7:$B$9,2,FALSE))","v":""},null,"",null,null,{"$f":"IF(AA103=\"\",\"\",INDEX(REFERENTES!$G:$H,MATCH(AA103,REFERENTES!$G:$G,0),2))","v":""},{"$f":"IF(AA103=\"\",\"\",INDEX(REFERENTES!$G:$I,MATCH(AA103,REFERENTES!$G:$G,0),3))","v":""}]
[null,{"$f":"DIGITADOR!$B$2","v":""},100,{"$f":"IF(S104=\"\",\"\",IF(COUNTIF($S$5:S104, S104)>1, \"\", S104))","v":""},null,null,"","","",null,{"$f":"IF(J104=\"\",\"\",INDEX(REFERENTES!$V:$W,MATCH(J104,REFERENTES!$W:$W,0),1))","v":""},"",null,null,null,{"$f":"IF(O104=\"\",\"\",VLOOKUP(O104,'OTRAS REFERENTES'!$L$5:$M$148,2,FALSE))","v":""},100,"",{"$f":"IF(O104=\"\",\"\",IF(O104=\"\",\"\",CONCATENATE(DIGITADOR!$M$1,E104,P104)))","v":""},"","",null,{"$f":"IF(V104=\"\",\"\",VLOOKUP(V104,'OTRAS REFERENTES'!$A$7:$B$9,2,FALSE))","v":""},null,"",null,null,{"$f":"IF(AA104=\"\",\"\",INDEX(REFERENTES!$G:$H,MATCH(AA104,REFERENTES!$G:$G,0),2))","v":""},{"$f":"IF(AA104=\"\",\"\",INDEX(REFERENTES!$G:$I,MATCH(AA104,REFERENTES!$G:$G,0),3))","v":""}]

{"sheet":"REFERENTES","index":4,"n_rows":437,"n_cols":23,"rows_kept":437,"cut":false,"hidden":false,"merged":[]}
["AG_ESPECIES",148023,null,"AG_LOV",1030,null,"descripcion","cod_letras",null,null,null,null,null,null,null,"secuencia_loc","prefijo_cdg_est_loc","codigo_estacion_loc","descripcion_estacion_loc","lugar",null,"codigo","nombre"]
["Apogon affinis","Aaff",null,"CORALINA","CORALINA",null,"Apogon affinis","Aaff","70.55.346",null,null,null,null,null,null,14311,"ACU",1,null,"Acuario 1",null,3907,"Ameth  Vargas Campo"]
["Acanthemblemaria aspera","Aasp",null,"Fundacion Malpelo","F. Malpelo",null,"Acanthemblemaria aspera","Aasp","70.55.577",null,null,null,null,null,null,14312,"ACU",2,null,"Acuario 2",null,593,"Andrea Polanco"]
["Apogon atradorsatus","Aatr",null,"Instituto de Investigaciones Marinas y Costeras","INVEMAR",null,"Apogon atradorsatus","Aatr","70.55.3219",null,null,null,null,null,null,14338,"AGU",1,"se encuentra localizada bien al fondo de la ensenada","Aguacate S",null,4408,"Andres Felipe Acosta Chaparro"]
["Acanthurus bahianus","Abah",null,"Parques Nacionales","ParquesNacionales",null,"Acanthurus bahianus","Abah","70.55.666",null,null,null,null,null,null,14341,"AZU",1,"A unos 60 metros de la costa en marea baja. localizada a 2º 57' 30.6\" N - 78º 10' 41.0\" O","Azufrada 1",null,3956,"Carlos Aponte"]
["Abudefduf concolor","Abco",null,"PNN_GORGONA","PNN_GORGONA",null,"Abudefduf concolor","Abco","70.55.2706",null,null,null,null,null,null,14342,"AZU",2,"A unos 70m de la costa en marea baja","Azufrada 2",null,1834,"Diana Isabel Gómez López"]
["Acanthemblemaria betinensis","Abet",null,"UJTL","UJTL",null,"Acanthemblemaria betinensis","Abet","70.55.578",null,null,null,null,null,null,43726,"POR",1,"Bahía Portete","Bahía Portete",null,1775,"Diego Duque"]
["Apogon binotatus","Abin",null,"Universidad Nacional","UNal",null,"Apogon binotatus","Abin","70.55.348",null,null,null,null,null,null,55425,"BGO",1,null,"Bonito Gordo (PNN Tayrona)",null,3646,"Elizabeth Galeano Galeano"]
["Anisotremus caesius","Acae",null,"Universidad del Valle","UNIVALLE",null,"Anisotremus caesius","Acae","70.55.3217",null,null,null,null,null,null,14333,"CTI",2,"incluye una parcela en el nivel medio de prof","Cabo Tiburón M",null,1784,"Johanna Carolina Vega Sequeda"]
["Acanthurus sp.","Acan",null,null,null,null,"Acanthurus sp.","Acan","70.46.339",null,null,null,null,null,null,14334,"CTI",1,"la estación es una parcela somera (3 m) forma","Cabo Tiburón S",null,6356,"Jose Francisco Campo Campo"]
["Acanthemblemaria sp.","Acat",null,null,null,null,"Acanthemblemaria sp.","Acat","70.46.288",null,null,null,null,null,null,14336,"CAP",1,null,"Capurganá 1",null,3905,"Juan David González Corredor"]
["Acanthurus chirurgus","Achi",null,null,null,null,"Acanthurus chirurgus","Achi","70.55.667",null,null,null,null,null,null,14337,"CAP",2,null,"Capurganá 2",null,5705,"Katherine Johanna Mejía Quintero"]
["Acanthurus nigricans","Acni",null,null,null,null,"Acanthurus nigricans","Acni","70.55.3214",null,null,null,null,null,null,14331,"CEY",1,"Estación está conformada por  una parcela","Ceycen 1",null,4227,"Laura Sanchez Valencia"]
["Acanthurus coeruleus","Acoe",null,null,null,null,"Acanthurus coeruleus","Acoe","70.55.668",null,null,null,null,null,null,14308,"CEY",2,null,"Ceycen 2",null,3281,"Leonardo José Arias Alemán (2022)"]
["Acanthemblemaria spinosa","Acsp",null,null,null,null,"Acanthemblemaria spinosa","Acsp","70.55.3213",null,null,null,null,null,null,41651,"CEY",3,null,"Ceycen 3",null,287,"Marcela Cano Correa"]
["Acanthurus triostegus","Actr",null,null,null,null,"Acanthurus triostegus","Actr","70.55.3215",null,null,null,null,null,null,41705,"CHE",4,null,"Chengue Acropora",null,5021,"Maria Juliana Vanegas Gonzalez"]
["Apogon dovii","Adov",null,null,null,null,"Apogon dovii","Adov","70.55.2665",null,null,null,null,null,null,15508,"CHE",3,null,"Chengue Pastos",null,1809,"Raul Navas Camacho"]
["Aphareus furca","Afur",null,null,null,null,"Aphareus furca","Afur","70.40.2230",null,null,null,null,null,null,14297,"CHE",1,"Compartida con CARICOMP.La parcela del nivel somero (3-5 m) presenta una cobertura coralina _x000D_\r\r\naproximada del 29% dada principalmente por Montastraea faveolata y esqueletos de _x000D_\r\r\nAcropora palmata (algunas colonias vivas). _x000D_\r\r\nLas parcelas media (9-10 m) y profunda (15-16) tienen coberturas de 22% y 21%_x000D_\r\r\n respectivamente y están dominadas por una franja amplia de pendiente suave conformada por _x000D_\r\r\n corales masivos e incrustantes de Diploria spp, Montastraea faveolata y M. cavernosa principalmente._x000D_\r\r\n  El relieve de éstas dos últimas parcelas no es fuerte ya que no hay tamaños de colonias considerables, _x000D_\r\r\n  pero si hay una zona de relieve complejo muy cerca de los transectos la cual es dominada por colonias _x000D_\r\r\n  muy grandes de crecimiento montañoso de M. faveolata. En la parcela media se pueden observar además _x000D_\r\r\n  abundantes colonias medianas de gorgonáceos de la especie Eunicea fusca","Chengue..C1",null,8266,"Zulay Saudith González Herrera"]
["Ablennes hians","ahia",null,null,null,null,"Arothron hispidus","Ahis","70.55.2784",null,null,null,null,null,null,14298,"CHE",2,"Las formaciones coralinas y el tipo de relieve son similares a los de C1 exceptuando _x000D_\r\r\nque en el nivel somero (3-6 m) de C2 hay mayor cobertura coralina (38%), _x000D_\r\r\nse pueden observar además cabezas grandes de Siderastrea siderea y _x000D_\r\r\nlos arrecifes de las parcelas media (9-11 m) y profunda (15-17 m), _x000D_\r\r\ndescienden como un talud de pendiente más fuerte. _x000D_\r\r\nLa cobertura de las parcelas media y profunda es de 40% y 31% _x000D_\r\r\nrespectivamente y dichos niveles presentan abundantes cabezas de Montastraea cavernosa_x000D_\r\r\ny Diploria strigosa, así como algunas colonias de gorgonáceos de tamaño considerable principalmente _x000D_\r\r\ndel género Plexaura sp. Debido a que las parcelas media y profunda están ubicados más hacia afuera _x000D_\r\r\nde la bahía, presentan un poco de oleaje de diciembre a abril por la fuerte acción de los _x000D_\r\r\nvientos alisios, lo cual dificulta el muestreo de los transectos de cadena durante esa _x000D_\r\r\népoca","Chengue..C2"]
["Arothron hispidus","Ahis",null,null,null,null,"Aulostomus maculatus","Amac","70.55.247",null,null,null,null,null,null,41704,"CIN",2,"Cinto expuesto  Occidente","Cinto expuesto"]
["Aulostomus maculatus","Amac",null,null,null,null,"Acanthemblemaria maria","Amar","70.55.2054",null,null,null,null,null,null,41703,"CIN",1,"Cinto protegido Oriente","Cinto protegido"]
["Acanthemblemaria maria","Amar",null,null,null,null,"Arothron meleagris","Amel","70.55.2774",null,null,null,null,null,null,14325,"MAL",1,null,"El Arrecife"]
["Arothron meleagris","Amel",null,null,null,null,"Aetobatus narinari","Anar","70.55.40",null,null,null,null,null,null,14315,"CAN",1,null,"El Canal 1"]
["Aetobatus narinari","Anar",null,null,null,null,"Anisotremus sp.","Anis","70.46.219",null,null,null,null,null,null,14316,"CAN",2,null,"El Canal 2"]
["Anisotremus sp.","Anis",null,null,null,null,"Apogon pacifici","Apac","70.55.2363",null,null,null,null,null,null,14303,"MRO",1,null,"El Morro"]
["Apogon pacifici","Apac",null,null,null,null,"Amblycirrhitus pinos","Apin","70.55.512",null,null,null,null,null,null,14309,"EMI",1,null,"Emisario 1"]
["Amblycirrhitus pinos","Apin",null,null,null,null,"Apogon lachneri","Apla","70.55.349",null,null,null,null,null,null,14310,"EMI",2,null,"Emisario 2"]
["Apogon lachneri","Apla",null,null,null,null,"Apogon maculatus","Apma","70.55.351",null,null,null,null,null,null,14302,"GAY",1,null,"Gayraca 1"]
["Apogon maculatus","Apma",null,null,null,null,"Apogon sp.","Apog","70.46.183",null,null,null,null,null,null,14323,"GAY",2,null,"Gayraca 2"]
["Apogon sp.","Apog",null,null,null,null,"Acanthostracion polygonius","Apol","70.55.750",null,null,null,null,null,null,14324,"GRA",1,null,"Granate 1"]
["Acanthostracion polygonius","Apol",null,null,null,null,"Apogon pseudomaculatus","Apse","70.55.355",null,null,null,null,null,null,14339,"IGU",1,null,"Iguana"]
["Apogon pseudomaculatus","Apse",null,null,null,null,"Acanthostracion quadricornis","Aqua","70.55.751",null,null,null,null,null,null,41546,"ARE",1,null,"Isla Arena"]
["Acanthostracion quadricornis","Aqua",null,null,null,null,"Acanthemblemaria rivasi","Ariv","70.55.579",null,null,null,null,null,null,41545,"IGR",1,null,"Isla Grande"]
["Acanthemblemaria rivasi","Ariv",null,null,null,null,"Axoclinus rubinoffi","Arub","70.55.3267",null,null,null,null,null,null,48967,"JCA",1,"Johnny Cay","Johnny Cay"]
["Axoclinus rubinoffi","Arub",null,null,null,null,"Abudefduf saxatilis","Asax","70.55.513",null,null,null,null,null,null,14296,"CHO",1,"ubicada a 6º","La Chola 1"]
["Abudefduf saxatilis","Asax",null,null,null,null,"Aluterus scriptus","Ascr","70.55.743",null,null,null,null,null,null,14326,"CHO",2,"Parcela media localizada a 6º 0' 47.04","La Chola 2"]
["Aluterus scriptus","Ascr",null,null,null,null,"Acanthemblemaria stephensi","Aste","70.46.288",null,null,null,null,null,null,14304,"CHO",3,"es una parcela somera localizada a 6º 0' 40.9","La Chola 3"]
["Acanthemblemaria stephensi","Aste",null,null,null,null,"Anisotremus surinamensis","Asur","70.55.431",null,null,null,null,null,null,14327,"CHO",4,"Cobertura del 33%","La Chola 4"]
["Anisotremus surinamensis","Asur",null,null,null,null,"Anisotremus taeniatus","Atae","70.55.3218",null,null,null,null,null,null,14328,"CHO",5,null,"La Chola 5"]
["Anisotremus taeniatus","Atae",null,null,null,null,"Abudefduf taurus","Atar","70.55.514",null,null,null,null,null,null,14329,"CHO",6,null,"La Chola 6"]
["Abudefduf taurus","Atar",null,null,null,null,"Apogon townsendi","Atow","70.55.357",null,null,null,null,null,null,37122,"COC",1,null,"La Coca"]
["Apogon townsendi","Atow",null,null,null,null,"Abudefduf troschelii","Atro","70.55.2664",null,null,null,null,null,null,43098,"MAL",2,null,"La Nevera"]
["Abudefduf troschelii","Atro",null,null,null,null,"Aulostomus chinensis","Auch","70.55.3220",null,null,null,null,null,null,41695,"VEN",4,null,"La Ventana Norte Externa -VEN 4"]
["Aulostomus chinensis","Auch",null,null,null,null,"Anisotremus virginicus","Avir","70.55.432",null,null,null,null,null,null,41694,"VEN",3,null,"La Ventana Norte Interna -VEN 3"]
["Anisotremus virginicus","Avir",null,null,null,null,"Acanthurus xanthopterus","Axan","70.55.3216",null,null,null,null,null,null,41692,"VEN",1,null,"La Ventana Sur Externa -VEN 1"]
["Acanthurus xanthopterus","Axan",null,null,null,null,"Bodianus diplotaenia","Bdip","70.55.3221",null,null,null,null,null,null,41693,"VEN",2,null,"La Ventana Sur Interna -VEN 2"]
["Bodianus diplotaenia","Bdip",null,null,null,null,"Bothus lunatus","Blun","70.55.699",null,null,null,null,null,null,41547,"PAL",1,null,"Las Palmas"]
["Bothus lunatus","Blun",null,null,null,null,"Bothus sp.","Both","70.46.360",null,null,null,null,null,null,41699,"MAR",1,null,"MARACAIBO"]
["Bothus sp.","Both",null,null,null,null,"Balistes polylepis","Bpol","70.55.2708",null,null,null,null,null,null,14305,"MAN",1,"ubicada frente a Isla Mangle en dirección N. Parcela en el nivel somero (4.5-6 m) que presenta una cobertura del 48%. _x000D_\r\r\nSe caracteriza porque la pendiente del fondo es imperceptible y porque presenta un relieve arrecifal _x000D_\r\r\ncomplejo compuesto por colonias muy grandes de Montastraea annularis y M. faveolata principalmente;_x000D_\r\r\n también es posible observar comúnmente Porites astreoides, P. porites y Millepora alcicornis. _x000D_\r\r\n El arrecife no es compacto y por lo tanto pueden observarse frecuentemente considerables parches _x000D_\r\r\n de sedimentos gruesos.","Mangle 1"]
["Balistes polylepis","Bpol",null,null,null,null,"Bodianus pulchellus","Bpul","70.55.526",null,null,null,null,null,null,14307,"MAN",2,"La estación Mangle 2. Parcela en el nivel medio (9-11.5 m), _x000D_\r\r\nubicada sobre un arrecife muy compacto de relieve complejo, la pendiente del fondo es_x000D_\r\r\n suave y tiene una cobertura coralina del 31% aproximadamente. Se pueden observar corales de _x000D_\r\r\n 19 especies pero los más abundantes son M. franksi, P. astreoides y Agaricia tenuifolia y _x000D_\r\r\n también hay otras importantes como M. annularis, M. faveolata y P. porites entre otros. Después_x000D_\r\r\n de este arrecife, el fondo se precipita en un talud mayor que termina en amplios canales de arena _x000D_\r\r\n a los 15-18 m","Mangle 2"]
["Bodianus pulchellus","Bpul",null,null,null,null,"Bodianus rufus","Bruf","70.55.527",null,null,null,null,null,null,14317,"MAZ",1,null,"Manzanillo 1"]
["Bodianus rufus","Bruf",null,null,null,null,"Balistes vetula","Bvet","70.55.735",null,null,null,null,null,null,14318,"MAZ",2,null,"Manzanillo 2"]
["Balistes vetula","Bvet",null,null,null,null,"Caranx bartholomaei","Caba","70.55.375",null,null,null,null,null,null,41698,"MRC",1,"Marcelas place","Marcela's place"]
["Caranx bartholomaei","Caba",null,null,null,null,"Caranx caninus","Caca","70.55.2636",null,null,null,null,null,null,14306,"MIN",1,"Ubicada hacia el noroeste de Isla Mucura._x000D_\r\r\nEsta estación es una parcela somera (6-7 m)_x000D_\r\r\n con una cobertura coralina del 33% cuyo fondo tiene una pendiente imperceptible y forma _x000D_\r\r\n parte de una terraza muy extensa. Sus arrecifes forman parches alargados que algunas veces _x000D_\r\r\n se conectan entre sí o están separados por áreas de sedimento de origen calcáreo y aparentemente _x000D_\r\r\n son arenas gruesas. Los corales pueden ser cabezas de variados tamaños de Montastraea spp, _x000D_\r\r\n Siderastrea siderea, Colpophyllia natans, Diploria spp. y Porites porites. Las algas y los_x000D_\r\r\n  octocorales son muy abundantes y estos últimos alcanzan tamaños considerables","Minalta"]
["Caranx caninus","Caca",null,null,null,null,"Chaetodon aculeatus","Cacu","70.55.3223",null,null,null,null,null,null,56790,"4400147CORA100",1,null,"Morro Acropora (MRAC)"]
["Chaetodon aculeatus","Cacu",null,null,null,null,"Caulolatinus affinis","Cafi","70.55.2635",null,null,null,null,null,null,42263,"NCH",1,"Narrow Channel","Narrow Channel"]
["Caulolatinus affinis","Cafi",null,null,null,null,"Calamus sp.","Cala","70.46.227",null,null,null,null,null,null,41702,"NEG",2,null,"Neguanje expuesto"]
["Calamus sp.","Cala",null,null,null,null,"Calamus penna","Cana","70.55.455",null,null,null,null,null,null,41701,"NEG",1,null,"Neguanje protegido"]
["Calamus penna","Cana",null,null,null,null,"Chilomycterus antennatus","Cant","70.55.765",null,null,null,null,null,null,37120,"NET",1,"Bajo coralino en la barrera de providencia, alejado varios km al noroeste de la isla","No Entry"]
["Chilomycterus antennatus","Cant",null,null,null,null,"Calamus pennatula","Cape","70.55.456",null,null,null,null,null,null,52325,"NET",2,"Bajo coralino en la barrera de providencia, alejado varios km al noroeste de la isla","No Entry 2"]
["Calamus pennatula","Cape",null,null,null,null,"Centropyge argi","Carg","70.55.505",null,null,null,null,null,null,14300,"PAV",1,"Isla Rosario, Pavitos. El ambiente de esta estación en los tres niveles de profundidad difiere considerablemente al de tesoro _x000D_\r\r\npues pavitos está dominado por corales de crecimiento foliáceo del tipo Agaricia sp,_x000D_\r\r\n los gorgonáceos están prácticamente ausentes y se presentan gran cantidad de esponjas de variados _x000D_\r\r\n tamaños, formas de crecimiento y colores. La parcela somera de monitoreo está ubicada_x000D_\r\r\n  sobre la plataforma o terraza que rodea la Isla Pavitos y presenta una cobertura coralina _x000D_\r\r\n  del 31% y cerca se observa un talud de pendiente fuerte y de sustrato frágil donde _x000D_\r\r\n  se localizan las parcelas de los niveles medio (9-12 m) y profundo (16-18 m)._x000D_\r\r\n  En el nivel somero también pueden observarse comúnmente algunas cabezas medianas de _x000D_\r\r\n  Montastraea annularis y M. faveolata mientras en el profundo hay abundantes colonias _x000D_\r\r\n  de M. franksi. Los niveles medio y profundo presenta una cobertura coralina del 40% y 30%_x000D_\r\r\n   respectivamente_x000D_","Pavitos"]
["Centropyge argi","Carg",null,null,null,null,"Chromis atrilobata","Catr","70.55.2655",null,null,null,null,null,null,14295,"PLA",2,"A unos 150m de la costa en marea baja","Playa Blanca norte medio 2"]
["Chromis atrilobata","Catr",null,null,null,null,"Caranx latus","Caus","70.55.378",null,null,null,null,null,null,41690,"PLA",3,"Ubicada al norte de la formación coralina","Playa Blanca norte somero 3"]
["Caranx latus","Caus",null,null,null,null,"Coralliozetus bahamensis","Cbah","70.55.2548",null,null,null,null,null,null,41691,"PLA",4,"Ubicada al norte de la formación coralina","Playa Blanca sur medio 4"]
["Coralliozetus bahamensis","Cbah",null,null,null,null,"Calamus bajonado","Cbaj","70.55.453",null,null,null,null,null,null,14343,"PLA",1,"Ubicada al sur de la formación coralina","Playa Blanca sur somero 1"]
["Calamus bajonado","Cbaj",null,null,null,null,"Caranx caballus","Ccab","70.55.2637",null,null,null,null,null,null,52865,"PBLA",1,null,"Playa Blanca-Barú (PNN Corales del Rosario y San Bernardo)"]
["Caranx caballus","Ccab",null,null,null,null,"Calamus calamus","Ccal","70.55.454",null,null,null,null,null,null,41548,"PBR",1,null,"Punta Brava"]
["Calamus calamus","Ccal",null,null,null,null,"Chaetodon capistratus","Ccap","70.55.500",null,null,null,null,null,null,14321,"SFE",1,null,"San Felipe 1"]
["Chaetodon capistratus","Ccap",null,null,null,null,"Chanos chanos","Ccha","70.55.3268",null,null,null,null,null,null,14322,"SFE",2,null,"San Felipe 2"]
["Chanos chanos","Ccha",null,null,null,null,"Cephalopholis cruentata (Lacepède, 1802)","Ccru","70.55.283","CHORDATA",null,null,"SERRANIDAE",null,null,14299,"TES",1,"Isla Rosario, el Tesoro. está ubicada en una cuenca lagunar de poca pendiente y relieve complejo, _x000D_\r\r\npresenta una cobertura aproximada del 45% y se observan cabezas coralinas _x000D_\r\r\ngrandes dominadas por Montastraea annularis. Es posible observar también _x000D_\r\r\notros corales de crecimiento masivo y cobertura importante como M. faveolata, _x000D_\r\r\nDiploria labyrinthiformis y Colpophyllia natans mezclados con parches amplios de arena._x000D_\r\r\n También se presentan abundantes gorgonáceos de los géneros Briareum sp. y Pseudoplexaura sp. _x000D_\r\r\n Después del plano se presenta hacia afuera un talud de pendiente media y relieve complejo donde _x000D_\r\r\n están ubicados las parcelas de los niveles medio (9-12 m) y profundo (16-19 m). El nivel medio _x000D_\r\r\n tiene una cobertura coralina del 24% y es un ambiente de corales masivos mixtos como M. annularis, _x000D_\r\r\n M franksi y C. natans, mientras el profundo presenta una cobertura mayor (35%) y está dominado por M. _x000D_\r\r\n franksi que forma colonias grandes con bordes tipo terraza. En la parcela profunda se presentan colonias _x000D_\r\r\n aisladas de látigos del género Ellisella sp","Tesoro 1"]
["Chanos chanos","ccha",null,null,null,null,"Caranx crysos","Ccry","70.55.376",null,null,null,null,null,null,41549,"TES",2,null,"Tesoro Oriental"]
["Cephalopholis cruentata (Lacepède, 1802)","Ccru",null,null,null,null,"Chromis cyanea","Ccya","70.55.515",null,null,null,null,null,null,14319,"BAR",1,null,"The Bar 1"]
["Caranx crysos","Ccry",null,null,null,null,"Coryphopterus dicrus","Cdic","70.55.618",null,null,null,null,null,null,14320,"BAR",2,null,"The Bar 2"]
["Chromis cyanea","Ccya",null,null,null,null,"Cantherines dumerilii","Cdum","70.55.3222",null,null,null,null,null,null,41697,"TNT",1,"Tintipan 1 Somero","Tintipan 1 Somero"]
["Coryphopterus dicrus","Cdic",null,null,null,null,"Coryphopterus eidolon","Ceid","70.55.619",null,null,null,null,null,null,41696,"TNT",2,"Tintipan 2 Medio","Tintipan 2 Medio"]
["Cantherines dumerilii","Cdum",null,null,null,null,"Cephalopholis sp.","Ceph","70.46.162",null,null,null,null,null,null,14332,"TIO",1,"localizada al noroeste de Isla Tintipan a 9º","Tiosolda"]
["Coryphopterus eidolon","Ceid",null,null,null,null,"Chaetodipterus faber","Cfab","70.55.665",null,null,null,null,null,null,49084,"VAR",1,"Varadero 1","Varadero 1"]
["Cephalopholis sp.","Ceph",null,null,null,null,"Cephalopolis fulva","Cful","70.55.284",null,null,null,null,null,null,49085,"VAR",2,"Varadero 2","Varadero 2"]
["Chaetodipterus faber","Cfab",null,null,null,null,"Chaetodon falcifer","Cfur","70.55.3371",null,null,null,null,null,null,49086,"VAR",3,"Varadero 3","Varadero 3"]
["Cephalopolis fulva","Cful",null,null,null,null,"Coryphopterus glaucofraenum","Cgla","70.55.620",null,null,null,null,null,null,41700,"WHI",1,null,"White  Shoal"]
["Chaetodon falcifer","Cfur",null,null,null,null,"Chilomycterus sp.","Chi","70.46.389",null,null,null,null,null,null,14340,"WLF",1,"La parcela somera está localizada a 12º 30' 4","Wild Life"]
["Carcharhinus galapagensis","cgal",null,null,null,null,"Caranx hippos","Chip","70.55.377",null,null,null,null,null,null,14335,"ZAP",1,"Ubicada afuera de la punta rocosa que cierra la ensenada","Zapsurro M"]
["Coryphopterus glaucofraenum","Cgla",null,null,null,null,"Chaetodon humeralis","Chum","70.55.2649"]
["Chilomycterus sp.","Chi",null,null,null,null,"Chromis insolata","Cins","70.55.516"]
["Caranx hippos","Chip",null,null,null,null,"Coryphopterus lipernes","Clip","70.55.622"]
["Chaetodon humeralis","Chum",null,null,null,null,"Clepticus parrai","Clpa","70.55.528"]
["Chromis insolata","Cins",null,null,null,null,"Caranx lugubris","Clug","70.55.2525"]
["Canthigaster janthinopthera","cjan",null,null,null,null,"Ctenochaetus marginatus","Cmar","70.55.3269","CHORDATA",null,null,"ACANTHURIDAE"]
["Coryphopterus lipernes","Clip",null,null,null,null,"Cantherines macrocerus","Cmcr","70.55.744"]
["Clepticus parrai","Clpa",null,null,null,null,"Caranx melampygus","Cmel","70.55.2711"]
["Caranx lugubris","Clug",null,null,null,null,"Chromis multilineata","Cmul","70.55.517"]
["Ctenochaetus marginatus","Cmar",null,null,null,null,"Coralliozetus cardonae","Coca","70.55.581"]
["Cantherines macrocerus","Cmcr",null,null,null,null,"Chaetodon ocellatus","Coce","70.55.501"]
["Caranx melampygus","Cmel",null,null,null,null,"Coralliozetus sp.","Cora","70.46.290"]
["Chromis multilineata","Cmul",null,null,null,null,"Coryphopterus sp.","Cory","70.46.318"]
["Coralliozetus cardonae","Coca",null,null,null,null,"Cosmocampus sp.","Cosm","70.46.145"]
["Chaetodon ocellatus","Coce",null,null,null,null,"Cirrhitichthys oxycephalus","Coxy","70.55.2777"]
["Coralliozetus sp.","Cora",null,null,null,null,"Cephalopholis panamensis","Cpan","70.55.3231"]
["Coryphopterus sp.","Cory",null,null,null,null,"Coryphopterus personatus","Cper","70.55.623"]
["Cosmocampus sp.","Cosm",null,null,null,null,"Cantherines pullus","Cpul","70.55.745"]
["Cirrhitichthys oxycephalus","Coxy",null,null,null,null,"Canthigaster punctatissima","Cpun","70.55.2663"]
["Cephalopholis panamensis","Cpan",null,null,null,null,"Chilomycterus reticulatus","Cret","70.55.3224"]
["Coryphopterus personatus","Cper",null,null,null,null,"Cirrhithus rivulatus","Criv","70.55.2786"]
["Cantherines pullus","Cpul",null,null,null,null,"Canthigaster rostrata","Cros","70.55.755"]
["Canthigaster punctatissima","Cpun",null,null,null,null,"Cryptotomus roseus","Crro","70.55.541"]
["Chilomycterus reticulatus","Cret",null,null,null,null,"Caranx ruber","Crub","70.55.379"]
["Cirrhithus rivulatus","Criv",null,null,null,null,"Chaetodon sedentarius","Csed","70.55.502"]
["Canthigaster rostrata","Cros",null,null,null,null,"Caranx sexfasciatus","Csex","70.55.2710"]
["Cryptotomus roseus","Crro",null,null,null,null,"Chaetodon striatus","Cstr","70.55.503"]
["Caranx ruber","Crub",null,null,null,null,"Canthidermis sufflamen","Csuf","70.55.736"]
["Chaetodon sedentarius","Csed",null,null,null,null,"Coryphopterus thrix","Cthr","70.55.624"]
["Caranx sexfasciatus","Csex",null,null,null,null,"Canthidermis maculatus","Ctus","70.55.737"]
["Chaetodon striatus","Cstr",null,null,null,null,"Coryphopterus urospilus","Curo","70.55.2714"]
["Canthidermis sufflamen","Csuf",null,null,null,null,"Dasyatis americana","Dame","70.55.34"]
["Coryphopterus thrix","Cthr",null,null,null,null,"Diplectrum bivittatum","Dbiv","70.55.286"]
["Canthidermis maculatus","Ctus",null,null,null,null,"Dermatolepis dermatolepis","Dder","70.55.3225"]
["Coryphopterus urospilus","Curo",null,null,null,null,"Decapterus sp.","Deca","70.46.196"]
["Dasyatis americana","Dame",null,null,null,null,"Doryrhamphus excisus","Dexc","70.55.2798"]
["Diplectrum bivittatum","Dbiv",null,null,null,null,"Diodon holocanthus","Dhol","70.55.767"]
["Dermatolepis dermatolepis","Dder",null,null,null,null,"Diodon hystrix","Dhys","70.55.768"]
["Decapterus sp.","Deca",null,null,null,null,"Epinephelus adscensionis","Eads","70.55.289"]
["Doryrhamphus excisus","Dexc",null,null,null,null,"Elops affinis","Eaff","70.55.2722"]
["Diodon holocanthus","Dhol",null,null,null,null,"Epinephelus analogus","Eana","70.55.2723"]
["Diodon hystrix","Dhys",null,null,null,null,"Emmelichthyops atlanticus","Eatl","70.55.2530"]
["Epinephelus adscensionis","Eads",null,null,null,null,"Elagatis bipinnulata","Ebip","70.55.384"]
["Elops affinis","Eaff",null,null,null,null,"Echidna catenata","Ecat","70.55.58"]
["Epinephelus analogus","Eana",null,null,null,null,"Echeneis sp.","Eche","70.46.189"]
["Emmelichthyops atlanticus","Eatl",null,null,null,null,"Elacatinus digueti","Edig","70.55.3227"]
["Elagatis bipinnulata","Ebip",null,null,null,null,"Elacatinus dilepis","Edil","70.55.626"]
["Echidna catenata","Ecat",null,null,null,null,"Elacatinus evelynae","Eeve","70.55.2557"]
["Echeneis sp.","Eche",null,null,null,null,"Epinephelus guttatus","Egut","70.55.291"]
["Elacatinus digueti","Edig",null,null,null,null,"Elacatinus horsti","Ehor","70.55.627"]
["Elacatinus dilepis","Edil",null,null,null,null,"Elacatinus illecebrosum","Eill","70.55.628"]
["Elacatinus evelynae","Eeve",null,null,null,null,"Elacatinus inornatus","Eino","70.55.3227"]
["Epinephelus guttatus","Egut",null,null,null,null,"Epinephelus itajara","Eita","70.55.292"]
["Elacatinus horsti","Ehor",null,null,null,null,"Epinephelus labriformis","Elab","70.55.2020"]
["Elacatinus illecebrosum","Eill",null,null,null,null,"Equetus lanceolatus","Elan","70.55.469"]
["Elacatinus inornatus","Eino",null,null,null,null,"Elacatinus punticulatus","Elpu","70.55.3229"]
["Epinephelus itajara","Eita",null,null,null,null,"Elacatinus sp.","Elus","70.46.319"]
["Epinephelus labriformis","Elab",null,null,null,null,"Emblemariopsis sp.","Embl","70.46.293"]
["Equetus lanceolatus","Elan",null,null,null,null,"Epinephelus morio","Emor","70.55.293"]
["Euthynnus lineatus","elin",null,null,null,null,"Emblemaria pandionis","Empa","70.55.3363"]
["Elacatinus punticulatus","Elpu",null,null,null,null,"Echeneis naucrates","Enau","70.55.368"]
["Elacatinus sp.","Elus",null,null,null,null,"Echidna nebulosa","Eneb","70.55.3226"]
["Emblemariopsis sp.","Embl",null,null,null,null,"Echeneis neucratoides","Eneu","70.55.369"]
["Epinephelus morio","Emor",null,null,null,null,"Enneanectes sp.","Enne","70.46.280"]
["Emblemaria pandionis","Empa",null,null,null,null,"Epinephelus sp","EpSp","70.46.165"]
["Echeneis naucrates","Enau",null,null,null,null,"Epinephelus panamensis","Epan","70.55.3231"]
["Echidna nebulosa","Eneb",null,null,null,null,"Equetus punctatus","Epun","70.55.470"]
["Echeneis neucratoides","Eneu",null,null,null,null,"Epinephelus sp.","Epus","70.46.165"]
["Enneanectes sp.","Enne",null,null,null,null,"Elacatinus saucrum","Esau","70.55.632"]
["Epinephelus panamensis","Epan",null,null,null,null,"Engyophrys senta","Esen","70.55.702"]
["Elacatinus prochilos","epro",null,null,null,null,"Epinephelus striatus","Estr","70.55.296"]
["Epinephelus sp","EpSp",null,null,null,null,"Elacatinus xanthiprora","Exan","70.55.2561"]
["Equetus punctatus","Epun",null,null,null,null,"Fistularia commersonii","Fcom","70.55.3232"]
["Epinephelus sp.","Epus",null,null,null,null,"Forcipiger flavissimus","Ffla","70.55.3371"]
["Elacatinus saucrum","Esau",null,null,null,null,"Fistularia corneta","Fico","70.55.3233"]
["Engyophrys senta","Esen",null,null,null,null,"Fistularia tabacaria","Ftab","70.55.249"]
["Epinephelus striatus","Estr",null,null,null,null,"Gymnothorax castaneus","Gcas","70.55.2728"]
["Elacatinus xanthiprora","Exan",null,null,null,null,"Gerres cinereus","Gcin","70.55.429"]
["Fistularia commersonii","Fcom",null,null,null,null,"Ginglymostoma cirratum","Gcir","70.55.1"]
["Forcipiger flavissimus","Ffla",null,null,null,null,"Gymnothorax dovii","Gdov","70.55.2729"]
["Fistularia corneta","Fico",null,null,null,null,"Gerres sp.","Gerr","70.46.218"]
["Fistularia tabacaria","Ftab",null,null,null,null,"Gymnothorax funebris","Gfun","70.55.62"]
["Gymnothorax castaneus","Gcas",null,null,null,null,"Gramma loreto","Glor","70.55.333"]
["Gerres cinereus","Gcin",null,null,null,null,"Gramma melacara","Gmel","70.55.334"]
["Ginglymostoma cirratum","Gcir",null,null,null,null,"Gymnothorax miliaris","Gmil","70.55.64"]
["Gymnothorax dovii","Gdov",null,null,null,null,"Gymnothorax moringa","Gmor","70.55.65"]
["Gerres sp.","Gerr",null,null,null,null,"Gymnothorax panamensis","Gpan","70.55.3235"]
["Gymnothorax funebris","Gfun",null,null,null,null,"Gobionellus saepapallens","Gsae","70.55.639"]
["Gramma loreto","Glor",null,null,null,null,"Gnathanodon speciosus","Gspe","70.55.3270"]
["Gramma melacara","Gmel",null,null,null,null,"Gnatholepis thompsoni","Gtho","70.55.635"]
["Gymnothorax miliaris","Gmil",null,null,null,null,"Gymnothorax undulatus","Gund","70.55.2697"]
["Gymnothorax moringa","Gmor",null,null,null,null,"Gymnothorax vicinus","Gvic","70.55.67"]
["Gymnothorax panamensis","Gpan",null,null,null,null,"Gymnothorax flavimarginatus","Gyfl","70.55.3234"]
["Gobionellus saepapallens","Gsae",null,null,null,null,"Gymnomuraena zebra","Gzeb","70.55.2787"]
["Gnathanodon speciosus","Gspe",null,null,null,null,"Hypoplectrus aberrans","Habe","70.55.2082"]
["Gnatholepis thompsoni","Gtho",null,null,null,null,"Halichoeres dispilus","Hadi","70.55.3239"]
["Gymnothorax undulatus","Gund",null,null,null,null,"Holocentrus adscensionis","Hads","70.55.225"]
["Gymnothorax vicinus","Gvic",null,null,null,null,"Haemulon sp.","Haem","70.46.221"]
["Gymnothorax flavimarginatus","Gyfl",null,null,null,null,"Haemulon album","Halb","70.55.434"]
["Gymnomuraena zebra","Gzeb",null,null,null,null,"Halichoeres sp.","Halc","70.46.269"]
["Hypoplectrus aberrans","Habe",null,null,null,null,"Halichoeres discolor","Hald","70.55.3238"]
["Halichoeres dispilus","Hadi",null,null,null,null,"Halichoeres maculipinna (Müller & Troschel, 1848)","Hama","70.55.534","CHORDATA",null,null,"LABRIDAE"]
["Holocentrus adscensionis","Hads",null,null,null,null,"Halichoeres melanotis","Hame","70.55.3241"]
["Haemulon sp.","Haem",null,null,null,null,"Haemulon aurolineatum","Haur","70.55.435"]
["Haemulon album","Halb",null,null,null,null,"Halichoeres bivittatus","Hbiv","70.55.531"]
["Halichoeres sp.","Halc",null,null,null,null,"Haemulon bonariense","Hbon","70.55.436"]
["Halichoeres discolor","Hald",null,null,null,null,"Haemulon carbonarium","Hcar","70.55.438"]
["Halichoeres maculipinna (Müller & Troschel, 1848)","Hama",null,null,null,null,"Halichoeres chierchiae","Hchi","70.55.3237"]
["Halichoeres melanotis","Hame",null,null,null,null,"Haemulon chrysargyreum","Hchr","70.55.439"]
["Haemulon aurolineatum","Haur",null,null,null,null,"Holacanthus ciliaris","Hcil","70.55.506"]
["Halichoeres bivittatus","Hbiv",null,null,null,null,"Holocentrus coruscum","Hcor","70.55.231"]
["Haemulon bonariense","Hbon",null,null,null,null,"Heteropriacanthus cruentatus","Hcru","70.55.343"]
["Haemulon carbonarium","Hcar",null,null,null,null,"Halichoeres cyanocephalus","Hcya","70.55.2600"]
["Halichoeres chierchiae","Hchi",null,null,null,null,"Heteroconger sp.","Hete","70.46.59"]
["Haemulon chrysargyreum","Hchr",null,null,null,null,"Haemulon flaviguttatus","Hfla","70.55.3236"]
["Holacanthus ciliaris","Hcil",null,null,null,null,"Haemulon flavolineatum","Hflo","70.55.440"]
["Holocentrus coruscum","Hcor",null,null,null,null,"Halichoeres garnoti","Hgar","70.55.533"]
["Heteropriacanthus cruentatus","Hcru",null,null,null,null,"Hypoplectrus gummigutta","Hgum","70.55.297"]
["Halichoeres cyanocephalus","Hcya",null,null,null,null,"Hoplopagrus guntheri","Hgun","70.55.2790"]
["Heteroconger sp.","Hete",null,null,null,null,"Hypoplectrus guttavarius","Hgut","70.55.298"]
["Haemulon flaviguttatus","Hfla",null,null,null,null,"Harengula humeralis","Hhum","70.55.125"]
["Haemulon flavolineatum","Hflo",null,null,null,null,"Hypoplectrus indigo","Hind","70.55.299"]
["Halichoeres garnoti","Hgar",null,null,null,null,"Hippocampus ingens","Hing","70.55.2405"]
["Hypoplectrus gummigutta","Hgum",null,null,null,null,"Heteroconger longissimus","Hlon","70.55.91"]
["Hoplopagrus guntheri","Hgun",null,null,null,null,"Haemulon maculicauda","Hmac","70.55.2731"]
["Hypoplectrus guttavarius","Hgut",null,null,null,null,"Halichoeres malpelo","Hmal","70.55.3240"]
["Harengula humeralis","Hhum",null,null,null,null,"Haemulon macrostomum","Hmar","70.55.441"]
["Hypoplectrus indigo","Hind",null,null,null,null,"Haemulon melanurum","Hmel","70.55.442"]
["Hippocampus ingens","Hing",null,null,null,null,"Halichoeres nicholsi","Hnic","70.55.3242"]
["Heteroconger longissimus","Hlon",null,null,null,null,"Hypoplectrus nigricans","Hnig","70.55.300"]
["Haemulon maculicauda","Hmac",null,null,null,null,"Halichoeres notospilus","Hnot","70.55.3243"]
["Halichoeres malpelo","Hmal",null,null,null,null,"Haemulon parra","Hpar","70.55.443"]
["Haemulon macrostomum","Hmar",null,null,null,null,"Holacanthus passer","Hpas","70.55.2652"]
["Haemulon melanurum","Hmel",null,null,null,null,"Halichoeres pictus","Hpic","70.55.535"]
["Halichoeres nicholsi","Hnic",null,null,null,null,"Haemulon plumieri","Hplu","70.55.444"]
["Hypoplectrus nigricans","Hnig",null,null,null,null,"Halichoeres poeyi","Hpoe","70.55.536"]
["Halichoeres notospilus","Hnot",null,null,null,null,"Hypoplectrus providencianus","Hpro","70.55.2406"]
["Haemulon parra","Hpar",null,null,null,null,"Hypoplectrus puella","Hpue","70.55.301"]
["Holacanthus passer","Hpas",null,null,null,null,"Halichoeres radiatus","Hrad","70.55.537"]
["Halichoeres pictus","Hpic",null,null,null,null,"Holocentrus rufus","Hruf","70.55.226"]
["Hypoplectrus planifrons","hpla",null,null,null,null,"Hemiramphus saltator","Hsae","70.55.2734"]
["Haemulon plumieri","Hplu",null,null,null,null,"Haemulon sciurus","Hsci","70.55.445"]
["Halichoeres poeyi","Hpoe",null,null,null,null,"Haemulon sexfasciatum","Hsex","70.55.2730"]
["Hypoplectrus providencianus","Hpro",null,null,null,null,"Hypoplectrus n. sp. 1 (tan hamlet)","Hsp1","70.46.166"]
["Hypoplectrus puella","Hpue",null,null,null,null,"Hypoplectrus n. sp. 2 (lagrima)","Hsp2","70.46.166"]
["Halichoeres radiatus","Hrad",null,null,null,null,"Haemulon steindachneri","Hste","70.55.446"]
["Holocentrus rufus","Hruf",null,null,null,null,"Haemulon striatum","Hstr","70.55.447"]
["Hemiramphus saltator","Hsae",null,null,null,null,"Holacanthus tricolor","Htri","70.55.507"]
["Haemulon sciurus","Hsci",null,null,null,null,"Hypoplectrus unicolor","Huni","70.55.302"]
["Haemulon sexfasciatum","Hsex",null,null,null,null,"Holocentrus vexillarius","Hvex","70.55.232"]
["Hypoplectrus n. sp. 1 (tan hamlet)","Hsp1",null,null,null,null,"Hypoplectrus sp.","Hypo","70.46.166"]
["Hypoplectrus n. sp. 2 (lagrima)","Hsp2",null,null,null,null,"Inermia vittata","Ivit","70.55.451"]
["Haemulon steindachneri","Hste",null,null,null,null,"Jenkinsia sp.","Jenk","70.46.79"]
["Haemulon striatum","Hstr",null,null,null,null,"Johnrandallia nigrirostris","Jnig","70.55.2643"]
["Holacanthus tricolor","Htri",null,null,null,null,"Kyphosus analogus","Kana","70.55.2737"]
["Hypoplectrus unicolor","Huni",null,null,null,null,"Kyphosus elegans","Kele","70.55.2736"]
["Holocentrus vexillarius","Hvex",null,null,null,null,"Kyphosus sectatrix","Ksec","70.55.511"]
["Hypoplectrus sp.","Hypo",null,null,null,null,"Kyphosus sp.","Kyph","70.46.259"]
["Inermia vittata","Ivit",null,null,null,null,"Labrisomus sp.","Labr","70.46.284"]
["Jenkinsia sp.","Jenk",null,null,null,null,"Lutjanus analis","Lana","70.55.406"]
["Johnrandallia nigrirostris","Jnig",null,null,null,null,"Lutjanus apodus","Lapo","70.55.407"]
["Kyphosus analogus","Kana",null,null,null,null,"Lutjanus aratus","Lara","70.55.2742"]
["Kyphosus elegans","Kele",null,null,null,null,"Lutjanus argentiventris","Larg","70.55.2634"]
["Kyphosus sectatrix","Ksec",null,null,null,null,"Lepidonectes bimaculata","Lbim","70.55.3271"]
["Kyphosus sp.","Kyph",null,null,null,null,"Lutjanus buccanella","Lbuc","70.55.408"]
["Labrisomus sp.","Labr",null,null,null,null,"Lutjanus cyanopterus","Lcya","70.55.409"]
["Lutjanus analis","Lana",null,null,null,null,"Lythrypnus dalli","Ldal","70.55.2010"]
["Lutjanus apodus","Lapo",null,null,null,null,"Labrisomus dendriticus","Lden","70.55.3246"]
["Lutjanus aratus","Lara",null,null,null,null,"Lutjanus griseus","Lgri","70.55.410"]
["Lutjanus argentiventris","Larg",null,null,null,null,"Lutjanus guttatus","Lgut","70.55.2680"]
["Lepidonectes bimaculata","Lbim",null,null,null,null,"Lutjanus inermis","Line","70.55.2741"]
["Lutjanus buccanella","Lbuc",null,null,null,null,"Liopropoma sp.","Liop","70.46.167"]
["Lutjanus cyanopterus","Lcya",null,null,null,null,"Lutjanus jocu","Ljoc","70.55.411"]
["Lythrypnus dalli","Ldal",null,null,null,null,"Lutjanus jordani","Ljor","70.55.2681"]
["Labrisomus dendriticus","Lden",null,null,null,null,"Lutjanus mahogoni","Lmah","70.55.412"]
["Lutjanus griseus","Lgri",null,null,null,null,"Lachnolaimus maximus","Lmax","70.55.538"]
["Lutjanus guttatus","Lgut",null,null,null,null,"Lutjanus novemfasciatus","Lnov","70.55.2740"]
["Lutjanus inermis","Line",null,null,null,null,"Liopropoma rubre","Lrub","70.55.304"]
["Liopropoma sp.","Liop",null,null,null,null,"Lutjanus synagris","Lsyn","70.55.414"]
["Lutjanus jocu","Ljoc",null,null,null,null,"Lactophrys trigonus","Ltri","70.55.752"]
["Lutjanus jordani","Ljor",null,null,null,null,"Lutjanus colorado","Luco","70.55.2739"]
["Lutjanus mahogoni","Lmah",null,null,null,null,"Lutjanus sp.","Lutj","70.46.210"]
["Lachnolaimus maximus","Lmax",null,null,null,null,"Lutjanus viridis","Luvi","70.55.2648"]
["Lutjanus novemfasciatus","Lnov",null,null,null,null,"Lucayablennius zingaro","Lzin","70.55.586"]
["Liopropoma rubre","Lrub",null,null,null,null,"Malacoctenus boehlkei","Mabo","70.55.2541"]
["Lutjanus synagris","Lsyn",null,null,null,null,"Mycteroperca acutirostris","Macu","70.55.305"]
["Lactophrys trigonus","Ltri",null,null,null,null,"Malacoctenus sp.","Mala","70.46.285"]
["Lutjanus colorado","Luco",null,null,null,null,"Microspathodon bairdii","Mbai","70.55.3248"]
["Lutjanus sp.","Lutj",null,null,null,null,"Myripristis berndti","Mber","70.55.3252"]
["Lutjanus viridis","Luvi",null,null,null,null,"Manta birostris","Mbir","70.55.41"]
["Lucayablennius zingaro","Lzin",null,null,null,null,"Mycteroperca bonaci","Mbon","70.55.306"]
["Malacoctenus boehlkei","Mabo",null,null,null,null,"Malacanthus brevirostris","Mbre","70.55.2744"]
["Mycteroperca acutirostris","Macu",null,null,null,null,"Microspathodon chrysurus","Mchr","70.55.519"]
["Malacoctenus sp.","Mala",null,null,null,null,"Muraena clepsydra","Mcle","70.55.2658"]
["Microspathodon bairdii","Mbai",null,null,null,null,"Mulloidichthys dentatus","Mden","70.55.2698"]
["Myripristis berndti","Mber",null,null,null,null,"Microspathodon dorsalis","Mdor","70.55.3249"]
["Manta birostris","Mbir",null,null,null,null,"Mycteroperca interstitialis","Mint","70.55.308"]
["Mycteroperca bonaci","Mbon",null,null,null,null,"Myripristis jacobus","Mjac","70.55.227"]
["Malacanthus brevirostris","Mbre",null,null,null,null,"Myripristis leiognathus","Mlei","70.55.2661"]
["Microspathodon chrysurus","Mchr",null,null,null,null,"Muraena lentiginosa","Mlen","70.55.2656"]
["Muraena clepsydra","Mcle",null,null,null,null,"Malacoctenus macropus","Mmac","70.55.568"]
["Mulloidichthys dentatus","Mden",null,null,null,null,"Muraena miliaris","Mmil","70.55.3250"]
["Microspathodon dorsalis","Mdor",null,null,null,null,"Melichthys niger","Mnig","70.55.738"]
["Mycteroperca interstitialis","Mint",null,null,null,null,"Mycteroperca olfax","Molf","70.55.3251"]
["Myripristis jacobus","Mjac",null,null,null,null,"Monacanthus sp.","Mona","70.46.381"]
["Myripristis leiognathus","Mlei",null,null,null,null,"Mycteroperca phenax","Mphe","70.55.309"]
["Muraena lentiginosa","Mlen",null,null,null,null,"Malacanthus plumieri","Mplu","70.55.366"]
["Malacoctenus macropus","Mmac",null,null,null,null,"Mycteroperca tigris","Mtig","70.55.310"]
["Muraena miliaris","Mmil",null,null,null,null,"Malacoctenus triangulatus","Mtri","70.55.569"]
["Melichthys niger","Mnig",null,null,null,null,"Monacanthus tuckeri","Mtuc","70.55.747"]
["Mycteroperca olfax","Molf",null,null,null,null,"Mulloidichthys martinicus","Muma","70.55.494"]
["Monacanthus sp.","Mona",null,null,null,null,"Melichthys vidua","Mvid","70.55.3247"]
["Mycteroperca phenax","Mphe",null,null,null,null,"Mycteroperca xenarcha","Mxen","70.55.2791"]
["Malacanthus plumieri","Mplu",null,null,null,null,"Myrichthys breviceps","Mybr","70.55.77"]
["Mycteroperca tigris","Mtig",null,null,null,null,"Mycteroperca sp.","Myct","70.46.168"]
["Malacoctenus triangulatus","Mtri",null,null,null,null,"Mycteroperca venenosa","Myve","70.55.311"]
["Monacanthus tuckeri","Mtuc",null,null,null,null,"Nicholsina denticulata","Nden","70.55.3253"]
["Mulloidichthys martinicus","Muma",null,null,null,null,"Neoniphon marianus","Nmar","70.55.228"]
["Melichthys vidua","Mvid",null,null,null,null,"Novaculichthys taeniourus","Ntae","70.55.3272"]
["Mycteroperca xenarcha","Mxen",null,null,null,null,"Ophioblennius atlanticus","Oatl","70.55.595"]
["Myrichthys breviceps","Mybr",null,null,null,null,"Opisthognathus aurifrons","Oaur","70.55.339"]
["Mycteroperca sp.","Myct",null,null,null,null,"Ocyurus chrysurus","Ochr","70.55.416"]
["Mycteroperca venenosa","Myve",null,null,null,null,"Odontoscion dentex","Oden","70.55.479"]
["Nicholsina denticulata","Nden",null,null,null,null,"Ogcocephalus sp.","Ogco","70.46.114"]
["Neoniphon marianus","Nmar",null,null,null,null,"Opistognathus macrognathus","Omac","70.55.2022"]
["Novaculichthys taeniourus","Ntae",null,null,null,null,"Ostracion meleagris","Omel","70.55.3273"]
["Ophioblennius atlanticus","Oatl",null,null,null,null,"Opistognathus panamensis","Opan","70.55.3369"]
["Opisthognathus aurifrons","Oaur",null,null,null,null,"Ophioblennius macclurei","Opma","70.55.595"]
["Ocyurus chrysurus","Ochr",null,null,null,null,"Ophioblennius steindachneri","Oste","70.55.2657"]
["Odontoscion dentex","Oden",null,null,null,null,"Oxycirrhites typus","Otyp","70.55.2802"]
["Ogcocephalus sp.","Ogco",null,null,null,null,"Odontoscion xanthops","Oxan","70.55.3254"]
["Opistognathus macrognathus","Omac",null,null,null,null,"Paranthias colonus","Paco","70.55.2751"]
["Ostracion meleagris","Omel",null,null,null,null,"Pareques acuminatus","Pacu","70.55.482"]
["Opistognathus panamensis","Opan",null,null,null,null,"Paranthias furcifer","Pafu","70.55.312"]
["Ophioblennius macclurei","Opma",null,null,null,null,"Pomacanthus arcuatus","Parc","70.55.508"]
["Ophioblennius steindachneri","Oste",null,null,null,null,"Priacanthus arenatus","Pare","70.55.344"]
["Oxycirrhites typus","Otyp",null,null,null,null,"Plagiotremus azaleus","Paza","70.55.2803"]
["Odontoscion xanthops","Oxan",null,null,null,null,"Pempheris sp.","Pem","70.46.253"]
["Paranthias colonus","Paco",null,null,null,null,"Ptereleotris helenae","Phel","70.55.664"]
["Pareques acuminatus","Pacu",null,null,null,null,"Priolepis hipoliti","Phip","70.55.656"]
["Paranthias furcifer","Pafu",null,null,null,null,"Parasphyraenops incisus","Pinc","70.55.313"]
["Pomacanthus arcuatus","Parc",null,null,null,null,"Prionurus laticlavius","Plat","70.55.3255"]
["Priacanthus arenatus","Pare",null,null,null,null,"Pseudupeneus maculatus","Pmac","70.55.496"]
["Plagiotremus azaleus","Paza",null,null,null,null,"Pseudobalistes naufragium","Pnau","70.55.3274"]
["Pempheris sp.","Pem",null,null,null,null,"Pomacanthus paru","Popa","70.55.509"]
["Ptereleotris helenae","Phel",null,null,null,null,"Priacanthus sp.","Pria","70.46.181"]
["Priolepis hipoliti","Phip",null,null,null,null,"Pempheris schomburgkii","Psch","70.55.499"]
["Parasphyraenops incisus","Pinc",null,null,null,null,"Pseudupeneus grandisquamis","Psgr","70.55.2755"]
["Prionurus laticlavius","Plat",null,null,null,null,"Pterois volitans","Pvol","70.55.3355"]
["Pseudupeneus maculatus","Pmac",null,null,null,null,"Phaeoptyx xenus","Pxen","70.55.363"]
["Pseudobalistes naufragium","Pnau",null,null,null,null,"Pomacanthus zonipectus","Pzon","70.55.2788"]
["Pomacanthus paru","Popa",null,null,null,null,"Rypticus bicolor","Rbic","70.55.2759"]
["Priacanthus sp.","Pria",null,null,null,null,"Rhinesomus bicaudalis","Rhbi","70.55.753"]
["Pempheris schomburgkii","Psch",null,null,null,null,"Remora remora","Rrem","70.55.370"]
["Pseudupeneus grandisquamis","Psgr",null,null,null,null,"Rypticus saponaceus","Rsap","70.55.320"]
["Pterois volitans","Pvol",null,null,null,null,"Rypticus subbifrenatus","Rsub","70.55.321"]
["Phaeoptyx xenus","Pxen",null,null,null,null,"Rhinesomus triqueter","Rtri","70.55.754"]
["Pomacanthus zonipectus","Pzon",null,null,null,null,"Rhincodon typus","Rtyp","70.55.2"]
["Rypticus bicolor","Rbic",null,null,null,null,"Stegastes acapulcoensis","Saca","70.55.2653"]
["Rhinesomus bicaudalis","Rhbi",null,null,null,null,"Stegastes adustus","Sadu","70.55.521"]
["Remora remora","Rrem",null,null,null,null,"Sphoeroides annulatus","Sann","70.55.2688"]
["Rypticus saponaceus","Rsap",null,null,null,null,"Sparisoma radians","Sara","70.55.552"]
["Rypticus subbifrenatus","Rsub",null,null,null,null,"Stegastes arcifrons","Sarc","70.55.3259"]
["Rhinesomus triqueter","Rtri",null,null,null,null,"Sparisoma atomarium","Sato","70.55.549"]
["Rhincodon typus","Rtyp",null,null,null,null,"Sparisoma aurofrenatum","Saur","70.55.550"]
["Stegastes acapulcoensis","Saca",null,null,null,null,"Serranus baldwini","Sbal","70.55.325"]
["Stegastes adustus","Sadu",null,null,null,null,"Stethojulis bandanensis","Sban","70.55.3275"]
["Sphoeroides annulatus","Sann",null,null,null,null,"Sphyraena barracuda","Sbar","70.55.669"]
["Sparisoma radians","Sara",null,null,null,null,"Scomberomorus brasiliensis","Sbra","70.55.682"]
["Stegastes arcifrons","Sarc",null,null,null,null,"Scarus sp.","Scar","70.46.275"]
["Sparisoma atomarium","Sato",null,null,null,null,"Scomberomorus cavalla","Scav","70.55.683"]
["Sparisoma aurofrenatum","Saur",null,null,null,null,"Scarus coelestinus","Scco","70.55.543"]
["Serranus baldwini","Sbal",null,null,null,null,"Scorpaenodes sp.","Sces","70.46.156"]
["Stethojulis bandanensis","Sban",null,null,null,null,"Serranus chionaraia","Schi","70.55.326"]
["Stethojulis bandanensis","sban",null,null,null,null,"Sparisoma chrysopterum","Schr","70.55.551"]
["Sphyraena barracuda","Sbar",null,null,null,null,"Scarus compressus","Sco3","70.55.3256"]
["Scomberomorus brasiliensis","Sbra",null,null,null,null,"Scomberomorus sp.","Scob","70.46.350"]
["Scarus sp.","Scar",null,null,null,null,"Scarus coeruleus","Scoe","70.55.544"]
["Scomberomorus cavalla","Scav",null,null,null,null,"Scarus croicensis","Scro","70.55.545"]
["Scarus coelestinus","Scco",null,null,null,null,"Stegastes diencaeus","Sdie","70.55.520"]
["Scorpaenodes sp.","Sces",null,null,null,null,"Scorpaena sp.","Sena","70.46.155"]
["Serranus chionaraia","Schi",null,null,null,null,"Sphyraena ensis","Sens","70.55.2689"]
["Sparisoma chrysopterum","Schr",null,null,null,null,"Serranus sp.","Serr","70.46.175","CHORDATA",null,null,"SERRANIDAE"]
["Scomberomorus sp.","Scob",null,null,null,null,"Serranus fasciatus","Sfas","70.46.175"]
["Scarus coeruleus","Scoe",null,null,null,null,"Stegastes flavilatus","Sfla","70.55.2768"]
["Scarus compressus","Sco3",null,null,null,null,"Stegastes fuscus","Sfus","70.55.3260"]
["Scarus croicensis","Scro",null,null,null,null,"Scarus ghobban","Sgho","70.55.2760"]
["Stegastes diencaeus","Sdie",null,null,null,null,"Scarus guacamaia","Sgua","70.55.546"]
["Scorpaena sp.","Sena",null,null,null,null,"Scorpaena histrio","Shis","70.55.2390"]
["Sphyraena ensis","Sens",null,null,null,null,"Scarus iseri","Sise","70.55.3576"]
["Serranus sp.","Serr",null,null,null,null,"Seriola lalandi","Slal","70.55.2763"]
["Serranus fasciatus","Sfas",null,null,null,null,"Stegastes leucostictus","Sleu","70.55.522"]
["Stegastes flavilatus","Sfla",null,null,null,null,"Sphyrna lewini","Slew","70.55.19"]
["Stegastes fuscus","Sfus",null,null,null,null,"Sphoeroides lobatus","Slob","70.55.2632"]
["Scarus ghobban","Sgho",null,null,null,null,"Sphyraena lucasana","Sluc","70.55.3258"]
["Scarus guacamaia","Sgua",null,null,null,null,"Scorpaena mystes","Smys","70.55.2660"]
["Scorpaena histrio","Shis",null,null,null,null,"Sectator ocyurus","Socy","70.55.2799"]
["Scarus iseri","Sise",null,null,null,null,"Sphoeroides pachygaster","Spac","70.55.761"]
["Seriola lalandi","Slal",null,null,null,null,"Stegastes partitus","Spar","70.55.523"]
["Stegastes leucostictus","Sleu",null,null,null,null,"Scarus perrico","Sper","70.55.3257"]
["Sphyrna lewini","Slew",null,null,null,null,"Sphyraena picudilla","Spic","70.55.671"]
["Sphoeroides lobatus","Slob",null,null,null,null,"Stegastes planifrons","Spla","70.55.524"]
["Sphyraena lucasana","Sluc",null,null,null,null,"Scorpaena plumieri","Splu","70.55.264"]
["Scorpaena mystes","Smys",null,null,null,null,"Serranus psittacinus","Spsi","70.55.2659"]
["Sectator ocyurus","Socy",null,null,null,null,"Sparisoma sp.","Spsp","70.46.276"]
["Sphoeroides pachygaster","Spac",null,null,null,null,"Stegastes rectifraenum","Srec","70.55.2767"]
["Stegastes partitus","Spar",null,null,null,null,"Scomberomorus regalis","Sreg","70.55.684"]
["Scarus perrico","Sper",null,null,null,null,"Seriola rivoliana","Sriv","70.55.396"]
["Sphyraena picudilla","Spic",null,null,null,null,"Sparisoma rubripinne","Srub","70.55.553"]
["Stegastes planifrons","Spla",null,null,null,null,"Scarus rubroviolaceus","Srur","70.46.275"]
["Scorpaena plumieri","Splu",null,null,null,null,"Synodus saurus","Ssau","70.55.144"]
["Serranus psittacinus","Spsi",null,null,null,null,"Strongylura scapularis","Ssca","70.55.3262"]
["Sparisoma sp.","Spsp",null,null,null,null,"Scomberomorus sierra","Ssie","70.55.2686"]
["Sphyraena qenie","sqen",null,null,null,null,"Sphoeroides spengleri","Sspl","70.55.762"]
["Stegastes rectifraenum","Srec",null,null,null,null,"Sargocentron suborbitalis","Ssub","70.55.2639"]
["Scomberomorus regalis","Sreg",null,null,null,null,"Serranus tabacarius","Stab","70.55.330"]
["Seriola rivoliana","Sriv",null,null,null,null,"Scarus taeniopterus","Stae","70.55.547"]
["Sparisoma rubripinne","Srub",null,null,null,null,"Serranus tigrinus","Stig","70.55.331"]
["Scarus rubroviolaceus","Srur",null,null,null,null,"Stegastes leucorus","Stle","70.55.3261"]
["Synodus saurus","Ssau",null,null,null,null,"Serranus tortugarum","Stor","70.55.332"]
["Strongylura scapularis","Ssca",null,null,null,null,"Stegastes variabilis","Svar","70.55.525"]
["Scomberomorus sierra","Ssie",null,null,null,null,"Sufflamen verres","Sver","70.55.2795"]
["Sphoeroides spengleri","Sspl",null,null,null,null,"Scarus vetula","Svet","70.55.548"]
["Sargocentron suborbitalis","Ssub",null,null,null,null,"Sargocentron vexillarium","Svex","70.55.232"]
["Serranus tabacarius","Stab",null,null,null,null,"Sparisoma viride","Svir","70.55.554"]
["Scarus taeniopterus","Stae",null,null,null,null,"Scorpaenodes xyris","Sxyr","70.55.2761"]
["Serranus tigrinus","Stig",null,null,null,null,"Synodus intermedius","Syin","70.55.142"]
["Stegastes leucorus","Stle",null,null,null,null,"Synodus lacertinus","Syla","70.55.2654"]
["Serranus tortugarum","Stor",null,null,null,null,"Synodus sp.","Syno","70.46.88"]
["Stegastes variabilis","Svar",null,null,null,null,"Tylosurus acus pacificus","Tacu","70.58.3","CHORDATA"]
["Sufflamen verres","Sver",null,null,null,null,"Thunnus albacares","Talb","70.55.2567","CHORDATA"]
["Scarus vetula","Svet",null,null,null,null,"Thalassoma bifasciatum","Tbif","70.55.539","CHORDATA"]
["Sargocentron vexillarium","Svex",null,null,null,null,"Tylosurus crocodilus","Tcro","70.55.208","CHORDATA"]
["Sparisoma viride","Svir",null,null,null,null,"Trachinotus falcatus","Tfal","70.55.399","CHORDATA"]
["Scorpaenodes xyris","Sxyr",null,null,null,null,"Thalassoma grammaticum","Tgra","70.55.3263","CHORDATA"]
["Synodus intermedius","Syin",null,null,null,null,"Thalassoma lucasanum","Tluc","70.55.2662","CHORDATA"]
["Synodus lacertinus","Syla",null,null,null,null,"Triaenodon obesus","Tobe","70.55.2796"]
["Synodus sp.","Syno",null,null,null,null,"Trachinotus stilbe","Tsti","70.55.3264"]
["Tylosurus acus pacificus","Tacu",null,null,null,null,"Tylosurus sp.","Tylo","70.46.126"]
["Thunnus albacares","Talb",null,null,null,null,"Urobatis jamaicensis","Ujam","70.55.38"]
["Thalassoma bifasciatum","Tbif",null,null,null,null,"Xyrichtys martinicensis","Xmar","70.55.2538"]
["Tylosurus crocodilus","Tcro",null,null,null,null,"Xanthichthys mento","Xmen","70.55.3265"]
["Trachinotus falcatus","Tfal",null,null,null,null,"Xyrichtys novacula","Xnov","70.55.540"]
["Thalassoma grammaticum","Tgra",null,null,null,null,"Xanthichthys ringens","Xrin","70.55.739"]
["Thalassoma lucasanum","Tluc",null,null,null,null,"Xyrichthys splendens","Xspl","70.55.2539"]
["Triaenodon obesus","Tobe",null,null,null,null,"Zanclus cornutus","Zcor","70.55.3276"]
["Trachinotus stilbe","Tsti",null,null,null,null,"Ablennes hians","ahia","70.55.203"]
["Tylosurus sp.","Tylo",null,null,null,null,"Chanos chanos","ccha","70.55.3268"]
["Urobatis jamaicensis","Ujam",null,null,null,null,"Carcharhinus galapagensis","cgal","70.46.4"]
["Xyrichtys martinicensis","Xmar",null,null,null,null,"Canthigaster janthinopthera","cjan","70.55.3365"]
["Xanthichthys mento","Xmen",null,null,null,null,"Euthynnus lineatus","elin","70.55.2725"]
["Xyrichtys novacula","Xnov",null,null,null,null,"Elacatinus prochilos","epro","70.46.319"]
["Xanthichthys ringens","Xrin",null,null,null,null,"Hypoplectrus planifrons","hpla","70.46.166"]
["Xyrichthys splendens","Xspl",null,null,null,null,"Stethojulis bandanensis","sban","70.55.3275"]
["Zanclus cornutus","Zcor",null,null,null,null,"Sphyraena qenie","sqen","70.55.3367"]

{"sheet":"OTRAS REFERENTES","index":5,"n_rows":148,"n_cols":13,"rows_kept":148,"cut":false,"hidden":false,"merged":[[0,0,2,10],[4,0,4,1],[4,5,4,6],[26,0,26,2]]}
["Estas son listas para variables con valores que no se encuentran codificados, pero que deben manejarse de manera estandarizada. \nSi se requiere agregar un valor nuevo hagalo debajo de la lista correspondiente"]
[]
[]
[]
["PROFUNDIDAD",null,null,"METODOS",null,"PROYECTOS",null,null,null,null,null,{"$f":"IF(AND(REFERENTES!R2<>\"\",          REFERENTES!R2<>96321,    REFERENTES!R2<>96222            ),CONCATENATE(REFERENTES!Q2,\"-\",REFERENTES!R2),\"\")","v":"ACU-1"},{"$f":"REFERENTES!P2","v":14311}]
["Descripcion","Codigo",null,"NOMBRE_MT","CODIGO","Descripcion","Codigo",null,null,null,null,{"$f":"IF(AND(REFERENTES!R3<>\"\",          REFERENTES!R3<>96321,    REFERENTES!R3<>96222            ),CONCATENATE(REFERENTES!Q3,\"-\",REFERENTES!R3),\"\")","v":"ACU-2"},{"$f":"REFERENTES!P3","v":14312}]
["Somero","S",null,"Manual de métodos de SIMAC: Cadena rotulada cada diez eslabones","Car","Sistema de Monitoreo de los Arrecifes Coralinos en Colombia",1480,null,null,null,null,{"$f":"IF(AND(REFERENTES!R4<>\"\",          REFERENTES!R4<>96321,    REFERENTES!R4<>96222            ),CONCATENATE(REFERENTES!Q4,\"-\",REFERENTES!R4),\"\")","v":"AGU-1"},{"$f":"REFERENTES!P4","v":14338}]
["Medio","M",null,null,null,"Restauración banco de las Ánimas, departamento del Magdalena",3316,null,null,null,null,{"$f":"IF(AND(REFERENTES!R5<>\"\",          REFERENTES!R5<>96321,    REFERENTES!R5<>96222            ),CONCATENATE(REFERENTES!Q5,\"-\",REFERENTES!R5),\"\")","v":"AZU-1"},{"$f":"REFERENTES!P5","v":14341}]
["Profundo","P",null,null,null,null,null,null,null,null,null,{"$f":"IF(AND(REFERENTES!R6<>\"\",          REFERENTES!R6<>96321,    REFERENTES!R6<>96222            ),CONCATENATE(REFERENTES!Q6,\"-\",REFERENTES!R6),\"\")","v":"AZU-2"},{"$f":"REFERENTES!P6","v":14342}]
[null,null,null,null,null,null,null,null,null,null,null,{"$f":"IF(AND(REFERENTES!R7<>\"\",          REFERENTES!R7<>96321,    REFERENTES!R7<>96222            ),CONCATENATE(REFERENTES!Q7,\"-\",REFERENTES!R7),\"\")","v":"POR-1"},{"$f":"REFERENTES!P7","v":43726}]
[null,null,null,null,null,null,null,null,null,null,null,{"$f":"IF(AND(REFERENTES!R8<>\"\",          REFERENTES!R8<>96321,    REFERENTES!R8<>96222            ),CONCATENATE(REFERENTES!Q8,\"-\",REFERENTES!R8),\"\")","v":"BGO-1"},{"$f":"REFERENTES!P8","v":55425}]
[null,null,null,null,null,null,null,null,null,null,null,{"$f":"IF(AND(REFERENTES!R9<>\"\",          REFERENTES!R9<>96321,    REFERENTES!R9<>96222            ),CONCATENATE(REFERENTES!Q9,\"-\",REFERENTES!R9),\"\")","v":"CTI-2"},{"$f":"REFERENTES!P9","v":14333}]
[null,null,null,null,null,null,null,null,null,null,null,{"$f":"IF(AND(REFERENTES!R10<>\"\",          REFERENTES!R10<>96321,    REFERENTES!R10<>96222            ),CONCATENATE(REFERENTES!Q10,\"-\",REFERENTES!R10),\"\")","v":"CTI-1"},{"$f":"REFERENTES!P10","v":14334}]
[null,null,null,null,null,null,null,null,null,null,null,{"$f":"IF(AND(REFERENTES!R11<>\"\",          REFERENTES!R11<>96321,    REFERENTES!R11<>96222            ),CONCATENATE(REFERENTES!Q11,\"-\",REFERENTES!R11),\"\")","v":"CAP-1"},{"$f":"REFERENTES!P11","v":14336}]
[null,null,null,null,null,null,null,null,null,null,null,{"$f":"IF(AND(REFERENTES!R12<>\"\",          REFERENTES!R12<>96321,    REFERENTES!R12<>96222            ),CONCATENATE(REFERENTES!Q12,\"-\",REFERENTES!R12),\"\")","v":"CAP-2"},{"$f":"REFERENTES!P12","v":14337}]
[null,null,null,null,null,null,null,null,null,null,null,{"$f":"IF(AND(REFERENTES!R13<>\"\",          REFERENTES!R13<>96321,    REFERENTES!R13<>96222            ),CONCATENATE(REFERENTES!Q13,\"-\",REFERENTES!R13),\"\")","v":"CEY-1"},{"$f":"REFERENTES!P13","v":14331}]
[null,null,null,null,null,null,null,null,null,null,null,{"$f":"IF(AND(REFERENTES!R14<>\"\",          REFERENTES!R14<>96321,    REFERENTES!R14<>96222            ),CONCATENATE(REFERENTES!Q14,\"-\",REFERENTES!R14),\"\")","v":"CEY-2"},{"$f":"REFERENTES!P14","v":14308}]
[null,null,null,null,null,null,null,null,null,null,null,{"$f":"IF(AND(REFERENTES!R15<>\"\",          REFERENTES!R15<>96321,    REFERENTES!R15<>96222            ),CONCATENATE(REFERENTES!Q15,\"-\",REFERENTES!R15),\"\")","v":"CEY-3"},{"$f":"REFERENTES!P15","v":41651}]
[null,null,null,null,null,null,null,null,null,null,null,{"$f":"IF(AND(REFERENTES!R16<>\"\",          REFERENTES!R16<>96321,    REFERENTES!R16<>96222            ),CONCATENATE(REFERENTES!Q16,\"-\",REFERENTES!R16),\"\")","v":"CHE-4"},{"$f":"REFERENTES!P16","v":41705}]
[null,null,null,null,null,null,null,null,null,null,null,{"$f":"IF(AND(REFERENTES!R17<>\"\",          REFERENTES!R17<>96321,    REFERENTES!R17<>96222            ),CONCATENATE(REFERENTES!Q17,\"-\",REFERENTES!R17),\"\")","v":"CHE-3"},{"$f":"REFERENTES!P17","v":15508}]
[null,null,null,null,null,null,null,null,null,null,null,{"$f":"IF(AND(REFERENTES!R18<>\"\",          REFERENTES!R18<>96321,    REFERENTES!R18<>96222            ),CONCATENATE(REFERENTES!Q18,\"-\",REFERENTES!R18),\"\")","v":"CHE-1"},{"$f":"REFERENTES!P18","v":14297}]
[null,null,null,null,null,null,null,null,null,null,null,{"$f":"IF(AND(REFERENTES!R19<>\"\",          REFERENTES!R19<>96321,    REFERENTES!R19<>96222            ),CONCATENATE(REFERENTES!Q19,\"-\",REFERENTES!R19),\"\")","v":"CHE-2"},{"$f":"REFERENTES!P19","v":14298}]
[null,null,null,null,null,null,null,null,null,null,null,{"$f":"IF(AND(REFERENTES!R20<>\"\",          REFERENTES!R20<>96321,    REFERENTES!R20<>96222            ),CONCATENATE(REFERENTES!Q20,\"-\",REFERENTES!R20),\"\")","v":"CIN-2"},{"$f":"REFERENTES!P20","v":41704}]
[null,null,null,null,null,null,null,null,null,null,null,{"$f":"IF(AND(REFERENTES!R21<>\"\",          REFERENTES!R21<>96321,    REFERENTES!R21<>96222            ),CONCATENATE(REFERENTES!Q21,\"-\",REFERENTES!R21),\"\")","v":"CIN-1"},{"$f":"REFERENTES!P21","v":41703}]
[null,null,null,null,null,null,null,null,null,null,null,{"$f":"IF(AND(REFERENTES!R22<>\"\",          REFERENTES!R22<>96321,    REFERENTES!R22<>96222            ),CONCATENATE(REFERENTES!Q22,\"-\",REFERENTES!R22),\"\")","v":"MAL-1"},{"$f":"REFERENTES!P22","v":14325}]
[null,null,null,null,null,null,null,null,null,null,null,{"$f":"IF(AND(REFERENTES!R23<>\"\",          REFERENTES!R23<>96321,    REFERENTES!R23<>96222            ),CONCATENATE(REFERENTES!Q23,\"-\",REFERENTES!R23),\"\")","v":"CAN-1"},{"$f":"REFERENTES!P23","v":14315}]
["CODIGOS LOV",null,null,null,null,null,null,null,null,null,null,{"$f":"IF(AND(REFERENTES!R24<>\"\",          REFERENTES!R24<>96321,    REFERENTES!R24<>96222            ),CONCATENATE(REFERENTES!Q24,\"-\",REFERENTES!R24),\"\")","v":"CAN-2"},{"$f":"REFERENTES!P24","v":14316}]
["DESCRIPCIÓN","CÓDIGO","GRUPO",null,null,null,null,null,null,null,null,{"$f":"IF(AND(REFERENTES!R25<>\"\",          REFERENTES!R25<>96321,    REFERENTES!R25<>96222            ),CONCATENATE(REFERENTES!Q25,\"-\",REFERENTES!R25),\"\")","v":"MRO-1"},{"$f":"REFERENTES!P25","v":14303}]
["Departamento",10,2,null,null,null,null,null,null,null,null,{"$f":"IF(AND(REFERENTES!R26<>\"\",          REFERENTES!R26<>96321,    REFERENTES!R26<>96222            ),CONCATENATE(REFERENTES!Q26,\"-\",REFERENTES!R26),\"\")","v":"EMI-1"},{"$f":"REFERENTES!P26","v":14309}]
["Sector",20,2,null,null,null,null,null,null,null,null,{"$f":"IF(AND(REFERENTES!R27<>\"\",          REFERENTES!R27<>96321,    REFERENTES!R27<>96222            ),CONCATENATE(REFERENTES!Q27,\"-\",REFERENTES!R27),\"\")","v":"EMI-2"},{"$f":"REFERENTES!P27","v":14310}]
["Punto",30,2,null,null,null,null,null,null,null,null,{"$f":"IF(AND(REFERENTES!R28<>\"\",          REFERENTES!R28<>96321,    REFERENTES!R28<>96222            ),CONCATENATE(REFERENTES!Q28,\"-\",REFERENTES!R28),\"\")","v":"GAY-1"},{"$f":"REFERENTES!P28","v":14302}]
["Parcela",35,2,null,null,null,null,null,null,null,null,{"$f":"IF(AND(REFERENTES!R29<>\"\",          REFERENTES!R29<>96321,    REFERENTES!R29<>96222            ),CONCATENATE(REFERENTES!Q29,\"-\",REFERENTES!R29),\"\")","v":"GAY-2"},{"$f":"REFERENTES!P29","v":14323}]
["Estaciones",40,2,null,null,null,null,null,null,null,null,{"$f":"IF(AND(REFERENTES!R30<>\"\",          REFERENTES!R30<>96321,    REFERENTES!R30<>96222            ),CONCATENATE(REFERENTES!Q30,\"-\",REFERENTES!R30),\"\")","v":"GRA-1"},{"$f":"REFERENTES!P30","v":14324}]
["Region",50,2,null,null,null,null,null,null,null,null,{"$f":"IF(AND(REFERENTES!R31<>\"\",          REFERENTES!R31<>96321,    REFERENTES!R31<>96222            ),CONCATENATE(REFERENTES!Q31,\"-\",REFERENTES!R31),\"\")","v":"IGU-1"},{"$f":"REFERENTES!P31","v":14339}]
["Unidad_de_Manejo",60,2,null,null,null,null,null,null,null,null,{"$f":"IF(AND(REFERENTES!R32<>\"\",          REFERENTES!R32<>96321,    REFERENTES!R32<>96222            ),CONCATENATE(REFERENTES!Q32,\"-\",REFERENTES!R32),\"\")","v":"ARE-1"},{"$f":"REFERENTES!P32","v":41546}]
["Unidad_Ambiental_Costera",70,2,null,null,null,null,null,null,null,null,{"$f":"IF(AND(REFERENTES!R33<>\"\",          REFERENTES!R33<>96321,    REFERENTES!R33<>96222            ),CONCATENATE(REFERENTES!Q33,\"-\",REFERENTES!R33),\"\")","v":"IGR-1"},{"$f":"REFERENTES!P33","v":41545}]
["Localidad",80,2,null,null,null,null,null,null,null,null,{"$f":"IF(AND(REFERENTES!R34<>\"\",          REFERENTES!R34<>96321,    REFERENTES!R34<>96222            ),CONCATENATE(REFERENTES!Q34,\"-\",REFERENTES!R34),\"\")","v":"JCA-1"},{"$f":"REFERENTES!P34","v":48967}]
["Bloque_Exploracion",85,2,null,null,null,null,null,null,null,null,{"$f":"IF(AND(REFERENTES!R35<>\"\",          REFERENTES!R35<>96321,    REFERENTES!R35<>96222            ),CONCATENATE(REFERENTES!Q35,\"-\",REFERENTES!R35),\"\")","v":"CHO-1"},{"$f":"REFERENTES!P35","v":14296}]
["Area",90,2,null,null,null,null,null,null,null,null,{"$f":"IF(AND(REFERENTES!R36<>\"\",          REFERENTES!R36<>96321,    REFERENTES!R36<>96222            ),CONCATENATE(REFERENTES!Q36,\"-\",REFERENTES!R36),\"\")","v":"CHO-2"},{"$f":"REFERENTES!P36","v":14326}]
[null,null,null,null,null,null,null,null,null,null,null,{"$f":"IF(AND(REFERENTES!R37<>\"\",          REFERENTES!R37<>96321,    REFERENTES!R37<>96222            ),CONCATENATE(REFERENTES!Q37,\"-\",REFERENTES!R37),\"\")","v":"CHO-3"},{"$f":"REFERENTES!P37","v":14304}]
[null,null,null,null,null,null,null,null,null,null,null,{"$f":"IF(AND(REFERENTES!R38<>\"\",          REFERENTES!R38<>96321,    REFERENTES!R38<>96222            ),CONCATENATE(REFERENTES!Q38,\"-\",REFERENTES!R38),\"\")","v":"CHO-4"},{"$f":"REFERENTES!P38","v":14327}]
[null,null,null,null,null,null,null,null,null,null,null,{"$f":"IF(AND(REFERENTES!R39<>\"\",          REFERENTES!R39<>96321,    REFERENTES!R39<>96222            ),CONCATENATE(REFERENTES!Q39,\"-\",REFERENTES!R39),\"\")","v":"CHO-5"},{"$f":"REFERENTES!P39","v":14328}]
[null,null,null,null,null,null,null,null,null,null,null,{"$f":"IF(AND(REFERENTES!R40<>\"\",          REFERENTES!R40<>96321,    REFERENTES!R40<>96222            ),CONCATENATE(REFERENTES!Q40,\"-\",REFERENTES!R40),\"\")","v":"CHO-6"},{"$f":"REFERENTES!P40","v":14329}]
[null,null,null,null,null,null,null,null,null,null,null,{"$f":"IF(AND(REFERENTES!R41<>\"\",          REFERENTES!R41<>96321,    REFERENTES!R41<>96222            ),CONCATENATE(REFERENTES!Q41,\"-\",REFERENTES!R41),\"\")","v":"COC-1"},{"$f":"REFERENTES!P41","v":37122}]
[null,null,null,null,null,null,null,null,null,null,null,{"$f":"IF(AND(REFERENTES!R42<>\"\",          REFERENTES!R42<>96321,    REFERENTES!R42<>96222            ),CONCATENATE(REFERENTES!Q42,\"-\",REFERENTES!R42),\"\")","v":"MAL-2"},{"$f":"REFERENTES!P42","v":43098}]
[null,null,null,null,null,null,null,null,null,null,null,{"$f":"IF(AND(REFERENTES!R43<>\"\",          REFERENTES!R43<>96321,    REFERENTES!R43<>96222            ),CONCATENATE(REFERENTES!Q43,\"-\",REFERENTES!R43),\"\")","v":"VEN-4"},{"$f":"REFERENTES!P43","v":41695}]
[null,null,null,null,null,null,null,null,null,null,null,{"$f":"IF(AND(REFERENTES!R44<>\"\",          REFERENTES!R44<>96321,    REFERENTES!R44<>96222            ),CONCATENATE(REFERENTES!Q44,\"-\",REFERENTES!R44),\"\")","v":"VEN-3"},{"$f":"REFERENTES!P44","v":41694}]
[null,null,null,null,null,null,null,null,null,null,null,{"$f":"IF(AND(REFERENTES!R45<>\"\",          REFERENTES!R45<>96321,    REFERENTES!R45<>96222            ),CONCATENATE(REFERENTES!Q45,\"-\",REFERENTES!R45),\"\")","v":"VEN-1"},{"$f":"REFERENTES!P45","v":41692}]
[null,null,null,null,null,null,null,null,null,null,null,{"$f":"IF(AND(REFERENTES!R46<>\"\",          REFERENTES!R46<>96321,    REFERENTES!R46<>96222            ),CONCATENATE(REFERENTES!Q46,\"-\",REFERENTES!R46),\"\")","v":"VEN-2"},{"$f":"REFERENTES!P46","v":41693}]
[null,null,null,null,null,null,null,null,null,null,null,{"$f":"IF(AND(REFERENTES!R47<>\"\",          REFERENTES!R47<>96321,    REFERENTES!R47<>96222            ),CONCATENATE(REFERENTES!Q47,\"-\",REFERENTES!R47),\"\")","v":"PAL-1"},{"$f":"REFERENTES!P47","v":41547}]
[null,null,null,null,null,null,null,null,null,null,null,{"$f":"IF(AND(REFERENTES!R48<>\"\",          REFERENTES!R48<>96321,    REFERENTES!R48<>96222            ),CONCATENATE(REFERENTES!Q48,\"-\",REFERENTES!R48),\"\")","v":"MAR-1"},{"$f":"REFERENTES!P48","v":41699}]
[null,null,null,null,null,null,null,null,null,null,null,{"$f":"IF(AND(REFERENTES!R49<>\"\",          REFERENTES!R49<>96321,    REFERENTES!R49<>96222            ),CONCATENATE(REFERENTES!Q49,\"-\",REFERENTES!R49),\"\")","v":"MAN-1"},{"$f":"REFERENTES!P49","v":14305}]
[null,null,null,null,null,null,null,null,null,null,null,{"$f":"IF(AND(REFERENTES!R50<>\"\",          REFERENTES!R50<>96321,    REFERENTES!R50<>96222            ),CONCATENATE(REFERENTES!Q50,\"-\",REFERENTES!R50),\"\")","v":"MAN-2"},{"$f":"REFERENTES!P50","v":14307}]
[null,null,null,null,null,null,null,null,null,null,null,{"$f":"IF(AND(REFERENTES!R51<>\"\",          REFERENTES!R51<>96321,    REFERENTES!R51<>96222            ),CONCATENATE(REFERENTES!Q51,\"-\",REFERENTES!R51),\"\")","v":"MAZ-1"},{"$f":"REFERENTES!P51","v":14317}]
[null,null,null,null,null,null,null,null,null,null,null,{"$f":"IF(AND(REFERENTES!R52<>\"\",          REFERENTES!R52<>96321,    REFERENTES!R52<>96222            ),CONCATENATE(REFERENTES!Q52,\"-\",REFERENTES!R52),\"\")","v":"MAZ-2"},{"$f":"REFERENTES!P52","v":14318}]
[null,null,null,null,null,null,null,null,null,null,null,{"$f":"IF(AND(REFERENTES!R53<>\"\",          REFERENTES!R53<>96321,    REFERENTES!R53<>96222            ),CONCATENATE(REFERENTES!Q53,\"-\",REFERENTES!R53),\"\")","v":"MRC-1"},{"$f":"REFERENTES!P53","v":41698}]
[null,null,null,null,null,null,null,null,null,null,null,{"$f":"IF(AND(REFERENTES!R54<>\"\",          REFERENTES!R54<>96321,    REFERENTES!R54<>96222            ),CONCATENATE(REFERENTES!Q54,\"-\",REFERENTES!R54),\"\")","v":"MIN-1"},{"$f":"REFERENTES!P54","v":14306}]
[null,null,null,null,null,null,null,null,null,null,null,{"$f":"IF(AND(REFERENTES!R55<>\"\",          REFERENTES!R55<>96321,    REFERENTES!R55<>96222            ),CONCATENATE(REFERENTES!Q55,\"-\",REFERENTES!R55),\"\")","v":"4400147CORA100-1"},{"$f":"REFERENTES!P55","v":56790}]
[null,null,null,null,null,null,null,null,null,null,null,{"$f":"IF(AND(REFERENTES!R56<>\"\",          REFERENTES!R56<>96321,    REFERENTES!R56<>96222            ),CONCATENATE(REFERENTES!Q56,\"-\",REFERENTES!R56),\"\")","v":"NCH-1"},{"$f":"REFERENTES!P56","v":42263}]
[null,null,null,null,null,null,null,null,null,null,null,{"$f":"IF(AND(REFERENTES!R57<>\"\",          REFERENTES!R57<>96321,    REFERENTES!R57<>96222            ),CONCATENATE(REFERENTES!Q57,\"-\",REFERENTES!R57),\"\")","v":"NEG-2"},{"$f":"REFERENTES!P57","v":41702}]
[null,null,null,null,null,null,null,null,null,null,null,{"$f":"IF(AND(REFERENTES!R58<>\"\",          REFERENTES!R58<>96321,    REFERENTES!R58<>96222            ),CONCATENATE(REFERENTES!Q58,\"-\",REFERENTES!R58),\"\")","v":"NEG-1"},{"$f":"REFERENTES!P58","v":41701}]
[null,null,null,null,null,null,null,null,null,null,null,{"$f":"IF(AND(REFERENTES!R59<>\"\",          REFERENTES!R59<>96321,    REFERENTES!R59<>96222            ),CONCATENATE(REFERENTES!Q59,\"-\",REFERENTES!R59),\"\")","v":"NET-1"},{"$f":"REFERENTES!P59","v":37120}]
[null,null,null,null,null,null,null,null,null,null,null,{"$f":"IF(AND(REFERENTES!R60<>\"\",          REFERENTES!R60<>96321,    REFERENTES!R60<>96222            ),CONCATENATE(REFERENTES!Q60,\"-\",REFERENTES!R60),\"\")","v":"NET-2"},{"$f":"REFERENTES!P60","v":52325}]
[null,null,null,null,null,null,null,null,null,null,null,{"$f":"IF(AND(REFERENTES!R61<>\"\",          REFERENTES!R61<>96321,    REFERENTES!R61<>96222            ),CONCATENATE(REFERENTES!Q61,\"-\",REFERENTES!R61),\"\")","v":"PAV-1"},{"$f":"REFERENTES!P61","v":14300}]
[null,null,null,null,null,null,null,null,null,null,null,{"$f":"IF(AND(REFERENTES!R62<>\"\",          REFERENTES!R62<>96321,    REFERENTES!R62<>96222            ),CONCATENATE(REFERENTES!Q62,\"-\",REFERENTES!R62),\"\")","v":"PLA-2"},{"$f":"REFERENTES!P62","v":14295}]
[null,null,null,null,null,null,null,null,null,null,null,{"$f":"IF(AND(REFERENTES!R63<>\"\",          REFERENTES!R63<>96321,    REFERENTES!R63<>96222            ),CONCATENATE(REFERENTES!Q63,\"-\",REFERENTES!R63),\"\")","v":"PLA-3"},{"$f":"REFERENTES!P63","v":41690}]
[null,null,null,null,null,null,null,null,null,null,null,{"$f":"IF(AND(REFERENTES!R64<>\"\",          REFERENTES!R64<>96321,    REFERENTES!R64<>96222            ),CONCATENATE(REFERENTES!Q64,\"-\",REFERENTES!R64),\"\")","v":"PLA-4"},{"$f":"REFERENTES!P64","v":41691}]
[null,null,null,null,null,null,null,null,null,null,null,{"$f":"IF(AND(REFERENTES!R65<>\"\",          REFERENTES!R65<>96321,    REFERENTES!R65<>96222            ),CONCATENATE(REFERENTES!Q65,\"-\",REFERENTES!R65),\"\")","v":"PLA-1"},{"$f":"REFERENTES!P65","v":14343}]
[null,null,null,null,null,null,null,null,null,null,null,{"$f":"IF(AND(REFERENTES!R66<>\"\",          REFERENTES!R66<>96321,    REFERENTES!R66<>96222            ),CONCATENATE(REFERENTES!Q66,\"-\",REFERENTES!R66),\"\")","v":"PBLA-1"},{"$f":"REFERENTES!P66","v":52865}]
[null,null,null,null,null,null,null,null,null,null,null,{"$f":"IF(AND(REFERENTES!R67<>\"\",          REFERENTES!R67<>96321,    REFERENTES!R67<>96222            ),CONCATENATE(REFERENTES!Q67,\"-\",REFERENTES!R67),\"\")","v":"PBR-1"},{"$f":"REFERENTES!P67","v":41548}]
[null,null,null,null,null,null,null,null,null,null,null,{"$f":"IF(AND(REFERENTES!R68<>\"\",          REFERENTES!R68<>96321,    REFERENTES!R68<>96222            ),CONCATENATE(REFERENTES!Q68,\"-\",REFERENTES!R68),\"\")","v":"SFE-1"},{"$f":"REFERENTES!P68","v":14321}]
[null,null,null,null,null,null,null,null,null,null,null,{"$f":"IF(AND(REFERENTES!R69<>\"\",          REFERENTES!R69<>96321,    REFERENTES!R69<>96222            ),CONCATENATE(REFERENTES!Q69,\"-\",REFERENTES!R69),\"\")","v":"SFE-2"},{"$f":"REFERENTES!P69","v":14322}]
[null,null,null,null,null,null,null,null,null,null,null,{"$f":"IF(AND(REFERENTES!R70<>\"\",          REFERENTES!R70<>96321,    REFERENTES!R70<>96222            ),CONCATENATE(REFERENTES!Q70,\"-\",REFERENTES!R70),\"\")","v":"TES-1"},{"$f":"REFERENTES!P70","v":14299}]
[null,null,null,null,null,null,null,null,null,null,null,{"$f":"IF(AND(REFERENTES!R71<>\"\",          REFERENTES!R71<>96321,    REFERENTES!R71<>96222            ),CONCATENATE(REFERENTES!Q71,\"-\",REFERENTES!R71),\"\")","v":"TES-2"},{"$f":"REFERENTES!P71","v":41549}]
[null,null,null,null,null,null,null,null,null,null,null,{"$f":"IF(AND(REFERENTES!R72<>\"\",          REFERENTES!R72<>96321,    REFERENTES!R72<>96222            ),CONCATENATE(REFERENTES!Q72,\"-\",REFERENTES!R72),\"\")","v":"BAR-1"},{"$f":"REFERENTES!P72","v":14319}]
[null,null,null,null,null,null,null,null,null,null,null,{"$f":"IF(AND(REFERENTES!R73<>\"\",          REFERENTES!R73<>96321,    REFERENTES!R73<>96222            ),CONCATENATE(REFERENTES!Q73,\"-\",REFERENTES!R73),\"\")","v":"BAR-2"},{"$f":"REFERENTES!P73","v":14320}]
[null,null,null,null,null,null,null,null,null,null,null,{"$f":"IF(AND(REFERENTES!R74<>\"\",          REFERENTES!R74<>96321,    REFERENTES!R74<>96222            ),CONCATENATE(REFERENTES!Q74,\"-\",REFERENTES!R74),\"\")","v":"TNT-1"},{"$f":"REFERENTES!P74","v":41697}]
[null,null,null,null,null,null,null,null,null,null,null,{"$f":"IF(AND(REFERENTES!R75<>\"\",          REFERENTES!R75<>96321,    REFERENTES!R75<>96222            ),CONCATENATE(REFERENTES!Q75,\"-\",REFERENTES!R75),\"\")","v":"TNT-2"},{"$f":"REFERENTES!P75","v":41696}]
[null,null,null,null,null,null,null,null,null,null,null,{"$f":"IF(AND(REFERENTES!R76<>\"\",          REFERENTES!R76<>96321,    REFERENTES!R76<>96222            ),CONCATENATE(REFERENTES!Q76,\"-\",REFERENTES!R76),\"\")","v":"TIO-1"},{"$f":"REFERENTES!P76","v":14332}]
[null,null,null,null,null,null,null,null,null,null,null,{"$f":"IF(AND(REFERENTES!R77<>\"\",          REFERENTES!R77<>96321,    REFERENTES!R77<>96222            ),CONCATENATE(REFERENTES!Q77,\"-\",REFERENTES!R77),\"\")","v":"VAR-1"},{"$f":"REFERENTES!P77","v":49084}]
[null,null,null,null,null,null,null,null,null,null,null,{"$f":"IF(AND(REFERENTES!R78<>\"\",          REFERENTES!R78<>96321,    REFERENTES!R78<>96222            ),CONCATENATE(REFERENTES!Q78,\"-\",REFERENTES!R78),\"\")","v":"VAR-2"},{"$f":"REFERENTES!P78","v":49085}]
[null,null,null,null,null,null,null,null,null,null,null,{"$f":"IF(AND(REFERENTES!R79<>\"\",          REFERENTES!R79<>96321,    REFERENTES!R79<>96222            ),CONCATENATE(REFERENTES!Q79,\"-\",REFERENTES!R79),\"\")","v":"VAR-3"},{"$f":"REFERENTES!P79","v":49086}]
[null,null,null,null,null,null,null,null,null,null,null,{"$f":"IF(AND(REFERENTES!R80<>\"\",          REFERENTES!R80<>96321,    REFERENTES!R80<>96222            ),CONCATENATE(REFERENTES!Q80,\"-\",REFERENTES!R80),\"\")","v":"WHI-1"},{"$f":"REFERENTES!P80","v":41700}]
[null,null,null,null,null,null,null,null,null,null,null,{"$f":"IF(AND(REFERENTES!R81<>\"\",          REFERENTES!R81<>96321,    REFERENTES!R81<>96222            ),CONCATENATE(REFERENTES!Q81,\"-\",REFERENTES!R81),\"\")","v":"WLF-1"},{"$f":"REFERENTES!P81","v":14340}]
[null,null,null,null,null,null,null,null,null,null,null,{"$f":"IF(AND(REFERENTES!R82<>\"\",          REFERENTES!R82<>96321,    REFERENTES!R82<>96222            ),CONCATENATE(REFERENTES!Q82,\"-\",REFERENTES!R82),\"\")","v":"ZAP-1"},{"$f":"REFERENTES!P82","v":14335}]
[null,null,null,null,null,null,null,null,null,null,null,{"$f":"IF(AND(REFERENTES!R83<>\"\",          REFERENTES!R83<>96321,    REFERENTES!R83<>96222            ),CONCATENATE(REFERENTES!Q83,\"-\",REFERENTES!R83),\"\")","v":""},{"$f":"REFERENTES!P83","v":0}]
[null,null,null,null,null,null,null,null,null,null,null,{"$f":"IF(AND(REFERENTES!R84<>\"\",          REFERENTES!R84<>96321,    REFERENTES!R84<>96222            ),CONCATENATE(REFERENTES!Q84,\"-\",REFERENTES!R84),\"\")","v":""},{"$f":"REFERENTES!P84","v":0}]
[null,null,null,null,null,null,null,null,null,null,null,{"$f":"IF(AND(REFERENTES!R85<>\"\",          REFERENTES!R85<>96321,    REFERENTES!R85<>96222            ),CONCATENATE(REFERENTES!Q85,\"-\",REFERENTES!R85),\"\")","v":""},{"$f":"REFERENTES!P85","v":0}]
[null,null,null,null,null,null,null,null,null,null,null,{"$f":"IF(AND(REFERENTES!R86<>\"\",          REFERENTES!R86<>96321,    REFERENTES!R86<>96222            ),CONCATENATE(REFERENTES!Q86,\"-\",REFERENTES!R86),\"\")","v":""},{"$f":"REFERENTES!P86","v":0}]
[null,null,null,null,null,null,null,null,null,null,null,{"$f":"IF(AND(REFERENTES!R87<>\"\",          REFERENTES!R87<>96321,    REFERENTES!R87<>96222            ),CONCATENATE(REFERENTES!Q87,\"-\",REFERENTES!R87),\"\")","v":""},{"$f":"REFERENTES!P87","v":0}]
[null,null,null,null,null,null,null,null,null,null,null,{"$f":"IF(AND(REFERENTES!R88<>\"\",          REFERENTES!R88<>96321,    REFERENTES!R88<>96222            ),CONCATENATE(REFERENTES!Q88,\"-\",REFERENTES!R88),\"\")","v":""},{"$f":"REFERENTES!P88","v":0}]
[null,null,null,null,null,null,null,null,null,null,null,{"$f":"IF(AND(REFERENTES!R89<>\"\",          REFERENTES!R89<>96321,    REFERENTES!R89<>96222            ),CONCATENATE(REFERENTES!Q89,\"-\",REFERENTES!R89),\"\")","v":""},{"$f":"REFERENTES!P89","v":0}]
[null,null,null,null,null,null,null,null,null,null,null,{"$f":"IF(AND(REFERENTES!R90<>\"\",          REFERENTES!R90<>96321,    REFERENTES!R90<>96222            ),CONCATENATE(REFERENTES!Q90,\"-\",REFERENTES!R90),\"\")","v":""},{"$f":"REFERENTES!P90","v":0}]
[null,null,null,null,null,null,null,null,null,null,null,{"$f":"IF(AND(REFERENTES!R91<>\"\",          REFERENTES!R91<>96321,    REFERENTES!R91<>96222            ),CONCATENATE(REFERENTES!Q91,\"-\",REFERENTES!R91),\"\")","v":""},{"$f":"REFERENTES!P91","v":0}]
[null,null,null,null,null,null,null,null,null,null,null,{"$f":"IF(AND(REFERENTES!R92<>\"\",          REFERENTES!R92<>96321,    REFERENTES!R92<>96222            ),CONCATENATE(REFERENTES!Q92,\"-\",REFERENTES!R92),\"\")","v":""},{"$f":"REFERENTES!P92","v":0}]
[null,null,null,null,null,null,null,null,null,null,null,{"$f":"IF(AND(REFERENTES!R93<>\"\",          REFERENTES!R93<>96321,    REFERENTES!R93<>96222            ),CONCATENATE(REFERENTES!Q93,\"-\",REFERENTES!R93),\"\")","v":""},{"$f":"REFERENTES!P93","v":0}]
[null,null,null,null,null,null,null,null,null,null,null,{"$f":"IF(AND(REFERENTES!R94<>\"\",          REFERENTES!R94<>96321,    REFERENTES!R94<>96222            ),CONCATENATE(REFERENTES!Q94,\"-\",REFERENTES!R94),\"\")","v":""},{"$f":"REFERENTES!P94","v":0}]
[null,null,null,null,null,null,null,null,null,null,null,{"$f":"IF(AND(REFERENTES!R95<>\"\",          REFERENTES!R95<>96321,    REFERENTES!R95<>96222            ),CONCATENATE(REFERENTES!Q95,\"-\",REFERENTES!R95),\"\")","v":""},{"$f":"REFERENTES!P95","v":0}]
[null,null,null,null,null,null,null,null,null,null,null,{"$f":"IF(AND(REFERENTES!R96<>\"\",          REFERENTES!R96<>96321,    REFERENTES!R96<>96222            ),CONCATENATE(REFERENTES!Q96,\"-\",REFERENTES!R96),\"\")","v":""},{"$f":"REFERENTES!P96","v":0}]
[null,null,null,null,null,null,null,null,null,null,null,{"$f":"IF(AND(REFERENTES!R97<>\"\",          REFERENTES!R97<>96321,    REFERENTES!R97<>96222            ),CONCATENATE(REFERENTES!Q97,\"-\",REFERENTES!R97),\"\")","v":""},{"$f":"REFERENTES!P97","v":0}]
[null,null,null,null,null,null,null,null,null,null,null,{"$f":"IF(AND(REFERENTES!R98<>\"\",          REFERENTES!R98<>96321,    REFERENTES!R98<>96222            ),CONCATENATE(REFERENTES!Q98,\"-\",REFERENTES!R98),\"\")","v":""},{"$f":"REFERENTES!P98","v":0}]
[null,null,null,null,null,null,null,null,null,null,null,{"$f":"IF(AND(REFERENTES!R99<>\"\",          REFERENTES!R99<>96321,    REFERENTES!R99<>96222            ),CONCATENATE(REFERENTES!Q99,\"-\",REFERENTES!R99),\"\")","v":""},{"$f":"REFERENTES!P99","v":0}]
[null,null,null,null,null,null,null,null,null,null,null,{"$f":"IF(AND(REFERENTES!R100<>\"\",          REFERENTES!R100<>96321,    REFERENTES!R100<>96222            ),CONCATENATE(REFERENTES!Q100,\"-\",REFERENTES!R100),\"\")","v":""},{"$f":"REFERENTES!P100","v":0}]
[null,null,null,null,null,null,null,null,null,null,null,{"$f":"IF(AND(REFERENTES!R101<>\"\",          REFERENTES!R101<>96321,    REFERENTES!R101<>96222            ),CONCATENATE(REFERENTES!Q101,\"-\",REFERENTES!R101),\"\")","v":""},{"$f":"REFERENTES!P101","v":0}]
[null,null,null,null,null,null,null,null,null,null,null,{"$f":"IF(AND(REFERENTES!R102<>\"\",          REFERENTES!R102<>96321,    REFERENTES!R102<>96222            ),CONCATENATE(REFERENTES!Q102,\"-\",REFERENTES!R102),\"\")","v":""},{"$f":"REFERENTES!P102","v":0}]
[null,null,null,null,null,null,null,null,null,null,null,{"$f":"IF(AND(REFERENTES!R103<>\"\",          REFERENTES!R103<>96321,    REFERENTES!R103<>96222            ),CONCATENATE(REFERENTES!Q103,\"-\",REFERENTES!R103),\"\")","v":""},{"$f":"REFERENTES!P103","v":0}]
[null,null,null,null,null,null,null,null,null,null,null,{"$f":"IF(AND(REFERENTES!R104<>\"\",          REFERENTES!R104<>96321,    REFERENTES!R104<>96222            ),CONCATENATE(REFERENTES!Q104,\"-\",REFERENTES!R104),\"\")","v":""},{"$f":"REFERENTES!P104","v":0}]
[null,null,null,null,null,null,null,null,null,null,null,{"$f":"IF(AND(REFERENTES!R105<>\"\",          REFERENTES!R105<>96321,    REFERENTES!R105<>96222            ),CONCATENATE(REFERENTES!Q105,\"-\",REFERENTES!R105),\"\")","v":""},{"$f":"REFERENTES!P105","v":0}]
[null,null,null,null,null,null,null,null,null,null,null,{"$f":"IF(AND(REFERENTES!R106<>\"\",          REFERENTES!R106<>96321,    REFERENTES!R106<>96222            ),CONCATENATE(REFERENTES!Q106,\"-\",REFERENTES!R106),\"\")","v":""},{"$f":"REFERENTES!P106","v":0}]
[null,null,null,null,null,null,null,null,null,null,null,{"$f":"IF(AND(REFERENTES!R107<>\"\",          REFERENTES!R107<>96321,    REFERENTES!R107<>96222            ),CONCATENATE(REFERENTES!Q107,\"-\",REFERENTES!R107),\"\")","v":""},{"$f":"REFERENTES!P107","v":0}]
[null,null,null,null,null,null,null,null,null,null,null,{"$f":"IF(AND(REFERENTES!R108<>\"\",          REFERENTES!R108<>96321,    REFERENTES!R108<>96222            ),CONCATENATE(REFERENTES!Q108,\"-\",REFERENTES!R108),\"\")","v":""},{"$f":"REFERENTES!P108","v":0}]
[null,null,null,null,null,null,null,null,null,null,null,{"$f":"IF(AND(REFERENTES!R109<>\"\",          REFERENTES!R109<>96321,    REFERENTES!R109<>96222            ),CONCATENATE(REFERENTES!Q109,\"-\",REFERENTES!R109),\"\")","v":""},{"$f":"REFERENTES!P109","v":0}]
[null,null,null,null,null,null,null,null,null,null,null,{"$f":"IF(AND(REFERENTES!R110<>\"\",          REFERENTES!R110<>96321,    REFERENTES!R110<>96222            ),CONCATENATE(REFERENTES!Q110,\"-\",REFERENTES!R110),\"\")","v":""},{"$f":"REFERENTES!P110","v":0}]
[null,null,null,null,null,null,null,null,null,null,null,{"$f":"IF(AND(REFERENTES!R111<>\"\",          REFERENTES!R111<>96321,    REFERENTES!R111<>96222            ),CONCATENATE(REFERENTES!Q111,\"-\",REFERENTES!R111),\"\")","v":""},{"$f":"REFERENTES!P111","v":0}]
[null,null,null,null,null,null,null,null,null,null,null,{"$f":"IF(AND(REFERENTES!R112<>\"\",          REFERENTES!R112<>96321,    REFERENTES!R112<>96222            ),CONCATENATE(REFERENTES!Q112,\"-\",REFERENTES!R112),\"\")","v":""},{"$f":"REFERENTES!P112","v":0}]
[null,null,null,null,null,null,null,null,null,null,null,{"$f":"IF(AND(REFERENTES!R113<>\"\",          REFERENTES!R113<>96321,    REFERENTES!R113<>96222            ),CONCATENATE(REFERENTES!Q113,\"-\",REFERENTES!R113),\"\")","v":""},{"$f":"REFERENTES!P113","v":0}]
[null,null,null,null,null,null,null,null,null,null,null,{"$f":"IF(AND(REFERENTES!R114<>\"\",          REFERENTES!R114<>96321,    REFERENTES!R114<>96222            ),CONCATENATE(REFERENTES!Q114,\"-\",REFERENTES!R114),\"\")","v":""},{"$f":"REFERENTES!P114","v":0}]
[null,null,null,null,null,null,null,null,null,null,null,{"$f":"IF(AND(REFERENTES!R115<>\"\",          REFERENTES!R115<>96321,    REFERENTES!R115<>96222            ),CONCATENATE(REFERENTES!Q115,\"-\",REFERENTES!R115),\"\")","v":""},{"$f":"REFERENTES!P115","v":0}]
[null,null,null,null,null,null,null,null,null,null,null,{"$f":"IF(AND(REFERENTES!R116<>\"\",          REFERENTES!R116<>96321,    REFERENTES!R116<>96222            ),CONCATENATE(REFERENTES!Q116,\"-\",REFERENTES!R116),\"\")","v":""},{"$f":"REFERENTES!P116","v":0}]
[null,null,null,null,null,null,null,null,null,null,null,{"$f":"IF(AND(REFERENTES!R117<>\"\",          REFERENTES!R117<>96321,    REFERENTES!R117<>96222            ),CONCATENATE(REFERENTES!Q117,\"-\",REFERENTES!R117),\"\")","v":""},{"$f":"REFERENTES!P117","v":0}]
[null,null,null,null,null,null,null,null,null,null,null,{"$f":"IF(AND(REFERENTES!R118<>\"\",          REFERENTES!R118<>96321,    REFERENTES!R118<>96222            ),CONCATENATE(REFERENTES!Q118,\"-\",REFERENTES!R118),\"\")","v":""},{"$f":"REFERENTES!P118","v":0}]
[null,null,null,null,null,null,null,null,null,null,null,{"$f":"IF(AND(REFERENTES!R119<>\"\",          REFERENTES!R119<>96321,    REFERENTES!R119<>96222            ),CONCATENATE(REFERENTES!Q119,\"-\",REFERENTES!R119),\"\")","v":""},{"$f":"REFERENTES!P119","v":0}]
[null,null,null,null,null,null,null,null,null,null,null,{"$f":"IF(AND(REFERENTES!R120<>\"\",          REFERENTES!R120<>96321,    REFERENTES!R120<>96222            ),CONCATENATE(REFERENTES!Q120,\"-\",REFERENTES!R120),\"\")","v":""},{"$f":"REFERENTES!P120","v":0}]
[null,null,null,null,null,null,null,null,null,null,null,{"$f":"IF(AND(REFERENTES!R121<>\"\",          REFERENTES!R121<>96321,    REFERENTES!R121<>96222            ),CONCATENATE(REFERENTES!Q121,\"-\",REFERENTES!R121),\"\")","v":""},{"$f":"REFERENTES!P121","v":0}]
[null,null,null,null,null,null,null,null,null,null,null,{"$f":"IF(AND(REFERENTES!R122<>\"\",          REFERENTES!R122<>96321,    REFERENTES!R122<>96222            ),CONCATENATE(REFERENTES!Q122,\"-\",REFERENTES!R122),\"\")","v":""},{"$f":"REFERENTES!P122","v":0}]
[null,null,null,null,null,null,null,null,null,null,null,{"$f":"IF(AND(REFERENTES!R123<>\"\",          REFERENTES!R123<>96321,    REFERENTES!R123<>96222            ),CONCATENATE(REFERENTES!Q123,\"-\",REFERENTES!R123),\"\")","v":""},{"$f":"REFERENTES!P123","v":0}]
[null,null,null,null,null,null,null,null,null,null,null,{"$f":"IF(AND(REFERENTES!R124<>\"\",          REFERENTES!R124<>96321,    REFERENTES!R124<>96222            ),CONCATENATE(REFERENTES!Q124,\"-\",REFERENTES!R124),\"\")","v":""},{"$f":"REFERENTES!P124","v":0}]
[null,null,null,null,null,null,null,null,null,null,null,{"$f":"IF(AND(REFERENTES!R125<>\"\",          REFERENTES!R125<>96321,    REFERENTES!R125<>96222            ),CONCATENATE(REFERENTES!Q125,\"-\",REFERENTES!R125),\"\")","v":""},{"$f":"REFERENTES!P125","v":0}]
[null,null,null,null,null,null,null,null,null,null,null,{"$f":"IF(AND(REFERENTES!R126<>\"\",          REFERENTES!R126<>96321,    REFERENTES!R126<>96222            ),CONCATENATE(REFERENTES!Q126,\"-\",REFERENTES!R126),\"\")","v":""},{"$f":"REFERENTES!P126","v":0}]
[null,null,null,null,null,null,null,null,null,null,null,{"$f":"IF(AND(REFERENTES!R127<>\"\",          REFERENTES!R127<>96321,    REFERENTES!R127<>96222            ),CONCATENATE(REFERENTES!Q127,\"-\",REFERENTES!R127),\"\")","v":""},{"$f":"REFERENTES!P127","v":0}]
[null,null,null,null,null,null,null,null,null,null,null,{"$f":"IF(AND(REFERENTES!R128<>\"\",          REFERENTES!R128<>96321,    REFERENTES!R128<>96222            ),CONCATENATE(REFERENTES!Q128,\"-\",REFERENTES!R128),\"\")","v":""},{"$f":"REFERENTES!P128","v":0}]
[null,null,null,null,null,null,null,null,null,null,null,{"$f":"IF(AND(REFERENTES!R129<>\"\",          REFERENTES!R129<>96321,    REFERENTES!R129<>96222            ),CONCATENATE(REFERENTES!Q129,\"-\",REFERENTES!R129),\"\")","v":""},{"$f":"REFERENTES!P129","v":0}]
[null,null,null,null,null,null,null,null,null,null,null,{"$f":"IF(AND(REFERENTES!R130<>\"\",          REFERENTES!R130<>96321,    REFERENTES!R130<>96222            ),CONCATENATE(REFERENTES!Q130,\"-\",REFERENTES!R130),\"\")","v":""},{"$f":"REFERENTES!P130","v":0}]
[null,null,null,null,null,null,null,null,null,null,null,{"$f":"IF(AND(REFERENTES!R131<>\"\",          REFERENTES!R131<>96321,    REFERENTES!R131<>96222            ),CONCATENATE(REFERENTES!Q131,\"-\",REFERENTES!R131),\"\")","v":""},{"$f":"REFERENTES!P131","v":0}]
[null,null,null,null,null,null,null,null,null,null,null,{"$f":"IF(AND(REFERENTES!R132<>\"\",          REFERENTES!R132<>96321,    REFERENTES!R132<>96222            ),CONCATENATE(REFERENTES!Q132,\"-\",REFERENTES!R132),\"\")","v":""},{"$f":"REFERENTES!P132","v":0}]
[null,null,null,null,null,null,null,null,null,null,null,{"$f":"IF(AND(REFERENTES!R133<>\"\",          REFERENTES!R133<>96321,    REFERENTES!R133<>96222            ),CONCATENATE(REFERENTES!Q133,\"-\",REFERENTES!R133),\"\")","v":""},{"$f":"REFERENTES!P133","v":0}]
[null,null,null,null,null,null,null,null,null,null,null,{"$f":"IF(AND(REFERENTES!R134<>\"\",          REFERENTES!R134<>96321,    REFERENTES!R134<>96222            ),CONCATENATE(REFERENTES!Q134,\"-\",REFERENTES!R134),\"\")","v":""},{"$f":"REFERENTES!P134","v":0}]
[null,null,null,null,null,null,null,null,null,null,null,{"$f":"IF(AND(REFERENTES!R135<>\"\",          REFERENTES!R135<>96321,    REFERENTES!R135<>96222            ),CONCATENATE(REFERENTES!Q135,\"-\",REFERENTES!R135),\"\")","v":""},{"$f":"REFERENTES!P135","v":0}]
[null,null,null,null,null,null,null,null,null,null,null,{"$f":"IF(AND(REFERENTES!R136<>\"\",          REFERENTES!R136<>96321,    REFERENTES!R136<>96222            ),CONCATENATE(REFERENTES!Q136,\"-\",REFERENTES!R136),\"\")","v":""},{"$f":"REFERENTES!P136","v":0}]
[null,null,null,null,null,null,null,null,null,null,null,{"$f":"IF(AND(REFERENTES!R137<>\"\",          REFERENTES!R137<>96321,    REFERENTES!R137<>96222            ),CONCATENATE(REFERENTES!Q137,\"-\",REFERENTES!R137),\"\")","v":""},{"$f":"REFERENTES!P137","v":0}]
[null,null,null,null,null,null,null,null,null,null,null,{"$f":"IF(AND(REFERENTES!R138<>\"\",          REFERENTES!R138<>96321,    REFERENTES!R138<>96222            ),CONCATENATE(REFERENTES!Q138,\"-\",REFERENTES!R138),\"\")","v":""},{"$f":"REFERENTES!P138","v":0}]
[null,null,null,null,null,null,null,null,null,null,null,{"$f":"IF(AND(REFERENTES!R139<>\"\",          REFERENTES!R139<>96321,    REFERENTES!R139<>96222            ),CONCATENATE(REFERENTES!Q139,\"-\",REFERENTES!R139),\"\")","v":""},{"$f":"REFERENTES!P139","v":0}]
[null,null,null,null,null,null,null,null,null,null,null,{"$f":"IF(AND(REFERENTES!R140<>\"\",          REFERENTES!R140<>96321,    REFERENTES!R140<>96222            ),CONCATENATE(REFERENTES!Q140,\"-\",REFERENTES!R140),\"\")","v":""},{"$f":"REFERENTES!P140","v":0}]
[null,null,null,null,null,null,null,null,null,null,null,{"$f":"IF(AND(REFERENTES!R141<>\"\",          REFERENTES!R141<>96321,    REFERENTES!R141<>96222            ),CONCATENATE(REFERENTES!Q141,\"-\",REFERENTES!R141),\"\")","v":""},{"$f":"REFERENTES!P141","v":0}]
[null,null,null,null,null,null,null,null,null,null,null,{"$f":"IF(AND(REFERENTES!R142<>\"\",          REFERENTES!R142<>96321,    REFERENTES!R142<>96222            ),CONCATENATE(REFERENTES!Q142,\"-\",REFERENTES!R142),\"\")","v":""},{"$f":"REFERENTES!P142","v":0}]
[null,null,null,null,null,null,null,null,null,null,null,{"$f":"IF(AND(REFERENTES!R143<>\"\",          REFERENTES!R143<>96321,    REFERENTES!R143<>96222            ),CONCATENATE(REFERENTES!Q143,\"-\",REFERENTES!R143),\"\")","v":""},{"$f":"REFERENTES!P143","v":0}]
[null,null,null,null,null,null,null,null,null,null,null,{"$f":"IF(AND(REFERENTES!R144<>\"\",          REFERENTES!R144<>96321,    REFERENTES!R144<>96222            ),CONCATENATE(REFERENTES!Q144,\"-\",REFERENTES!R144),\"\")","v":""},{"$f":"REFERENTES!P144","v":0}]
[null,null,null,null,null,null,null,null,null,null,null,{"$f":"IF(AND(REFERENTES!R145<>\"\",          REFERENTES!R145<>96321,    REFERENTES!R145<>96222            ),CONCATENATE(REFERENTES!Q145,\"-\",REFERENTES!R145),\"\")","v":""},{"$f":"REFERENTES!P145","v":0}]

{"sheet":"Resumen","index":6,"n_rows":101,"n_cols":8,"rows_kept":101,"cut":false,"hidden":false,"merged":[[0,7,2,11]]}
["estacion","abundancia","registros","Etiquetas de fila","Cuenta de registros","Suma de abundancia",null,"Esta tabla debe ser actualizada cada vez que introduzca nuevos datos, para ello debe hacer clic sobre cualquier parte de la tabla y presionar las teclas ALT + F5 de manera conjunta."]
[{"$f":"IF(DATOS!O5=\"\",\"\",DATOS!O5)","v":""},{"$f":"IF(DATOS!AD5=\"\",\"\",DATOS!AD5)","v":""},{"$f":"IF(DATOS!X5=\"\",\"\",DATOS!X5)","v":""},null,100,0]
[{"$f":"IF(DATOS!O6=\"\",\"\",DATOS!O6)","v":""},{"$f":"IF(DATOS!AD6=\"\",\"\",DATOS!AD6)","v":""},{"$f":"IF(DATOS!X6=\"\",\"\",DATOS!X6)","v":""},"Total general",100,0]
[{"$f":"IF(DATOS!O7=\"\",\"\",DATOS!O7)","v":""},{"$f":"IF(DATOS!AD7=\"\",\"\",DATOS!AD7)","v":""},{"$f":"IF(DATOS!X7=\"\",\"\",DATOS!X7)","v":""}]
[{"$f":"IF(DATOS!O8=\"\",\"\",DATOS!O8)","v":""},{"$f":"IF(DATOS!AD8=\"\",\"\",DATOS!AD8)","v":""},{"$f":"IF(DATOS!X8=\"\",\"\",DATOS!X8)","v":""}]
[{"$f":"IF(DATOS!O9=\"\",\"\",DATOS!O9)","v":""},{"$f":"IF(DATOS!AD9=\"\",\"\",DATOS!AD9)","v":""},{"$f":"IF(DATOS!X9=\"\",\"\",DATOS!X9)","v":""}]
[{"$f":"IF(DATOS!O10=\"\",\"\",DATOS!O10)","v":""},{"$f":"IF(DATOS!AD10=\"\",\"\",DATOS!AD10)","v":""},{"$f":"IF(DATOS!X10=\"\",\"\",DATOS!X10)","v":""}]
[{"$f":"IF(DATOS!O11=\"\",\"\",DATOS!O11)","v":""},{"$f":"IF(DATOS!AD11=\"\",\"\",DATOS!AD11)","v":""},{"$f":"IF(DATOS!X11=\"\",\"\",DATOS!X11)","v":""}]
[{"$f":"IF(DATOS!O12=\"\",\"\",DATOS!O12)","v":""},{"$f":"IF(DATOS!AD12=\"\",\"\",DATOS!AD12)","v":""},{"$f":"IF(DATOS!X12=\"\",\"\",DATOS!X12)","v":""}]
[{"$f":"IF(DATOS!O13=\"\",\"\",DATOS!O13)","v":""},{"$f":"IF(DATOS!AD13=\"\",\"\",DATOS!AD13)","v":""},{"$f":"IF(DATOS!X13=\"\",\"\",DATOS!X13)","v":""}]
[{"$f":"IF(DATOS!O14=\"\",\"\",DATOS!O14)","v":""},{"$f":"IF(DATOS!AD14=\"\",\"\",DATOS!AD14)","v":""},{"$f":"IF(DATOS!X14=\"\",\"\",DATOS!X14)","v":""}]
[{"$f":"IF(DATOS!O15=\"\",\"\",DATOS!O15)","v":""},{"$f":"IF(DATOS!AD15=\"\",\"\",DATOS!AD15)","v":""},{"$f":"IF(DATOS!X15=\"\",\"\",DATOS!X15)","v":""}]
[{"$f":"IF(DATOS!O16=\"\",\"\",DATOS!O16)","v":""},{"$f":"IF(DATOS!AD16=\"\",\"\",DATOS!AD16)","v":""},{"$f":"IF(DATOS!X16=\"\",\"\",DATOS!X16)","v":""}]
[{"$f":"IF(DATOS!O17=\"\",\"\",DATOS!O17)","v":""},{"$f":"IF(DATOS!AD17=\"\",\"\",DATOS!AD17)","v":""},{"$f":"IF(DATOS!X17=\"\",\"\",DATOS!X17)","v":""}]
[{"$f":"IF(DATOS!O18=\"\",\"\",DATOS!O18)","v":""},{"$f":"IF(DATOS!AD18=\"\",\"\",DATOS!AD18)","v":""},{"$f":"IF(DATOS!X18=\"\",\"\",DATOS!X18)","v":""}]
[{"$f":"IF(DATOS!O19=\"\",\"\",DATOS!O19)","v":""},{"$f":"IF(DATOS!AD19=\"\",\"\",DATOS!AD19)","v":""},{"$f":"IF(DATOS!X19=\"\",\"\",DATOS!X19)","v":""}]
[{"$f":"IF(DATOS!O20=\"\",\"\",DATOS!O20)","v":""},{"$f":"IF(DATOS!AD20=\"\",\"\",DATOS!AD20)","v":""},{"$f":"IF(DATOS!X20=\"\",\"\",DATOS!X20)","v":""}]
[{"$f":"IF(DATOS!O21=\"\",\"\",DATOS!O21)","v":""},{"$f":"IF(DATOS!AD21=\"\",\"\",DATOS!AD21)","v":""},{"$f":"IF(DATOS!X21=\"\",\"\",DATOS!X21)","v":""}]
[{"$f":"IF(DATOS!O22=\"\",\"\",DATOS!O22)","v":""},{"$f":"IF(DATOS!AD22=\"\",\"\",DATOS!AD22)","v":""},{"$f":"IF(DATOS!X22=\"\",\"\",DATOS!X22)","v":""}]
[{"$f":"IF(DATOS!O23=\"\",\"\",DATOS!O23)","v":""},{"$f":"IF(DATOS!AD23=\"\",\"\",DATOS!AD23)","v":""},{"$f":"IF(DATOS!X23=\"\",\"\",DATOS!X23)","v":""}]
[{"$f":"IF(DATOS!O24=\"\",\"\",DATOS!O24)","v":""},{"$f":"IF(DATOS!AD24=\"\",\"\",DATOS!AD24)","v":""},{"$f":"IF(DATOS!X24=\"\",\"\",DATOS!X24)","v":""}]
[{"$f":"IF(DATOS!O25=\"\",\"\",DATOS!O25)","v":""},{"$f":"IF(DATOS!AD25=\"\",\"\",DATOS!AD25)","v":""},{"$f":"IF(DATOS!X25=\"\",\"\",DATOS!X25)","v":""}]
[{"$f":"IF(DATOS!O26=\"\",\"\",DATOS!O26)","v":""},{"$f":"IF(DATOS!AD26=\"\",\"\",DATOS!AD26)","v":""},{"$f":"IF(DATOS!X26=\"\",\"\",DATOS!X26)","v":""}]
[{"$f":"IF(DATOS!O27=\"\",\"\",DATOS!O27)","v":""},{"$f":"IF(DATOS!AD27=\"\",\"\",DATOS!AD27)","v":""},{"$f":"IF(DATOS!X27=\"\",\"\",DATOS!X27)","v":""}]
[{"$f":"IF(DATOS!O28=\"\",\"\",DATOS!O28)","v":""},{"$f":"IF(DATOS!AD28=\"\",\"\",DATOS!AD28)","v":""},{"$f":"IF(DATOS!X28=\"\",\"\",DATOS!X28)","v":""}]
[{"$f":"IF(DATOS!O29=\"\",\"\",DATOS!O29)","v":""},{"$f":"IF(DATOS!AD29=\"\",\"\",DATOS!AD29)","v":""},{"$f":"IF(DATOS!X29=\"\",\"\",DATOS!X29)","v":""}]
[{"$f":"IF(DATOS!O30=\"\",\"\",DATOS!O30)","v":""},{"$f":"IF(DATOS!AD30=\"\",\"\",DATOS!AD30)","v":""},{"$f":"IF(DATOS!X30=\"\",\"\",DATOS!X30)","v":""}]
[{"$f":"IF(DATOS!O31=\"\",\"\",DATOS!O31)","v":""},{"$f":"IF(DATOS!AD31=\"\",\"\",DATOS!AD31)","v":""},{"$f":"IF(DATOS!X31=\"\",\"\",DATOS!X31)","v":""}]
[{"$f":"IF(DATOS!O32=\"\",\"\",DATOS!O32)","v":""},{"$f":"IF(DATOS!AD32=\"\",\"\",DATOS!AD32)","v":""},{"$f":"IF(DATOS!X32=\"\",\"\",DATOS!X32)","v":""}]
[{"$f":"IF(DATOS!O33=\"\",\"\",DATOS!O33)","v":""},{"$f":"IF(DATOS!AD33=\"\",\"\",DATOS!AD33)","v":""},{"$f":"IF(DATOS!X33=\"\",\"\",DATOS!X33)","v":""}]
[{"$f":"IF(DATOS!O34=\"\",\"\",DATOS!O34)","v":""},{"$f":"IF(DATOS!AD34=\"\",\"\",DATOS!AD34)","v":""},{"$f":"IF(DATOS!X34=\"\",\"\",DATOS!X34)","v":""}]
[{"$f":"IF(DATOS!O35=\"\",\"\",DATOS!O35)","v":""},{"$f":"IF(DATOS!AD35=\"\",\"\",DATOS!AD35)","v":""},{"$f":"IF(DATOS!X35=\"\",\"\",DATOS!X35)","v":""}]
[{"$f":"IF(DATOS!O36=\"\",\"\",DATOS!O36)","v":""},{"$f":"IF(DATOS!AD36=\"\",\"\",DATOS!AD36)","v":""},{"$f":"IF(DATOS!X36=\"\",\"\",DATOS!X36)","v":""}]
[{"$f":"IF(DATOS!O37=\"\",\"\",DATOS!O37)","v":""},{"$f":"IF(DATOS!AD37=\"\",\"\",DATOS!AD37)","v":""},{"$f":"IF(DATOS!X37=\"\",\"\",DATOS!X37)","v":""}]
[{"$f":"IF(DATOS!O38=\"\",\"\",DATOS!O38)","v":""},{"$f":"IF(DATOS!AD38=\"\",\"\",DATOS!AD38)","v":""},{"$f":"IF(DATOS!X38=\"\",\"\",DATOS!X38)","v":""}]
[{"$f":"IF(DATOS!O39=\"\",\"\",DATOS!O39)","v":""},{"$f":"IF(DATOS!AD39=\"\",\"\",DATOS!AD39)","v":""},{"$f":"IF(DATOS!X39=\"\",\"\",DATOS!X39)","v":""}]
[{"$f":"IF(DATOS!O40=\"\",\"\",DATOS!O40)","v":""},{"$f":"IF(DATOS!AD40=\"\",\"\",DATOS!AD40)","v":""},{"$f":"IF(DATOS!X40=\"\",\"\",DATOS!X40)","v":""}]
[{"$f":"IF(DATOS!O41=\"\",\"\",DATOS!O41)","v":""},{"$f":"IF(DATOS!AD41=\"\",\"\",DATOS!AD41)","v":""},{"$f":"IF(DATOS!X41=\"\",\"\",DATOS!X41)","v":""}]
[{"$f":"IF(DATOS!O42=\"\",\"\",DATOS!O42)","v":""},{"$f":"IF(DATOS!AD42=\"\",\"\",DATOS!AD42)","v":""},{"$f":"IF(DATOS!X42=\"\",\"\",DATOS!X42)","v":""}]
[{"$f":"IF(DATOS!O43=\"\",\"\",DATOS!O43)","v":""},{"$f":"IF(DATOS!AD43=\"\",\"\",DATOS!AD43)","v":""},{"$f":"IF(DATOS!X43=\"\",\"\",DATOS!X43)","v":""}]
[{"$f":"IF(DATOS!O44=\"\",\"\",DATOS!O44)","v":""},{"$f":"IF(DATOS!AD44=\"\",\"\",DATOS!AD44)","v":""},{"$f":"IF(DATOS!X44=\"\",\"\",DATOS!X44)","v":""}]
[{"$f":"IF(DATOS!O45=\"\",\"\",DATOS!O45)","v":""},{"$f":"IF(DATOS!AD45=\"\",\"\",DATOS!AD45)","v":""},{"$f":"IF(DATOS!X45=\"\",\"\",DATOS!X45)","v":""}]
[{"$f":"IF(DATOS!O46=\"\",\"\",DATOS!O46)","v":""},{"$f":"IF(DATOS!AD46=\"\",\"\",DATOS!AD46)","v":""},{"$f":"IF(DATOS!X46=\"\",\"\",DATOS!X46)","v":""}]
[{"$f":"IF(DATOS!O47=\"\",\"\",DATOS!O47)","v":""},{"$f":"IF(DATOS!AD47=\"\",\"\",DATOS!AD47)","v":""},{"$f":"IF(DATOS!X47=\"\",\"\",DATOS!X47)","v":""}]
[{"$f":"IF(DATOS!O48=\"\",\"\",DATOS!O48)","v":""},{"$f":"IF(DATOS!AD48=\"\",\"\",DATOS!AD48)","v":""},{"$f":"IF(DATOS!X48=\"\",\"\",DATOS!X48)","v":""}]
[{"$f":"IF(DATOS!O49=\"\",\"\",DATOS!O49)","v":""},{"$f":"IF(DATOS!AD49=\"\",\"\",DATOS!AD49)","v":""},{"$f":"IF(DATOS!X49=\"\",\"\",DATOS!X49)","v":""}]
[{"$f":"IF(DATOS!O50=\"\",\"\",DATOS!O50)","v":""},{"$f":"IF(DATOS!AD50=\"\",\"\",DATOS!AD50)","v":""},{"$f":"IF(DATOS!X50=\"\",\"\",DATOS!X50)","v":""}]
[{"$f":"IF(DATOS!O51=\"\",\"\",DATOS!O51)","v":""},{"$f":"IF(DATOS!AD51=\"\",\"\",DATOS!AD51)","v":""},{"$f":"IF(DATOS!X51=\"\",\"\",DATOS!X51)","v":""}]
[{"$f":"IF(DATOS!O52=\"\",\"\",DATOS!O52)","v":""},{"$f":"IF(DATOS!AD52=\"\",\"\",DATOS!AD52)","v":""},{"$f":"IF(DATOS!X52=\"\",\"\",DATOS!X52)","v":""}]
[{"$f":"IF(DATOS!O53=\"\",\"\",DATOS!O53)","v":""},{"$f":"IF(DATOS!AD53=\"\",\"\",DATOS!AD53)","v":""},{"$f":"IF(DATOS!X53=\"\",\"\",DATOS!X53)","v":""}]
[{"$f":"IF(DATOS!O54=\"\",\"\",DATOS!O54)","v":""},{"$f":"IF(DATOS!AD54=\"\",\"\",DATOS!AD54)","v":""},{"$f":"IF(DATOS!X54=\"\",\"\",DATOS!X54)","v":""}]
[{"$f":"IF(DATOS!O55=\"\",\"\",DATOS!O55)","v":""},{"$f":"IF(DATOS!AD55=\"\",\"\",DATOS!AD55)","v":""},{"$f":"IF(DATOS!X55=\"\",\"\",DATOS!X55)","v":""}]
[{"$f":"IF(DATOS!O56=\"\",\"\",DATOS!O56)","v":""},{"$f":"IF(DATOS!AD56=\"\",\"\",DATOS!AD56)","v":""},{"$f":"IF(DATOS!X56=\"\",\"\",DATOS!X56)","v":""}]
[{"$f":"IF(DATOS!O57=\"\",\"\",DATOS!O57)","v":""},{"$f":"IF(DATOS!AD57=\"\",\"\",DATOS!AD57)","v":""},{"$f":"IF(DATOS!X57=\"\",\"\",DATOS!X57)","v":""}]
[{"$f":"IF(DATOS!O58=\"\",\"\",DATOS!O58)","v":""},{"$f":"IF(DATOS!AD58=\"\",\"\",DATOS!AD58)","v":""},{"$f":"IF(DATOS!X58=\"\",\"\",DATOS!X58)","v":""}]
[{"$f":"IF(DATOS!O59=\"\",\"\",DATOS!O59)","v":""},{"$f":"IF(DATOS!AD59=\"\",\"\",DATOS!AD59)","v":""},{"$f":"IF(DATOS!X59=\"\",\"\",DATOS!X59)","v":""}]
[{"$f":"IF(DATOS!O60=\"\",\"\",DATOS!O60)","v":""},{"$f":"IF(DATOS!AD60=\"\",\"\",DATOS!AD60)","v":""},{"$f":"IF(DATOS!X60=\"\",\"\",DATOS!X60)","v":""}]
[{"$f":"IF(DATOS!O61=\"\",\"\",DATOS!O61)","v":""},{"$f":"IF(DATOS!AD61=\"\",\"\",DATOS!AD61)","v":""},{"$f":"IF(DATOS!X61=\"\",\"\",DATOS!X61)","v":""}]
[{"$f":"IF(DATOS!O62=\"\",\"\",DATOS!O62)","v":""},{"$f":"IF(DATOS!AD62=\"\",\"\",DATOS!AD62)","v":""},{"$f":"IF(DATOS!X62=\"\",\"\",DATOS!X62)","v":""}]
[{"$f":"IF(DATOS!O63=\"\",\"\",DATOS!O63)","v":""},{"$f":"IF(DATOS!AD63=\"\",\"\",DATOS!AD63)","v":""},{"$f":"IF(DATOS!X63=\"\",\"\",DATOS!X63)","v":""}]
[{"$f":"IF(DATOS!O64=\"\",\"\",DATOS!O64)","v":""},{"$f":"IF(DATOS!AD64=\"\",\"\",DATOS!AD64)","v":""},{"$f":"IF(DATOS!X64=\"\",\"\",DATOS!X64)","v":""}]
[{"$f":"IF(DATOS!O65=\"\",\"\",DATOS!O65)","v":""},{"$f":"IF(DATOS!AD65=\"\",\"\",DATOS!AD65)","v":""},{"$f":"IF(DATOS!X65=\"\",\"\",DATOS!X65)","v":""}]
[{"$f":"IF(DATOS!O66=\"\",\"\",DATOS!O66)","v":""},{"$f":"IF(DATOS!AD66=\"\",\"\",DATOS!AD66)","v":""},{"$f":"IF(DATOS!X66=\"\",\"\",DATOS!X66)","v":""}]
[{"$f":"IF(DATOS!O67=\"\",\"\",DATOS!O67)","v":""},{"$f":"IF(DATOS!AD67=\"\",\"\",DATOS!AD67)","v":""},{"$f":"IF(DATOS!X67=\"\",\"\",DATOS!X67)","v":""}]
[{"$f":"IF(DATOS!O68=\"\",\"\",DATOS!O68)","v":""},{"$f":"IF(DATOS!AD68=\"\",\"\",DATOS!AD68)","v":""},{"$f":"IF(DATOS!X68=\"\",\"\",DATOS!X68)","v":""}]
[{"$f":"IF(DATOS!O69=\"\",\"\",DATOS!O69)","v":""},{"$f":"IF(DATOS!AD69=\"\",\"\",DATOS!AD69)","v":""},{"$f":"IF(DATOS!X69=\"\",\"\",DATOS!X69)","v":""}]
[{"$f":"IF(DATOS!O70=\"\",\"\",DATOS!O70)","v":""},{"$f":"IF(DATOS!AD70=\"\",\"\",DATOS!AD70)","v":""},{"$f":"IF(DATOS!X70=\"\",\"\",DATOS!X70)","v":""}]
[{"$f":"IF(DATOS!O71=\"\",\"\",DATOS!O71)","v":""},{"$f":"IF(DATOS!AD71=\"\",\"\",DATOS!AD71)","v":""},{"$f":"IF(DATOS!X71=\"\",\"\",DATOS!X71)","v":""}]
[{"$f":"IF(DATOS!O72=\"\",\"\",DATOS!O72)","v":""},{"$f":"IF(DATOS!AD72=\"\",\"\",DATOS!AD72)","v":""},{"$f":"IF(DATOS!X72=\"\",\"\",DATOS!X72)","v":""}]
[{"$f":"IF(DATOS!O73=\"\",\"\",DATOS!O73)","v":""},{"$f":"IF(DATOS!AD73=\"\",\"\",DATOS!AD73)","v":""},{"$f":"IF(DATOS!X73=\"\",\"\",DATOS!X73)","v":""}]
[{"$f":"IF(DATOS!O74=\"\",\"\",DATOS!O74)","v":""},{"$f":"IF(DATOS!AD74=\"\",\"\",DATOS!AD74)","v":""},{"$f":"IF(DATOS!X74=\"\",\"\",DATOS!X74)","v":""}]
[{"$f":"IF(DATOS!O75=\"\",\"\",DATOS!O75)","v":""},{"$f":"IF(DATOS!AD75=\"\",\"\",DATOS!AD75)","v":""},{"$f":"IF(DATOS!X75=\"\",\"\",DATOS!X75)","v":""}]
[{"$f":"IF(DATOS!O76=\"\",\"\",DATOS!O76)","v":""},{"$f":"IF(DATOS!AD76=\"\",\"\",DATOS!AD76)","v":""},{"$f":"IF(DATOS!X76=\"\",\"\",DATOS!X76)","v":""}]
[{"$f":"IF(DATOS!O77=\"\",\"\",DATOS!O77)","v":""},{"$f":"IF(DATOS!AD77=\"\",\"\",DATOS!AD77)","v":""},{"$f":"IF(DATOS!X77=\"\",\"\",DATOS!X77)","v":""}]
[{"$f":"IF(DATOS!O78=\"\",\"\",DATOS!O78)","v":""},{"$f":"IF(DATOS!AD78=\"\",\"\",DATOS!AD78)","v":""},{"$f":"IF(DATOS!X78=\"\",\"\",DATOS!X78)","v":""}]
[{"$f":"IF(DATOS!O79=\"\",\"\",DATOS!O79)","v":""},{"$f":"IF(DATOS!AD79=\"\",\"\",DATOS!AD79)","v":""},{"$f":"IF(DATOS!X79=\"\",\"\",DATOS!X79)","v":""}]
[{"$f":"IF(DATOS!O80=\"\",\"\",DATOS!O80)","v":""},{"$f":"IF(DATOS!AD80=\"\",\"\",DATOS!AD80)","v":""},{"$f":"IF(DATOS!X80=\"\",\"\",DATOS!X80)","v":""}]
[{"$f":"IF(DATOS!O81=\"\",\"\",DATOS!O81)","v":""},{"$f":"IF(DATOS!AD81=\"\",\"\",DATOS!AD81)","v":""},{"$f":"IF(DATOS!X81=\"\",\"\",DATOS!X81)","v":""}]
[{"$f":"IF(DATOS!O82=\"\",\"\",DATOS!O82)","v":""},{"$f":"IF(DATOS!AD82=\"\",\"\",DATOS!AD82)","v":""},{"$f":"IF(DATOS!X82=\"\",\"\",DATOS!X82)","v":""}]
[{"$f":"IF(DATOS!O83=\"\",\"\",DATOS!O83)","v":""},{"$f":"IF(DATOS!AD83=\"\",\"\",DATOS!AD83)","v":""},{"$f":"IF(DATOS!X83=\"\",\"\",DATOS!X83)","v":""}]
[{"$f":"IF(DATOS!O84=\"\",\"\",DATOS!O84)","v":""},{"$f":"IF(DATOS!AD84=\"\",\"\",DATOS!AD84)","v":""},{"$f":"IF(DATOS!X84=\"\",\"\",DATOS!X84)","v":""}]
[{"$f":"IF(DATOS!O85=\"\",\"\",DATOS!O85)","v":""},{"$f":"IF(DATOS!AD85=\"\",\"\",DATOS!AD85)","v":""},{"$f":"IF(DATOS!X85=\"\",\"\",DATOS!X85)","v":""}]
[{"$f":"IF(DATOS!O86=\"\",\"\",DATOS!O86)","v":""},{"$f":"IF(DATOS!AD86=\"\",\"\",DATOS!AD86)","v":""},{"$f":"IF(DATOS!X86=\"\",\"\",DATOS!X86)","v":""}]
[{"$f":"IF(DATOS!O87=\"\",\"\",DATOS!O87)","v":""},{"$f":"IF(DATOS!AD87=\"\",\"\",DATOS!AD87)","v":""},{"$f":"IF(DATOS!X87=\"\",\"\",DATOS!X87)","v":""}]
[{"$f":"IF(DATOS!O88=\"\",\"\",DATOS!O88)","v":""},{"$f":"IF(DATOS!AD88=\"\",\"\",DATOS!AD88)","v":""},{"$f":"IF(DATOS!X88=\"\",\"\",DATOS!X88)","v":""}]
[{"$f":"IF(DATOS!O89=\"\",\"\",DATOS!O89)","v":""},{"$f":"IF(DATOS!AD89=\"\",\"\",DATOS!AD89)","v":""},{"$f":"IF(DATOS!X89=\"\",\"\",DATOS!X89)","v":""}]
[{"$f":"IF(DATOS!O90=\"\",\"\",DATOS!O90)","v":""},{"$f":"IF(DATOS!AD90=\"\",\"\",DATOS!AD90)","v":""},{"$f":"IF(DATOS!X90=\"\",\"\",DATOS!X90)","v":""}]
[{"$f":"IF(DATOS!O91=\"\",\"\",DATOS!O91)","v":""},{"$f":"IF(DATOS!AD91=\"\",\"\",DATOS!AD91)","v":""},{"$f":"IF(DATOS!X91=\"\",\"\",DATOS!X91)","v":""}]
[{"$f":"IF(DATOS!O92=\"\",\"\",DATOS!O92)","v":""},{"$f":"IF(DATOS!AD92=\"\",\"\",DATOS!AD92)","v":""},{"$f":"IF(DATOS!X92=\"\",\"\",DATOS!X92)","v":""}]
[{"$f":"IF(DATOS!O93=\"\",\"\",DATOS!O93)","v":""},{"$f":"IF(DATOS!AD93=\"\",\"\",DATOS!AD93)","v":""},{"$f":"IF(DATOS!X93=\"\",\"\",DATOS!X93)","v":""}]
[{"$f":"IF(DATOS!O94=\"\",\"\",DATOS!O94)","v":""},{"$f":"IF(DATOS!AD94=\"\",\"\",DATOS!AD94)","v":""},{"$f":"IF(DATOS!X94=\"\",\"\",DATOS!X94)","v":""}]
[{"$f":"IF(DATOS!O95=\"\",\"\",DATOS!O95)","v":""},{"$f":"IF(DATOS!AD95=\"\",\"\",DATOS!AD95)","v":""},{"$f":"IF(DATOS!X95=\"\",\"\",DATOS!X95)","v":""}]
[{"$f":"IF(DATOS!O96=\"\",\"\",DATOS!O96)","v":""},{"$f":"IF(DATOS!AD96=\"\",\"\",DATOS!AD96)","v":""},{"$f":"IF(DATOS!X96=\"\",\"\",DATOS!X96)","v":""}]
[{"$f":"IF(DATOS!O97=\"\",\"\",DATOS!O97)","v":""},{"$f":"IF(DATOS!AD97=\"\",\"\",DATOS!AD97)","v":""},{"$f":"IF(DATOS!X97=\"\",\"\",DATOS!X97)","v":""}]
[{"$f":"IF(DATOS!O98=\"\",\"\",DATOS!O98)","v":""},{"$f":"IF(DATOS!AD98=\"\",\"\",DATOS!AD98)","v":""},{"$f":"IF(DATOS!X98=\"\",\"\",DATOS!X98)","v":""}]
[{"$f":"IF(DATOS!O99=\"\",\"\",DATOS!O99)","v":""},{"$f":"IF(DATOS!AD99=\"\",\"\",DATOS!AD99)","v":""},{"$f":"IF(DATOS!X99=\"\",\"\",DATOS!X99)","v":""}]
[{"$f":"IF(DATOS!O100=\"\",\"\",DATOS!O100)","v":""},{"$f":"IF(DATOS!AD100=\"\",\"\",DATOS!AD100)","v":""},{"$f":"IF(DATOS!X100=\"\",\"\",DATOS!X100)","v":""}]
[{"$f":"IF(DATOS!O101=\"\",\"\",DATOS!O101)","v":""},{"$f":"IF(DATOS!AD101=\"\",\"\",DATOS!AD101)","v":""},{"$f":"IF(DATOS!X101=\"\",\"\",DATOS!X101)","v":""}]
[{"$f":"IF(DATOS!O102=\"\",\"\",DATOS!O102)","v":""},{"$f":"IF(DATOS!AD102=\"\",\"\",DATOS!AD102)","v":""},{"$f":"IF(DATOS!X102=\"\",\"\",DATOS!X102)","v":""}]
[{"$f":"IF(DATOS!O103=\"\",\"\",DATOS!O103)","v":""},{"$f":"IF(DATOS!AD103=\"\",\"\",DATOS!AD103)","v":""},{"$f":"IF(DATOS!X103=\"\",\"\",DATOS!X103)","v":""}]
[{"$f":"IF(DATOS!O104=\"\",\"\",DATOS!O104)","v":""},{"$f":"IF(DATOS!AD104=\"\",\"\",DATOS!AD104)","v":""},{"$f":"IF(DATOS!X104=\"\",\"\",DATOS!X104)","v":""}]

{"sheet":"AGD_MUESTREOS","index":7,"n_rows":0,"n_cols":0,"rows_kept":0,"cut":false,"hidden":true,"merged":[]}

{"sheet":"AGD_PARAMETRO","index":8,"n_rows":0,"n_cols":0,"rows_kept":0,"cut":false,"hidden":true,"merged":[]}

{"sheet":"AGD_MUESTRAS","index":9,"n_rows":0,"n_cols":0,"rows_kept":0,"cut":false,"hidden":true,"merged":[]}

{"sheet":"AGD_MUESTRAS_VARIABLES","index":10,"n_rows":0,"n_cols":0,"rows_kept":0,"cut":false,"hidden":true,"merged":[]}

{"sheet":"AGD_AUTORIAS","index":11,"n_rows":0,"n_cols":0,"rows_kept":0,"cut":false,"hidden":true,"merged":[]}